Local authority department which incurred the expenditure,Service Division,Cost Centre,Summary of the Purpose of Expenditure,Expense Type,Expense Code,Detailed Expense Type,Date of Transaction,Transaction Number,Beneficiary,Merchant Category Number,Merchant Category,Gross Amount,VAT,Net Amount
Regeneration Economy and Growth,Culture Sport and Tourism,030712,VCD - Project Delivery,Supplies and Services,384199,Miscellaneous Expenses,01-Nov-2022,000008586096454,ECARDWIDGET.COM,5734,Other hired and contracted services,2.30,0.00,2.30
Regeneration Economy and Growth,Business Durham CL0850,030671,Business Space 030671,Supplies and Services,304403,Equipment and Materials,01-Nov-2022,000008586097096,AMZNMktplace,5999,Other consumables,27.29,0.00,27.29
Regeneration Economy and Growth,Business Durham CL0850,030689,Inward Investment and Aftercare,Supplies and Services,336005,Advertising E336,01-Nov-2022,000008590126876,Google ADS6853017821,7311,Advertising other than for staff,36.26,0.00,36.26
Children and Young Peoples Services,Head of Education and Skills,071801,Selby Cottage Childcare Centre,Supplies and Services,304999,Equipment and Materials,01-Nov-2022,000008590126878,Costco Wholesale #109,7278,Misc equipment tools and materials,71.68,0.00,71.68
Children and Young Peoples Services,Head of Education and Skills,071801,Selby Cottage Childcare Centre,Supplies and Services,324117,Provisions E324,01-Nov-2022,000008590126880,B&M 373 - GATESHEAD,5399,Catering costs - provisions,7.16,0.00,7.16
Children and Young Peoples Services,Head of Education and Skills,071801,Selby Cottage Childcare Centre,Supplies and Services,324117,Provisions E324,01-Nov-2022,000008590126882,B&M 688 WASHINGTON,5399,Catering costs - provisions,6.07,0.00,6.07
Children and Young Peoples Services,Head of Education and Skills,071801,Selby Cottage Childcare Centre,Supplies and Services,384999,Miscellaneous Expenses,01-Nov-2022,000008590126884,BELLAS-SA-TOYS,5945,Other expenses,138.48,0.00,138.48
Children and Young Peoples Services,Head of Education and Skills,071801,Selby Cottage Childcare Centre,Supplies and Services,304403,Equipment and Materials,01-Nov-2022,000008590126886,AMZNMktplace,5999,Other consumables,8.84,1.47,7.37
Children and Young Peoples Services,Head of Education and Skills,071801,Selby Cottage Childcare Centre,Supplies and Services,304403,Equipment and Materials,01-Nov-2022,000008590126888,AMZNMktplace,5999,Other consumables,28.50,4.75,23.75
Children and Young Peoples Services,Head of Education and Skills,071801,Selby Cottage Childcare Centre,Supplies and Services,304403,Equipment and Materials,01-Nov-2022,000008590126890,AMZNMktplace,5999,Other consumables,11.99,2.00,9.99
Children and Young Peoples Services,Head of Education and Skills,071801,Selby Cottage Childcare Centre,Supplies and Services,304403,Equipment and Materials,01-Nov-2022,000008590126892,AMZNMktplace,5999,Other consumables,7.44,1.24,6.20
Children and Young Peoples Services,Head of Education and Skills,071801,Selby Cottage Childcare Centre,Supplies and Services,304403,Equipment and Materials,01-Nov-2022,000008590126894,AMZNMktplace,5999,Other consumables,27.98,4.66,23.32
Children and Young Peoples Services,Head of Education and Skills,071801,Selby Cottage Childcare Centre,Supplies and Services,304403,Equipment and Materials,01-Nov-2022,000008590126896,AMZNMKTPLACE AMAZON.CO,5999,Other consumables,12.18,2.03,10.15
Children and Young Peoples Services,Head of Education and Skills,071801,Selby Cottage Childcare Centre,Supplies and Services,304403,Equipment and Materials,01-Nov-2022,000008590126898,AMZNMKTPLACE AMAZON.CO,5999,Other consumables,9.98,1.66,8.32
Children and Young Peoples Services,Head of Education and Skills,071801,Selby Cottage Childcare Centre,Supplies and Services,324117,Provisions E324,01-Nov-2022,000008590126900,ASDA GROCERIES ONLINE,5411,Catering costs - provisions,79.59,0.00,79.59
Children and Young Peoples Services,Head of Education and Skills,071801,Selby Cottage Childcare Centre,Supplies and Services,324117,Provisions E324,01-Nov-2022,000008590126902,ASDA GROCERIES ONLINE,5411,Catering costs - provisions,17.25,0.00,17.25
Children and Young Peoples Services,Head of Education and Skills,071801,Selby Cottage Childcare Centre,Supplies and Services,324117,Provisions E324,01-Nov-2022,000008590126904,ASDA GROCERIES ONLINE,5411,Catering costs - provisions,-0.40,0.00,-0.40
Regeneration Economy and Growth,Planning & Housing,031500,Housing Solutions - Core,Supplies and Services,352001,Conference Expenses,01-Nov-2022,000008590126924,Roadchef Durham,7011,Conferencesseminars fees etc,159.00,26.50,132.50
Regeneration Economy and Growth,Planning & Housing,031500,Housing Solutions - Core,Supplies and Services,304259,Equipment and Materials,01-Nov-2022,000008590126926,DURHAM COUNTY COUNCIL,9399,Equipment-purchase and rental,11.00,0.00,11.00
Resources BK0010,Legal & Democratic Services,069326,Practice Management,Supplies and Services,304259,Equipment and Materials,01-Nov-2022,000008590126934,DARLINGTON BOROUGH COU,9399,Equipment-purchase and rental,11.00,0.00,11.00
Children and Young Peoples Services,Head of Education and Skills,075035,DurhamDirections Re-engagement,Supplies and Services,364301,Grants to Voluntary Organisations,01-Nov-2022,000008590126936,WWW.GONORTHEAST.CO.UK,4111,Hardship,25.00,0.00,25.00
Children and Young Peoples Services,Head of Education and Skills,075035,DurhamDirections Re-engagement,Supplies and Services,364301,Grants to Voluntary Organisations,01-Nov-2022,000008590126938,CITY OF NEWCASTLE INTE,9399,Hardship,11.00,0.00,11.00
Children and Young Peoples Services,Head of Education and Skills,075035,DurhamDirections Re-engagement,Supplies and Services,364301,Grants to Voluntary Organisations,01-Nov-2022,000008590126940,ASDA GEORGE COM LEEDS,5411,Hardship,-30.95,0.00,-30.95
Children and Young Peoples Services,Head of Childrens Social Care,085342,16 Hickstead Rise (previously 9 Cedar Ave),Transport,215995,Running Costs of Vehicles,01-Nov-2022,000008590126960,WOODHAM SERVICES,5541,Vehicle running expenses,30.01,0.00,30.01
Regeneration Economy and Growth,Culture Sport and Tourism,054233,Bishop Auckland Town Hall Library,Supplies and Services,338057,Services,01-Nov-2022,000008590126962,ANDREW PARNABY MOBILIT,5047,Medical fees 338057,222.00,37.00,185.00
Regeneration Economy and Growth,Culture Sport and Tourism,054233,Bishop Auckland Town Hall Library,Supplies and Services,338057,Services,01-Nov-2022,000008590126962 - 1,ANDREW PARNABY MOBILIT,5047,Medical fees 338057,28.00,,28.00
Children and Young Peoples Services,Head of Childrens Social Care,085342,16 Hickstead Rise (previously 9 Cedar Ave),Supplies and Services,324117,Provisions E324,01-Nov-2022,000008590126970,WALKERS BUTCHERS & BAK,5499,Catering costs - provisions,27.00,0.00,27.00
Children and Young Peoples Services,Head of Childrens Social Care,085342,16 Hickstead Rise (previously 9 Cedar Ave),Supplies and Services,324117,Provisions E324,01-Nov-2022,000008590126972,TESCO STORES 2916,5411,Catering costs - provisions,29.15,0.00,29.15
Children and Young Peoples Services,Head of Childrens Social Care,085332,Middlestone Moor CU,Supplies and Services,304403,Equipment and Materials,01-Nov-2022,000008590126978,AMZNBusiness 3Z4L68DI5,5999,Other consumables,38.91,6.49,32.42
Children and Young Peoples Services,Head of Childrens Social Care,085332,Middlestone Moor CU,Supplies and Services,324117,Provisions E324,01-Nov-2022,000008590126980,TESCO STORES 2371,5411,Catering costs - provisions,233.71,0.00,233.71
Children and Young Peoples Services,Head of Childrens Social Care,085381,Adoption Team,Employees,040149,Recruitment Instruction and Training,01-Nov-2022,000008590127022,CVAA UK LTD,8398,Training-all costs,119.00,0.00,119.00
Children and Young Peoples Services,Head of Childrens Social Care,085364,Children Looked After Team 1,Supplies and Services,340001,Postages E340,01-Nov-2022,000008590127024,POST OFFICE COUNTER,9402,Postages,3.03,0.00,3.03
Children and Young Peoples Services,Head of Childrens Social Care,085368,Children Looked After Team 5,Supplies and Services,338045,Services,01-Nov-2022,000008590127026,HM PASSPORT OFFICE,9399,Legal expenses 338045,75.50,0.00,75.50
Children and Young Peoples Services,Head of Childrens Social Care,085366,Children Looked After Team 3,Supplies and Services,338045,Services,01-Nov-2022,000008590127028,GEN REGISTER OFFICE,9399,Legal expenses 338045,11.00,0.00,11.00
Children and Young Peoples Services,Head of Childrens Social Care,085366,Children Looked After Team 3,Supplies and Services,338045,Services,01-Nov-2022,000008590127030,SUNDERLAND CC,9399,Legal expenses 338045,11.00,0.00,11.00
Children and Young Peoples Services,Head of Early Help Inclusion & Vulnerable Children.,088115,Young Parents Programme 088115,Supplies and Services,384302,Miscellaneous Expenses,01-Nov-2022,000008590127032,TESCO STORES 6329,5411,Activity expenses,22.66,0.00,22.66
Children and Young Peoples Services,Head of Early Help Inclusion & Vulnerable Children.,088104,BA/BC/Crook Intensive Family Support Team,Supplies and Services,364301,Grants to Voluntary Organisations,01-Nov-2022,000008590127038,ASDA GEORGE COM LEEDS,5411,Hardship,43.00,7.17,35.83
Children and Young Peoples Services,Head of Early Help Inclusion & Vulnerable Children.,079599,Psychological-HQ,Supplies and Services,304403,Equipment and Materials,01-Nov-2022,000008590127056,2CO.COM SPEECH.COM 195,5734,Other consumables,111.60,0.00,111.60
Children and Young Peoples Services,Head of Childrens Social Care,085652,PAUSE Durham Team,Transfer Payments,515205,Social Services Clients,01-Nov-2022,000008590127070,LOVEJAMII.COM,5399,Leaving care-incentive payments,19.50,0.00,19.50
Children and Young Peoples Services,Head of Education and Skills,071732,Dean Bank Childcare,Supplies and Services,304403,Equipment and Materials,01-Nov-2022,000008590127108,AMZNMktplace,5999,Other consumables,84.96,0.00,84.96
Children and Young Peoples Services,Head of Education and Skills,071732,Dean Bank Childcare,Supplies and Services,324117,Provisions E324,01-Nov-2022,000008590127110,SAINSBURYS S/MKTS,5411,Catering costs - provisions,26.71,0.00,26.71
Adult and Health Services,Head of Adults,055302,Durham Pathways,Supplies and Services,324117,Provisions E324,01-Nov-2022,000008590127112,ASDA SUPERSTORE 4987,5411,Catering costs - provisions,23.50,0.00,23.50
Resources BK0010,Procurement Sales & Business Services,065503,Business Support - Spectrum,Supplies and Services,304403,Equipment and Materials,01-Nov-2022,000008590127146,AMZNMktplace,5999,Other consumables,108.68,18.11,90.57
Regeneration Economy and Growth,Economic Development Level C,030771,Durham Advance Flexible Fund,Supplies and Services,372009,Subscriptions E372,01-Nov-2022,000008590127148,UK DEED POLL SERVICE L,7299,Subscriptions 372009,37.00,0.00,37.00
Children and Young Peoples Services,Head of Childrens Social Care,085364,Children Looked After Team 1,Supplies and Services,384999,Miscellaneous Expenses,01-Nov-2022,000008590127156,Amazon.co.uk RV1XH4RO5,5969,Other expenses,24.98,0.00,24.98
Children and Young Peoples Services,Head of Childrens Social Care,085364,Children Looked After Team 1,Supplies and Services,328041,Clothing uniforms and laundry E328,01-Nov-2022,000008590127158,ARGOS LTD,5310,Clothing uniforms and laundry,49.99,0.00,49.99
Children and Young Peoples Services,Head of Childrens Social Care,085364,Children Looked After Team 1,Supplies and Services,304259,Equipment and Materials,01-Nov-2022,000008590127160,DVLA DRIVER ONLINE,9399,Equipment-purchase and rental,34.00,0.00,34.00
Children and Young Peoples Services,Head of Early Help Inclusion & Vulnerable Children.,085965,Barnard,Transfer Payments,515002,Social Services Clients,01-Nov-2022,000008590127162,M and M Direct Ltd,5941,Pocket money,132.95,0.00,132.95
Children and Young Peoples Services,Head of Early Help Inclusion & Vulnerable Children.,085965,Barnard,Supplies and Services,384302,Miscellaneous Expenses,01-Nov-2022,000008590127164,Amazon.co.uk T817M9VU5,5969,Activity expenses,23.42,3.90,19.52
Children and Young Peoples Services,Head of Early Help Inclusion & Vulnerable Children.,085956,Lumley,Transfer Payments,515002,Social Services Clients,01-Nov-2022,000008590127166,AMZNMktplace,5999,Pocket money,5.95,0.99,4.96
Children and Young Peoples Services,Head of Early Help Inclusion & Vulnerable Children.,085956,Lumley,Transfer Payments,515002,Social Services Clients,01-Nov-2022,000008590127168,PRETTYLITTLETHING.COM,5691,Pocket money,32.25,0.00,32.25
Children and Young Peoples Services,Head of Early Help Inclusion & Vulnerable Children.,085956,Lumley,Supplies and Services,308011,Furniture,01-Nov-2022,000008590127170,AMZNMKTPLACE AMAZON.CO,5999,Furniture repair and replacement,29.99,5.00,24.99
Children and Young Peoples Services,Head of Early Help Inclusion & Vulnerable Children.,085956,Lumley,Supplies and Services,308011,Furniture,01-Nov-2022,000008590127172,AMZNMKTPLACE AMAZON.CO,5999,Furniture repair and replacement,48.48,8.08,40.40
Children and Young Peoples Services,Head of Early Help Inclusion & Vulnerable Children.,085956,Lumley,Transfer Payments,515002,Social Services Clients,01-Nov-2022,000008590127176,AMZNMktplace,5999,Pocket money,7.59,1.27,6.32
Children and Young Peoples Services,Head of Early Help Inclusion & Vulnerable Children.,085956,Lumley,Transfer Payments,515002,Social Services Clients,01-Nov-2022,000008590127178,AMZNMktplace,5999,Pocket money,4.99,0.83,4.16
Children and Young Peoples Services,Head of Early Help Inclusion & Vulnerable Children.,085956,Lumley,Transfer Payments,515002,Social Services Clients,01-Nov-2022,000008590127180,JD SPORTS INTERNET,5941,Pocket money,23.99,0.00,23.99
Neighbourhoods and Climate Change,Environmental Services,031228,North Pennines - Fellfoot Forward,Supplies and Services,324117,Provisions E324,01-Nov-2022,000008590127230,HALLBANKGATE HUB LIMIT,5411,Catering costs - provisions,31.54,0.00,31.54
Regeneration Economy and Growth,Planning & Housing,031581,Prevention Fund,Supplies and Services,384999,Miscellaneous Expenses,01-Nov-2022,000008590127250,ARGOS LTD,5310,Other expenses,13.50,0.00,13.50
Children and Young Peoples Services,Head of Early Help Inclusion & Vulnerable Children.,088109,Dean Bank and Tudhoe Family Centre,Supplies and Services,384302,Miscellaneous Expenses,01-Nov-2022,000008590127252,ASDA GEORGE COM LEEDS,5411,Activity expenses,18.00,0.00,18.00
Children and Young Peoples Services,Head of Childrens Social Care,085560,Community Short Breaks,Supplies and Services,384700,Miscellaneous Expenses,01-Nov-2022,000008590127254,AMZNBusiness 521EX7665,5999,Miscellaneous grants,8.45,0.00,8.45
Children and Young Peoples Services,Head of Childrens Social Care,085331,New Lea Childrens Home,Supplies and Services,308011,Furniture,01-Nov-2022,000008590127256,IKEA LTD 143 GATESHEAD,5712,Furniture repair and replacement,419.00,0.00,419.00
Dedicated Schools Grant BG0015,DSG - In-yr academies/closures,419210,Durham Fed 4192 - SEND,Supplies and Services,304403,Equipment and Materials,01-Nov-2022,000008590127258,AMZNMktplace,5999,Other consumables,115.20,19.20,96.00
Regeneration Economy and Growth,Economic Development Level C,030776,LINKCD Flexible Fund,Supplies and Services,384999,Miscellaneous Expenses,01-Nov-2022,000008590127320,Amazon.co.uk BS1E60G75,5969,Other expenses,23.62,0.00,23.62
Children and Young Peoples Services,Head of Childrens Social Care,085347,Solo Home The Manse,Supplies and Services,384999,Miscellaneous Expenses,01-Nov-2022,000008590127326,Amazon.co.uk 7P5F00455,5969,Other expenses,12.90,0.00,12.90
Children and Young Peoples Services,Head of Education and Skills,078550,Discretionary Learning Support,Transport,235073,Public Transport,01-Nov-2022,000008590127384,WWW.GONORTHEAST.CO.UK,4111,Travel-clients/students/children,30.00,0.00,30.00
Resources BK0010,Digital Services,065335,School Services - Implementations,Supplies and Services,304639,Equipment and Materials,01-Nov-2022,000008590127398,LAPTOP-LCD-SCREEN,5732,Technicians-supplies,218.76,0.00,218.76
Children and Young Peoples Services,Head of Early Help Inclusion & Vulnerable Children.,085957,Secure Management,Supplies and Services,384302,Miscellaneous Expenses,01-Nov-2022,000008590127410,AMZNMKTPLACE AMAZON.CO,5999,Activity expenses,6.98,0.00,6.98
Children and Young Peoples Services,Head of Early Help Inclusion & Vulnerable Children.,085957,Secure Management,Premises,108099,Service Repairs and Maintenance,01-Nov-2022,000008590127416,WWW.SCREWFIX.COM,5211,General repairs 108099,67.92,0.00,67.92
Regeneration Economy and Growth,Business Durham CL0850,030671,Business Space 030671,Supplies and Services,324117,Provisions E324,01-Nov-2022,000008590127440,ASDA SUPERSTORE,5411,Catering costs - provisions,8.10,0.00,8.10
Children and Young Peoples Services,Head of Childrens Social Care,085351,Framwellgate Moor CU,Supplies and Services,304403,Equipment and Materials,01-Nov-2022,000008590127444,FIRSTAID4LESS.CO.UK,5999,Other consumables,77.16,0.00,77.16
Children and Young Peoples Services,Head of Childrens Social Care,085347,Solo Home The Manse,Supplies and Services,348037,Subsistence E348,01-Nov-2022,000008590127450,Zettle_ Minchella Co,5812,Subsistence,16.00,0.00,16.00
Children and Young Peoples Services,Head of Childrens Social Care,085358,Orchard House Sacriston Solo Home,Supplies and Services,328041,Clothing uniforms and laundry E328,01-Nov-2022,000008590127468,ONE4ALL,5311,Clothing uniforms and laundry,270.00,0.00,270.00
Regeneration Economy and Growth,Economic Development Level C,030776,LINKCD Flexible Fund,Supplies and Services,324117,Provisions E324,01-Nov-2022,000008590127478,ASDA STORES LTD,5411,Catering costs - provisions,3.55,0.00,3.55
Adult and Health Services,Public Health CC0450,057500,Sexual/Domestic Violence,Supplies and Services,304403,Equipment and Materials,01-Nov-2022,000008590127484,AMZNMKTPLACE AMAZON.CO,5999,Other consumables,31.67,0.00,31.67
Regeneration Economy and Growth,Communications Management,060270,Communications and Marketing,Supplies and Services,372009,Subscriptions E372,01-Nov-2022,000008590127500,Google ADS8772529636,7311,Subscriptions 372009,12.30,0.00,12.30
Children and Young Peoples Services,Head of Early Help Inclusion & Vulnerable Children.,088113,Seaham & Laurel Avenue Family Centre,Supplies and Services,324117,Provisions E324,01-Nov-2022,000008590127542,ASDA GROCERIES ONLINE,5411,Catering costs - provisions,247.12,0.00,247.12
Children and Young Peoples Services,Head of Early Help Inclusion & Vulnerable Children.,088113,Seaham & Laurel Avenue Family Centre,Supplies and Services,324117,Provisions E324,01-Nov-2022,000008590127544,ASDA GROCERIES ONLINE,5411,Catering costs - provisions,-0.80,0.00,-0.80
Neighbourhoods and Climate Change,Environmental Services,010367,C&G - South Grounds Maintenance,Third Party Payments,430100,Rendered by Private Contractors,01-Nov-2022,000008590127546,SQ CATHEDRAL LOCK AND,1520,Payments to sub-contractors,12.60,0.00,12.60
Regeneration Economy and Growth,Economic Development Level C,030770,Durham Advance,Supplies and Services,324117,Provisions E324,01-Nov-2022,000008590127560,TESCO STORES 4358,5411,Catering costs - provisions,10.00,0.00,10.00
Neighbourhoods and Climate Change,Environmental Services,010301,C&G - North Grounds Maintenance,Supplies and Services,304221,Equipment and Materials,01-Nov-2022,000008590127562,ARCO LTD,5085,Direct materials,89.99,0.00,89.99
Regeneration Economy and Growth,Corporate Property and Land,030691,Catering - Durham Dales Centre,Supplies and Services,342033,Computers and Communications,01-Nov-2022,000008590127572,WWW.NISBETS.COM,5964,Computer hardware,123.28,0.00,123.28
Regeneration Economy and Growth,Planning & Housing,031576,B& B - Temp Accom,Supplies and Services,364340,Grants to Voluntary Organisations,01-Nov-2022,000008590127574,Hotel at Booking.com,7011,Contact expenses,165.00,0.00,165.00
Regeneration Economy and Growth,Corporate Property and Land,010525,Catering - Green Lane,Supplies and Services,324117,Provisions E324,01-Nov-2022,000008590205414,HOPWELLS LTD,5811,Catering costs - provisions,76.78,0.00,76.78
Regeneration Economy and Growth,Corporate Property and Land,011275,Catering -Durham Leadership Centre,Supplies and Services,324117,Provisions E324,01-Nov-2022,000008590205416,JR HOLLAND FOODSERVICE,5499,Catering costs - provisions,180.01,0.00,180.01
Regeneration Economy and Growth,Culture Sport and Tourism,011265,Empire Theatre (Operations),Supplies and Services,324117,Provisions E324,01-Nov-2022,000008590205418,JR HOLLAND FOODSERVICE,5499,Catering costs - provisions,33.19,0.00,33.19
Regeneration Economy and Growth,Corporate Property and Land,011296,Catering - Dunes,Supplies and Services,324117,Provisions E324,01-Nov-2022,000008590205420,HOPWELLS LTD,5811,Catering costs - provisions,74.52,12.42,62.10
Regeneration Economy and Growth,Corporate Property and Land,011296,Catering - Dunes,Supplies and Services,324117,Provisions E324,01-Nov-2022,000008590205420 - 1,HOPWELLS LTD,5811,Catering costs - provisions,243.91,,243.91
Regeneration Economy and Growth,Corporate Property and Land,011296,Catering - Dunes,Supplies and Services,324117,Provisions E324,01-Nov-2022,000008590205422,JR HOLLAND FOODSERVICE,5499,Catering costs - provisions,7.98,0.00,7.98
Regeneration Economy and Growth,Corporate Property and Land,011296,Catering - Dunes,Supplies and Services,324117,Provisions E324,01-Nov-2022,000008590205424,JR HOLLAND FOODSERVICE,5499,Catering costs - provisions,88.10,0.00,88.10
Regeneration Economy and Growth,Corporate Property and Land,030691,Catering - Durham Dales Centre,Supplies and Services,324117,Provisions E324,01-Nov-2022,000008590205428,HOPWELLS LTD,5811,Catering costs - provisions,85.50,0.00,85.50
Regeneration Economy and Growth,Corporate Property and Land,030691,Catering - Durham Dales Centre,Supplies and Services,324117,Provisions E324,01-Nov-2022,000008590205430,HOPWELLS LTD,5811,Catering costs - provisions,3.42,0.57,2.85
Regeneration Economy and Growth,Corporate Property and Land,030691,Catering - Durham Dales Centre,Supplies and Services,324117,Provisions E324,01-Nov-2022,000008590205430 - 1,HOPWELLS LTD,5811,Catering costs - provisions,305.19,,305.19
Regeneration Economy and Growth,Corporate Property and Land,030691,Catering - Durham Dales Centre,Supplies and Services,324117,Provisions E324,01-Nov-2022,000008590205432,HOPWELLS LTD,5811,Catering costs - provisions,-9.14,0.00,-9.14
Adult and Health Services,Head of Adults,055643,Hawthorn House LD Respite Unit,Supplies and Services,324117,Provisions E324,01-Nov-2022,000008590205434,HOPWELLS LTD,5811,Catering costs - provisions,65.86,0.00,65.86
Neighbourhoods and Climate Change,Environmental Services,011060,C&G - Hardwick Park Catering,Supplies and Services,324117,Provisions E324,01-Nov-2022,000008590205436,HOPWELLS LTD,5811,Catering costs - provisions,491.76,81.96,409.80
Neighbourhoods and Climate Change,Environmental Services,011060,C&G - Hardwick Park Catering,Supplies and Services,324117,Provisions E324,01-Nov-2022,000008590205436 - 1,HOPWELLS LTD,5811,Catering costs - provisions,381.69,,381.69
Neighbourhoods and Climate Change,Environmental Services,011060,C&G - Hardwick Park Catering,Supplies and Services,324117,Provisions E324,01-Nov-2022,000008590205438,HOPWELLS LTD,5811,Catering costs - provisions,-35.75,-5.96,-29.79
Regeneration Economy and Growth,Corporate Property and Land,021234,Catering - Locomotion,Supplies and Services,384999,Miscellaneous Expenses,01-Nov-2022,000008590205440,ON A ROLL SANDWICH COM,5199,Other expenses,445.79,0.00,445.79
Regeneration Economy and Growth,Corporate Property and Land,021234,Catering - Locomotion,Supplies and Services,324117,Provisions E324,01-Nov-2022,000008590205442,HOPWELLS LTD,5811,Catering costs - provisions,51.60,8.60,43.00
Regeneration Economy and Growth,Corporate Property and Land,021234,Catering - Locomotion,Supplies and Services,324117,Provisions E324,01-Nov-2022,000008590205442 - 1,HOPWELLS LTD,5811,Catering costs - provisions,348.42,,348.42
Regeneration Economy and Growth,Corporate Property and Land,021234,Catering - Locomotion,Supplies and Services,324117,Provisions E324,01-Nov-2022,000008590205444,HOPWELLS LTD,5811,Catering costs - provisions,-8.88,0.00,-8.88
Regeneration Economy and Growth,Corporate Property and Land,021235,Catering - Wharton Park,Supplies and Services,384999,Miscellaneous Expenses,01-Nov-2022,000008590205448,ON A ROLL SANDWICH COM,5199,Other expenses,142.87,0.00,142.87
Regeneration Economy and Growth,Corporate Property and Land,021235,Catering - Wharton Park,Supplies and Services,324117,Provisions E324,01-Nov-2022,000008590205450,HOPWELLS LTD,5811,Catering costs - provisions,40.08,6.68,33.40
Regeneration Economy and Growth,Corporate Property and Land,021235,Catering - Wharton Park,Supplies and Services,324117,Provisions E324,01-Nov-2022,000008590205450 - 1,HOPWELLS LTD,5811,Catering costs - provisions,51.42,,51.42
Regeneration Economy and Growth,Corporate Property and Land,021235,Catering - Wharton Park,Supplies and Services,324117,Provisions E324,01-Nov-2022,000008590205452,HOPWELLS LTD,5811,Catering costs - provisions,-15.25,-2.54,-12.71
Regeneration Economy and Growth,Culture Sport and Tourism,054812,Gala Theatre - Catering etc,Supplies and Services,324117,Provisions E324,01-Nov-2022,000008590205454,JR HOLLAND FOODSERVICE,5499,Catering costs - provisions,90.22,0.00,90.22
Regeneration Economy and Growth,Corporate Property and Land,021242,Catering - County Hall,Supplies and Services,384999,Miscellaneous Expenses,01-Nov-2022,000008590205456,ON A ROLL SANDWICH COM,5199,Other expenses,175.89,0.00,175.89
Regeneration Economy and Growth,Corporate Property and Land,021242,Catering - County Hall,Supplies and Services,324117,Provisions E324,01-Nov-2022,000008590205458,HOPWELLS LTD,5811,Catering costs - provisions,190.60,0.00,190.60
Regeneration Economy and Growth,Corporate Property and Land,021242,Catering - County Hall,Supplies and Services,324117,Provisions E324,01-Nov-2022,000008590205460,JR HOLLAND FOODSERVICE,5499,Catering costs - provisions,74.53,0.00,74.53
Regeneration Economy and Growth,Corporate Property and Land,021242,Catering - County Hall,Supplies and Services,324117,Provisions E324,01-Nov-2022,000008590205462,HOPWELLS LTD,5811,Catering costs - provisions,-20.50,0.00,-20.50
Children and Young Peoples Services,Head of Education and Skills,075035,DurhamDirections Re-engagement,Supplies and Services,364301,Grants to Voluntary Organisations,01-Nov-2022,000008595126976,MATALAN.CO.UK,5691,Hardship,30.95,0.00,30.95
Children and Young Peoples Services,Head of Early Help Inclusion & Vulnerable Children.,085956,Lumley,Transfer Payments,515002,Social Services Clients,01-Nov-2022,000008595127280,SHEIN,5691,Pocket money,22.98,0.00,22.98
Children and Young Peoples Services,Head of Early Help Inclusion & Vulnerable Children.,085965,Barnard,Supplies and Services,384302,Miscellaneous Expenses,01-Nov-2022,000008595127290,AMZNMKTPLACE AMAZON.CO,5999,Activity expenses,88.32,14.73,73.59
Dedicated Schools Grant BG0015,DSG Schools Block,702812,Villa Real School 7028 - IT,Supplies and Services,304403,Equipment and Materials,01-Nov-2022,000008595127422,AMZNMKTPLACE AMAZON.CO,5999,Other consumables,10.99,1.83,9.16
Adult and Health Services,Head of Adults,055643,Hawthorn House LD Respite Unit,Supplies and Services,304403,Equipment and Materials,01-Nov-2022,000008595127450,AMZNMKTPLACE AMAZON.CO,5999,Other consumables,92.88,15.48,77.40
Adult and Health Services,Head of Adults,055643,Hawthorn House LD Respite Unit,Supplies and Services,304403,Equipment and Materials,01-Nov-2022,000008595127450 - 1,AMZNMKTPLACE AMAZON.CO,5999,Other consumables,0.06,,0.06
Regeneration Economy and Growth,Corporate Property and Land,011296,Catering - Dunes,Supplies and Services,324117,Provisions E324,01-Nov-2022,000008595202668,BATLEYS PERTH,5300,Catering costs - provisions,191.04,31.84,159.20
Regeneration Economy and Growth,Corporate Property and Land,011296,Catering - Dunes,Supplies and Services,324117,Provisions E324,01-Nov-2022,000008595202668 - 1,BATLEYS PERTH,5300,Catering costs - provisions,87.99,,87.99
Regeneration Economy and Growth,Culture Sport and Tourism,054235,Bishop Auckland Town Hall Cafe,Supplies and Services,324117,Provisions E324,01-Nov-2022,000008595202676,BATLEYS PERTH,5300,Catering costs - provisions,753.60,125.60,628.00
Regeneration Economy and Growth,Culture Sport and Tourism,054235,Bishop Auckland Town Hall Cafe,Supplies and Services,324117,Provisions E324,01-Nov-2022,000008595202676 - 1,BATLEYS PERTH,5300,Catering costs - provisions,192.38,,192.38
Regeneration Economy and Growth,Corporate Property and Land,021234,Catering - Locomotion,Supplies and Services,324117,Provisions E324,01-Nov-2022,000008595202682,BATLEYS PERTH,5300,Catering costs - provisions,56.54,9.42,47.12
Regeneration Economy and Growth,Culture Sport and Tourism,054812,Gala Theatre - Catering etc,Supplies and Services,324117,Provisions E324,01-Nov-2022,000008595202686,BATLEYS PERTH,5300,Catering costs - provisions,25.40,0.00,25.40
Regeneration Economy and Growth,Culture Sport and Tourism,054812,Gala Theatre - Catering etc,Supplies and Services,324117,Provisions E324,01-Nov-2022,000008595202692,BATLEYS PERTH,5300,Catering costs - provisions,-45.95,0.00,-45.95
Regeneration Economy and Growth,Culture Sport and Tourism,054812,Gala Theatre - Catering etc,Supplies and Services,324117,Provisions E324,01-Nov-2022,000008595202694,BATLEYS PERTH,5300,Catering costs - provisions,-15.72,-2.62,-13.10
Regeneration Economy and Growth,Corporate Property and Land,021242,Catering - County Hall,Supplies and Services,324117,Provisions E324,01-Nov-2022,000008595202696,BATLEYS PERTH,5300,Catering costs - provisions,508.92,84.82,424.10
Regeneration Economy and Growth,Corporate Property and Land,021242,Catering - County Hall,Supplies and Services,324117,Provisions E324,01-Nov-2022,000008595202696 - 1,BATLEYS PERTH,5300,Catering costs - provisions,114.16,,114.16
Regeneration Economy and Growth,Corporate Property and Land,021324,Catering - Meadowfield,Supplies and Services,324117,Provisions E324,01-Nov-2022,000008595202700,BATLEYS PERTH,5300,Catering costs - provisions,196.86,32.81,164.05
Regeneration Economy and Growth,Corporate Property and Land,021324,Catering - Meadowfield,Supplies and Services,324117,Provisions E324,01-Nov-2022,000008595202700 - 1,BATLEYS PERTH,5300,Catering costs - provisions,177.79,,177.79
Regeneration Economy and Growth,Corporate Property and Land,021234,Catering - Locomotion,Supplies and Services,324117,Provisions E324,01-Nov-2022,000010360522623,BATLEYS PERTH,5300,Catering costs - provisions,637.14,106.19,530.95
Regeneration Economy and Growth,Corporate Property and Land,021234,Catering - Locomotion,Supplies and Services,324117,Provisions E324,01-Nov-2022,000010360522623 - 1,BATLEYS PERTH,5300,Catering costs - provisions,49.88,,49.88
Children and Young Peoples Services,Head of Early Help Inclusion & Vulnerable Children.,085965,Barnard,Supplies and Services,384302,Miscellaneous Expenses,02-Nov-2022,000008590127174,Amazon.co.uk QF65G24V5,5969,Activity expenses,40.02,6.67,33.35
Children and Young Peoples Services,Head of Early Help Inclusion & Vulnerable Children.,085965,Barnard,Supplies and Services,384302,Miscellaneous Expenses,02-Nov-2022,000008590127174 - 1,Amazon.co.uk QF65G24V5,5969,Activity expenses,79.95,,79.95
Children and Young Peoples Services,Head of Education and Skills,070169,Durham SSP,Supplies and Services,304999,Equipment and Materials,02-Nov-2022,000008590127220,Microsoft Subscription,5816,Misc equipment tools and materials,7.99,1.33,6.66
Regeneration Economy and Growth,Culture Sport and Tourism,011291,Peterlee Leisure Centre,Supplies and Services,304259,Equipment and Materials,02-Nov-2022,000008590127348,AMZNMktplace,5999,Equipment-purchase and rental,12.68,2.11,10.57
Regeneration Economy and Growth,Business Durham CL0850,030689,Inward Investment and Aftercare,Supplies and Services,304403,Equipment and Materials,02-Nov-2022,000008595126936,ADOBE CREATIVE CLOUD,5734,Other consumables,51.98,0.00,51.98
Children and Young Peoples Services,Head of Education and Skills,071801,Selby Cottage Childcare Centre,Supplies and Services,324117,Provisions E324,02-Nov-2022,000008595126938,TESCO STORES 2278,5411,Catering costs - provisions,4.00,0.00,4.00
Children and Young Peoples Services,Head of Education and Skills,075033,DurhamWorks 3,Supplies and Services,364301,Grants to Voluntary Organisations,02-Nov-2022,000008595126966,WWW.GONORTHEAST.CO.UK,4111,Hardship,72.00,0.00,72.00
Children and Young Peoples Services,Head of Education and Skills,075035,DurhamDirections Re-engagement,Supplies and Services,364301,Grants to Voluntary Organisations,02-Nov-2022,000008595126968,WWW.GONORTHEAST.CO.UK,4111,Hardship,4.70,0.00,4.70
Children and Young Peoples Services,Head of Education and Skills,075035,DurhamDirections Re-engagement,Supplies and Services,364301,Grants to Voluntary Organisations,02-Nov-2022,000008595126972,WWW.GONORTHEAST.CO.UK,4111,Hardship,4.70,0.00,4.70
Regeneration Economy and Growth,Culture Sport and Tourism,054775,Durham Town Hall 054775,Supplies and Services,304259,Equipment and Materials,02-Nov-2022,000008595126980,AMZNMktplace,5999,Equipment-purchase and rental,10.99,1.83,9.16
Regeneration Economy and Growth,Culture Sport and Tourism,054212,Stanley Library,Supplies and Services,304252,Equipment and Materials,02-Nov-2022,000008595126982,AMZNBUSINESS 1B6DT47Z5,5999,Equipment-repairsserviceinsurance,2.28,0.38,1.90
Regeneration Economy and Growth,Culture Sport and Tourism,054604,Seven Hills Spennymoor,Supplies and Services,340001,Postages E340,02-Nov-2022,000008595126984,QUADIENT UK LTD,5111,Postages,200.00,0.00,200.00
Regeneration Economy and Growth,Culture Sport and Tourism,030712,VCD - Project Delivery,Supplies and Services,384199,Miscellaneous Expenses,02-Nov-2022,000008595126986,MAILCHIMP MISC,5968,Other hired and contracted services,307.64,0.00,307.64
Children and Young Peoples Services,Head of Childrens Social Care,085342,16 Hickstead Rise (previously 9 Cedar Ave),Supplies and Services,324001,Provisions E324,02-Nov-2022,000008595127002,CORKING WINES,5921,Bar supplies,6.26,0.00,6.26
Children and Young Peoples Services,Head of Childrens Social Care,085332,Middlestone Moor CU,Supplies and Services,324117,Provisions E324,02-Nov-2022,000008595127008,ICELAND,5411,Catering costs - provisions,19.50,0.00,19.50
Children and Young Peoples Services,Head of Childrens Social Care,085342,16 Hickstead Rise (previously 9 Cedar Ave),Supplies and Services,384999,Miscellaneous Expenses,02-Nov-2022,000008595127014,Class Cuts Barbers,7230,Other expenses,10.00,0.00,10.00
Children and Young Peoples Services,Head of Childrens Social Care,085342,16 Hickstead Rise (previously 9 Cedar Ave),Transport,235057,Public Transport,02-Nov-2022,000008595127016,SumUp Able novak,4121,Staff travelling,16.00,0.00,16.00
Children and Young Peoples Services,Head of Childrens Social Care,085342,16 Hickstead Rise (previously 9 Cedar Ave),Transport,235057,Public Transport,02-Nov-2022,000008595127018,ARRIVA DURHAM COUNTY L,4131,Staff travelling,9.80,0.00,9.80
Children and Young Peoples Services,Head of Childrens Social Care,085342,16 Hickstead Rise (previously 9 Cedar Ave),Supplies and Services,304403,Equipment and Materials,02-Nov-2022,000008595127020,CEX,5065,Other consumables,4.00,0.00,4.00
Children and Young Peoples Services,Head of Childrens Social Care,085342,16 Hickstead Rise (previously 9 Cedar Ave),Supplies and Services,348037,Subsistence E348,02-Nov-2022,000008595127022,GREGGS,5812,Subsistence,8.55,0.00,8.55
Regeneration Economy and Growth,Economic Development Level C,030771,Durham Advance Flexible Fund,Transport,235057,Public Transport,02-Nov-2022,000008595127026,ACT TRADING LTD,7523,Staff travelling,0.60,0.00,0.60
Adult and Health Services,Head of Adults,055302,Durham Pathways,Supplies and Services,304403,Equipment and Materials,02-Nov-2022,000008595127028,AMZNMktplace,5999,Other consumables,24.99,4.17,20.82
Adult and Health Services,Head of Adults,055302,Durham Pathways,Supplies and Services,304403,Equipment and Materials,02-Nov-2022,000008595127032,AMZNMktplace,5999,Other consumables,28.99,4.83,24.16
Regeneration Economy and Growth,Planning & Housing,031623,Rough Sleeping,Supplies and Services,338066,Services,02-Nov-2022,000008595127038,GEN REGISTER OFFICE,9399,Professional fees 338066,14.00,0.00,14.00
Children and Young Peoples Services,Head of Childrens Social Care,085341,High Etherley Satelite Home,Supplies and Services,348037,Subsistence E348,02-Nov-2022,000008595127040,VMS ROADCHEF COSTA,5814,Subsistence,14.03,0.00,14.03
Neighbourhoods and Climate Change,Environmental Services,010367,C&G - South Grounds Maintenance,Supplies and Services,304259,Equipment and Materials,02-Nov-2022,000008595127058,MACHINE MART LTD,5722,Equipment-purchase and rental,155.98,26.00,129.98
Children and Young Peoples Services,Head of Childrens Social Care,085367,Children Looked After Team 4,Supplies and Services,338045,Services,02-Nov-2022,000008595127060,GEN REGISTER OFFICE,9399,Legal expenses 338045,11.00,0.00,11.00
Children and Young Peoples Services,Head of Childrens Social Care,085368,Children Looked After Team 5,Supplies and Services,338045,Services,02-Nov-2022,000008595127062,GEN REGISTER OFFICE,9399,Legal expenses 338045,22.00,0.00,22.00
Regeneration Economy and Growth,Corporate Property and Land,021242,Catering - County Hall,Supplies and Services,324117,Provisions E324,02-Nov-2022,000008595127090,TESCO STORES 2371,5411,Catering costs - provisions,34.80,0.00,34.80
Neighbourhoods and Climate Change,Environmental Services,010367,C&G - South Grounds Maintenance,Supplies and Services,304999,Equipment and Materials,02-Nov-2022,000008595127142,BLACK & DECKER,5251,Misc equipment tools and materials,175.00,29.17,145.83
Regeneration Economy and Growth,Corporate Property and Land,021601,FM-Civic Bldgs-Building Cleaning School Support,Supplies and Services,304403,Equipment and Materials,02-Nov-2022,000008595127172,AMZNMktplace,5999,Other consumables,75.98,0.00,75.98
Children and Young Peoples Services,Head of Education and Skills,071732,Dean Bank Childcare,Supplies and Services,324117,Provisions E324,02-Nov-2022,000008595127176,B&M 035 - SHILDON,5399,Catering costs - provisions,103.00,0.00,103.00
Adult and Health Services,Head of Adults,055302,Durham Pathways,Supplies and Services,340001,Postages E340,02-Nov-2022,000008595127190,POST OFFICE COUNTER,9402,Postages,0.95,0.00,0.95
Regeneration Economy and Growth,Culture Sport and Tourism,054813,Gala Theatre - Technical,Supplies and Services,304259,Equipment and Materials,02-Nov-2022,000008595127198,SPOTIFY,5815,Equipment-purchase and rental,9.99,0.00,9.99
Children and Young Peoples Services,Head of Early Help Inclusion & Vulnerable Children.,085957,Secure Management,Supplies and Services,304403,Equipment and Materials,02-Nov-2022,000008595127216,AMZNMktplace,5999,Other consumables,34.00,0.00,34.00
Children and Young Peoples Services,Head of Early Help Inclusion & Vulnerable Children.,085957,Secure Management,Supplies and Services,304403,Equipment and Materials,02-Nov-2022,000008595127220,AMZNMktplace,5999,Other consumables,25.75,0.00,25.75
Children and Young Peoples Services,Head of Early Help Inclusion & Vulnerable Children.,085957,Secure Management,Supplies and Services,304403,Equipment and Materials,02-Nov-2022,000008595127222,AMZNMktplace,5999,Other consumables,79.51,0.00,79.51
Regeneration Economy and Growth,Business Durham CL0850,030714,Salvus House,Supplies and Services,324117,Provisions E324,02-Nov-2022,000008595127232,SP VENDING SUPERSTOR,5411,Catering costs - provisions,36.34,0.00,36.34
Children and Young Peoples Services,Head of Childrens Social Care,085364,Children Looked After Team 1,Supplies and Services,328041,Clothing uniforms and laundry E328,02-Nov-2022,000008595127270,ARGOS LTD,5310,Clothing uniforms and laundry,49.99,0.00,49.99
Children and Young Peoples Services,Head of Early Help Inclusion & Vulnerable Children.,085955,Auckland,Transfer Payments,515002,Social Services Clients,02-Nov-2022,000008595127282,Footasylum Limited,5651,Pocket money,91.99,0.00,91.99
Children and Young Peoples Services,Head of Early Help Inclusion & Vulnerable Children.,085955,Auckland,Transfer Payments,515002,Social Services Clients,02-Nov-2022,000008595127284,Footasylum Limited,5651,Pocket money,23.94,0.00,23.94
Children and Young Peoples Services,Head of Early Help Inclusion & Vulnerable Children.,085956,Lumley,Transfer Payments,515002,Social Services Clients,02-Nov-2022,000008595127286,AMZNMktplace,5999,Pocket money,13.99,2.33,11.66
Children and Young Peoples Services,Head of Early Help Inclusion & Vulnerable Children.,085962,Aycliffe Secure - Durham,Supplies and Services,324117,Provisions E324,02-Nov-2022,000008595127292,TESCO STORES 6329,5411,Catering costs - provisions,61.10,0.00,61.10
Children and Young Peoples Services,Head of Early Help Inclusion & Vulnerable Children.,085956,Lumley,Transfer Payments,515002,Social Services Clients,02-Nov-2022,000008595127296,HOUSE OF FRASER,5311,Pocket money,-6.00,0.00,-6.00
Children and Young Peoples Services,Head of Early Help Inclusion & Vulnerable Children.,085956,Lumley,Transfer Payments,515002,Social Services Clients,02-Nov-2022,000008595127302,JD SPORTS INTERNET,5941,Pocket money,-70.00,0.00,-70.00
Children and Young Peoples Services,Head of Childrens Social Care,085334,West Rainton Satelite Home,Supplies and Services,308011,Furniture,02-Nov-2022,000008595127308,Dunelm SoftFurnishings,5712,Furniture repair and replacement,170.00,0.00,170.00
Children and Young Peoples Services,Head of Education and Skills,070169,Durham SSP,Supplies and Services,304403,Equipment and Materials,02-Nov-2022,000008595127324,AMZNMktplace,5999,Other consumables,10.80,0.00,10.80
Children and Young Peoples Services,Head of Education and Skills,070169,Durham SSP,Supplies and Services,304259,Equipment and Materials,02-Nov-2022,000008595127326,GEAR4MUSIC,5733,Equipment-purchase and rental,284.99,47.50,237.49
Children and Young Peoples Services,Head of Education and Skills,070169,Durham SSP,Supplies and Services,384999,Miscellaneous Expenses,02-Nov-2022,000008595127328,FINDEL EDUCATION,5969,Other expenses,494.35,82.39,411.96
Neighbourhoods and Climate Change,Environmental Services,031200,North Pennines Core,Supplies and Services,304403,Equipment and Materials,02-Nov-2022,000008595127342,W E & J ROWLE,5947,Other consumables,5.99,0.00,5.99
Children and Young Peoples Services,Head of Early Help Inclusion & Vulnerable Children.,088106,Ferryhill & N. Aycliffe Intensive Family Support Team,Supplies and Services,364301,Grants to Voluntary Organisations,02-Nov-2022,000008595127348,ARGOS LTD,5310,Hardship,32.00,0.00,32.00
Dedicated Schools Grant BG0015,DSG Schools Block,418517,Belmont Community School 004185 - Pupil Premium,Supplies and Services,364301,Grants to Voluntary Organisations,02-Nov-2022,000008595127408,SHOE ZONE (INTERNET),5661,Hardship,19.99,3.33,16.66
Dedicated Schools Grant BG0015,DSG Schools Block,418514,Belmont Community School 004185 - Music,Supplies and Services,304403,Equipment and Materials,02-Nov-2022,000008595127412,Amazon.co.uk D39X44WM5,5969,Other consumables,20.67,0.00,20.67
Dedicated Schools Grant BG0015,DSG Schools Block,418514,Belmont Community School 004185 - Music,Supplies and Services,304403,Equipment and Materials,02-Nov-2022,000008595127414,Amazon.co.uk JG1QR5Y05,5969,Other consumables,20.50,0.00,20.50
Adult and Health Services,Head of Adults,055643,Hawthorn House LD Respite Unit,Supplies and Services,304403,Equipment and Materials,02-Nov-2022,000008595127448,AMZNMktplace,5999,Other consumables,43.00,7.17,35.83
Resources BK0010,Procurement Sales & Business Services,069800,Corporate Procurement 069800,Employees,040149,Recruitment Instruction and Training,02-Nov-2022,000008595127486,WWW.CIPS.ORG,8699,Training-all costs,90.00,0.00,90.00
Children and Young Peoples Services,Head of Education and Skills,071732,Dean Bank Childcare,Supplies and Services,324117,Provisions E324,02-Nov-2022,000008595127508,B&M 147 - FERRYHILL,5399,Catering costs - provisions,2.76,0.00,2.76
Neighbourhoods and Climate Change,Environmental Services,031200,North Pennines Core,Supplies and Services,324117,Provisions E324,02-Nov-2022,000008595127526,SumUp The Hemmel Caf,5811,Catering costs - provisions,12.20,0.00,12.20
Neighbourhoods and Climate Change,Environmental Services,031200,North Pennines Core,Supplies and Services,324117,Provisions E324,02-Nov-2022,000008595127528,The Coffee House,5462,Catering costs - provisions,2.90,0.00,2.90
Neighbourhoods and Climate Change,Environmental Services,031200,North Pennines Core,Transport,235057,Public Transport,02-Nov-2022,000008595127530,PRINCE BISHOP SHOPPING,7523,Staff travelling,3.30,0.00,3.30
Neighbourhoods and Climate Change,Environmental Services,031200,North Pennines Core,Supplies and Services,324117,Provisions E324,02-Nov-2022,000008595127532,TESCO STORES 6029,5411,Catering costs - provisions,6.80,0.00,6.80
Neighbourhoods and Climate Change,Partnerships & Community Engagement Div.,060700,Civil Contingencies Unit 060700,Supplies and Services,304403,Equipment and Materials,02-Nov-2022,000008595127544,WWW.SURVIVALAIDS.COM,5999,Other consumables,15.94,0.00,15.94
Children and Young Peoples Services,Head of Childrens Social Care,085331,New Lea Childrens Home,Supplies and Services,332047,Printing Stationery and Gen Off Exps,02-Nov-2022,000008595127550,Vue Cinemas,7832,Stationery,11.98,0.00,11.98
Children and Young Peoples Services,Head of Childrens Social Care,085331,New Lea Childrens Home,Supplies and Services,332047,Printing Stationery and Gen Off Exps,02-Nov-2022,000008595127552,Vue Cinema,7832,Stationery,21.98,0.00,21.98
Children and Young Peoples Services,Head of Early Help Inclusion & Vulnerable Children.,088115,Young Parents Programme 088115,Supplies and Services,384302,Miscellaneous Expenses,02-Nov-2022,000008595127560,ASDA SUPERSTORE,5411,Activity expenses,4.35,0.00,4.35
Children and Young Peoples Services,Head of Early Help Inclusion & Vulnerable Children.,088115,Young Parents Programme 088115,Supplies and Services,384302,Miscellaneous Expenses,02-Nov-2022,000008595127564,ASDA SUPERSTORE,5411,Activity expenses,17.10,0.00,17.10
Children and Young Peoples Services,Head of Early Help Inclusion & Vulnerable Children.,085957,Secure Management,Supplies and Services,304405,Equipment and Materials,02-Nov-2022,000008595127574,AMZNMktplace,5999,Medical supplies,15.99,2.67,13.32
Children and Young Peoples Services,Head of Early Help Inclusion & Vulnerable Children.,085957,Secure Management,Supplies and Services,304259,Equipment and Materials,02-Nov-2022,000008595127576,AMZNMKTPLACE AMAZON.CO,5999,Equipment-purchase and rental,11.50,1.92,9.58
Children and Young Peoples Services,Head of Early Help Inclusion & Vulnerable Children.,085957,Secure Management,Premises,108099,Service Repairs and Maintenance,02-Nov-2022,000008595127578,WWW.SCREWFIX.COM,5211,General repairs 108099,51.48,0.00,51.48
Children and Young Peoples Services,Head of Childrens Social Care,085351,Framwellgate Moor CU,Supplies and Services,304403,Equipment and Materials,02-Nov-2022,000008595127630,AMZNMktplace,5999,Other consumables,8.99,1.50,7.49
Children and Young Peoples Services,Head of Education and Skills,071802,Louisa Cent Nursery,Supplies and Services,324117,Provisions E324,02-Nov-2022,000008595127638,ASDA SUPERSTORE,5411,Catering costs - provisions,1.00,0.00,1.00
Children and Young Peoples Services,Head of Education and Skills,071802,Louisa Cent Nursery,Supplies and Services,324117,Provisions E324,02-Nov-2022,000008595127642,ASDA SUPERSTORE,5411,Catering costs - provisions,4.00,0.00,4.00
Children and Young Peoples Services,Head of Education and Skills,071802,Louisa Cent Nursery,Supplies and Services,324117,Provisions E324,02-Nov-2022,000008595127646,ASDA SUPERSTORE,5411,Catering costs - provisions,14.74,0.00,14.74
Children and Young Peoples Services,Head of Childrens Social Care,085347,Solo Home The Manse,Supplies and Services,308011,Furniture,02-Nov-2022,000008595127652,Dunelm SoftFurnishings,5712,Furniture repair and replacement,298.95,0.00,298.95
Children and Young Peoples Services,Head of Childrens Social Care,085347,Solo Home The Manse,Supplies and Services,304999,Equipment and Materials,02-Nov-2022,000008595127658,STARBUCKS,5815,Misc equipment tools and materials,13.03,0.00,13.03
Children and Young Peoples Services,Head of Childrens Social Care,085347,Solo Home The Manse,Supplies and Services,308011,Furniture,02-Nov-2022,000008595127662,The Range,5719,Furniture repair and replacement,20.90,0.00,20.90
Children and Young Peoples Services,Head of Childrens Social Care,085347,Solo Home The Manse,Supplies and Services,308011,Furniture,02-Nov-2022,000008595127666,The Range,5719,Furniture repair and replacement,11.90,0.00,11.90
Children and Young Peoples Services,Head of Childrens Social Care,085614,Families First Durham West,Supplies and Services,364340,Grants to Voluntary Organisations,02-Nov-2022,000008595127692,WWW.GONORTHEAST.CO.UK,4111,Contact expenses,19.50,0.00,19.50
Children and Young Peoples Services,Head of Childrens Social Care,085614,Families First Durham West,Supplies and Services,364340,Grants to Voluntary Organisations,02-Nov-2022,000008595127696,WWW.GONORTHEAST.CO.UK,4111,Contact expenses,19.50,0.00,19.50
Children and Young Peoples Services,Head of Childrens Social Care,085633,Families First Chester-Le-Street,Supplies and Services,364340,Grants to Voluntary Organisations,02-Nov-2022,000008595127700,WWW.GONORTHEAST.CO.UK,4111,Contact expenses,30.00,0.00,30.00
Children and Young Peoples Services,Head of Early Help Inclusion & Vulnerable Children.,088100,Durham & CLS Intensive Family Support Team,Supplies and Services,304259,Equipment and Materials,02-Nov-2022,000008595127704,SP COLLINS DEBDEN,5943,Equipment-purchase and rental,17.97,0.00,17.97
Children and Young Peoples Services,Head of Early Help Inclusion & Vulnerable Children.,088100,Durham & CLS Intensive Family Support Team,Supplies and Services,304259,Equipment and Materials,02-Nov-2022,000008595127710,WILKO.COM,5399,Equipment-purchase and rental,17.35,0.00,17.35
Children and Young Peoples Services,Head of Early Help Inclusion & Vulnerable Children.,088100,Durham & CLS Intensive Family Support Team,Supplies and Services,304259,Equipment and Materials,02-Nov-2022,000008595127714,ASDA GEORGE COM LEEDS,5411,Equipment-purchase and rental,42.00,0.00,42.00
Regeneration Economy and Growth,Economic Development Level C,030772,CLLD South,Supplies and Services,324117,Provisions E324,02-Nov-2022,000008595127734,SAINSBURY`S S/MKT,5411,Catering costs - provisions,5.65,0.00,5.65
Children and Young Peoples Services,Head of Childrens Social Care,085332,Middlestone Moor CU,Supplies and Services,348037,Subsistence E348,02-Nov-2022,000008595127762,43039235 COSTA COFFEE,5814,Subsistence,6.70,0.00,6.70
Adult and Health Services,Head of Adults,052229,Countywide AMHP Team,Supplies and Services,338048,Services,02-Nov-2022,000008595127764,HMCTS GRIMSBY&SCUNTHOR,9222,Court costs 338048,81.00,0.00,81.00
Adult and Health Services,Head of Adults,055310,Positive Journeys (Tudhoe),Supplies and Services,324117,Provisions E324,02-Nov-2022,000008595127774,SPAR MENDIP AVENUE,5499,Catering costs - provisions,1.65,0.00,1.65
Regeneration Economy and Growth,Planning & Housing,031634,LOCAL LETTINGS AGENCY,Premises,120037,Energy Costs,02-Nov-2022,000008595127782,WWW.UTILITA.CO.UK,4900,Other fuels,40.00,0.00,40.00
Children and Young Peoples Services,Head of Education and Skills,070168,School Games Organiser,Supplies and Services,304403,Equipment and Materials,02-Nov-2022,000008595127808,AMZNMKTPLACE AMAZON.CO,5999,Other consumables,68.49,0.00,68.49
Children and Young Peoples Services,Head of Early Help Inclusion & Vulnerable Children.,088101,Bullion Lane & Brandon Family Centre,Supplies and Services,324117,Provisions E324,02-Nov-2022,000008595127812,MARKS&SPENCER PLC,5411,Catering costs - provisions,60.00,0.00,60.00
Children and Young Peoples Services,Head of Early Help Inclusion & Vulnerable Children.,088101,Bullion Lane & Brandon Family Centre,Supplies and Services,324117,Provisions E324,02-Nov-2022,000008595127818,ASDA GROCERIES ONLINE,5411,Catering costs - provisions,26.75,0.00,26.75
Children and Young Peoples Services,Head of Early Help Inclusion & Vulnerable Children.,088101,Bullion Lane & Brandon Family Centre,Supplies and Services,324117,Provisions E324,02-Nov-2022,000008595127822,ASDA GROCERIES ONLINE,5411,Catering costs - provisions,100.70,0.00,100.70
Neighbourhoods and Climate Change,Environmental Services,010301,C&G - North Grounds Maintenance,Supplies and Services,304999,Equipment and Materials,02-Nov-2022,000008595127824,Harelaw sawmill delive,5251,Misc equipment tools and materials,61.92,0.00,61.92
Regeneration Economy and Growth,Corporate Property and Land,030691,Catering - Durham Dales Centre,Supplies and Services,324117,Provisions E324,02-Nov-2022,000008595127846,TESCO STORES 6329,5411,Catering costs - provisions,48.23,0.00,48.23
Regeneration Economy and Growth,Corporate Property and Land,010525,Catering - Green Lane,Supplies and Services,324117,Provisions E324,02-Nov-2022,000008595202666,JR HOLLAND FOODSERVICE,5499,Catering costs - provisions,62.43,0.00,62.43
Regeneration Economy and Growth,Corporate Property and Land,030691,Catering - Durham Dales Centre,Supplies and Services,324117,Provisions E324,02-Nov-2022,000008595202670,JR HOLLAND FOODSERVICE,5499,Catering costs - provisions,23.97,0.00,23.97
Regeneration Economy and Growth,Corporate Property and Land,030691,Catering - Durham Dales Centre,Supplies and Services,324117,Provisions E324,02-Nov-2022,000008595202672,JR HOLLAND FOODSERVICE,5499,Catering costs - provisions,199.37,0.00,199.37
Regeneration Economy and Growth,Corporate Property and Land,030691,Catering - Durham Dales Centre,Supplies and Services,384999,Miscellaneous Expenses,02-Nov-2022,000008595202674,G M PACKAGING UK LIMIT,5046,Other expenses,52.81,0.00,52.81
Adult and Health Services,Head of Adults,055643,Hawthorn House LD Respite Unit,Supplies and Services,324117,Provisions E324,02-Nov-2022,000008595202678,JR HOLLAND FOODSERVICE,5499,Catering costs - provisions,15.23,0.00,15.23
Adult and Health Services,Head of Adults,055643,Hawthorn House LD Respite Unit,Supplies and Services,324117,Provisions E324,02-Nov-2022,000008595202680,JR HOLLAND FOODSERVICE,5499,Catering costs - provisions,15.39,0.00,15.39
Regeneration Economy and Growth,Corporate Property and Land,021234,Catering - Locomotion,Supplies and Services,324117,Provisions E324,02-Nov-2022,000008595202684,JR HOLLAND FOODSERVICE,5499,Catering costs - provisions,24.28,0.00,24.28
Regeneration Economy and Growth,Culture Sport and Tourism,054812,Gala Theatre - Catering etc,Supplies and Services,324117,Provisions E324,02-Nov-2022,000008595202688,JR HOLLAND FOODSERVICE,5499,Catering costs - provisions,21.98,0.00,21.98
Regeneration Economy and Growth,Culture Sport and Tourism,054812,Gala Theatre - Catering etc,Supplies and Services,384999,Miscellaneous Expenses,02-Nov-2022,000008595202690,G M PACKAGING UK LIMIT,5046,Other expenses,250.02,0.00,250.02
Regeneration Economy and Growth,Corporate Property and Land,021242,Catering - County Hall,Supplies and Services,324117,Provisions E324,02-Nov-2022,000008595202698,JR HOLLAND FOODSERVICE,5499,Catering costs - provisions,35.94,0.00,35.94
Regeneration Economy and Growth,Corporate Property and Land,021324,Catering - Meadowfield,Supplies and Services,324117,Provisions E324,02-Nov-2022,000008595202702,JR HOLLAND FOODSERVICE,5499,Catering costs - provisions,39.50,0.00,39.50
Regeneration Economy and Growth,Corporate Property and Land,021324,Catering - Meadowfield,Supplies and Services,324117,Provisions E324,02-Nov-2022,000008595202704,JR HOLLAND FOODSERVICE,5499,Catering costs - provisions,45.09,0.00,45.09
Regeneration Economy and Growth,Business Durham CL0850,030689,Inward Investment and Aftercare,Supplies and Services,342222,Computers and Communications,02-Nov-2022,000008600625774,FASTHOSTS,4816,Comp hardware purch-network servers,63.00,0.00,63.00
Regeneration Economy and Growth,Business Durham CL0850,030689,Inward Investment and Aftercare,Supplies and Services,342222,Computers and Communications,02-Nov-2022,000008600625780,FASTHOSTS,4816,Comp hardware purch-network servers,75.06,0.00,75.06
Children and Young Peoples Services,Head of Education and Skills,071801,Selby Cottage Childcare Centre,Supplies and Services,304403,Equipment and Materials,02-Nov-2022,000008600625784,AMZNMKTPLACE AMAZON.CO,5999,Other consumables,4.99,0.83,4.16
Children and Young Peoples Services,Head of Education and Skills,075035,DurhamDirections Re-engagement,Supplies and Services,364301,Grants to Voluntary Organisations,02-Nov-2022,000008600625850,MATALAN.CO.UK,5691,Hardship,33.95,0.00,33.95
Regeneration Economy and Growth,Culture Sport and Tourism,054502,HM Prison Frankland,Supplies and Services,304259,Equipment and Materials,02-Nov-2022,000008600625860,THE READING AGENCY,2791,Equipment-purchase and rental,162.00,27.00,135.00
Children and Young Peoples Services,Head of Childrens Social Care,085342,16 Hickstead Rise (previously 9 Cedar Ave),Supplies and Services,324117,Provisions E324,02-Nov-2022,000008600625874,STARBUCKS BISHOP AUCKL,5499,Catering costs - provisions,11.65,0.00,11.65
Children and Young Peoples Services,Head of Childrens Social Care,085342,16 Hickstead Rise (previously 9 Cedar Ave),Supplies and Services,304999,Equipment and Materials,02-Nov-2022,000008600625876,HOME BARGAINS,5251,Misc equipment tools and materials,19.08,0.00,19.08
Children and Young Peoples Services,Head of Childrens Social Care,085332,Middlestone Moor CU,Supplies and Services,304999,Equipment and Materials,02-Nov-2022,000008600625892,HOME BARGAINS SPENNYMO,5251,Misc equipment tools and materials,91.08,0.00,91.08
Children and Young Peoples Services,Head of Childrens Social Care,085341,High Etherley Satelite Home,Supplies and Services,324117,Provisions E324,02-Nov-2022,000008600626056,774 026,5411,Catering costs - provisions,10.59,0.00,10.59
Children and Young Peoples Services,Head of Childrens Social Care,085364,Children Looked After Team 1,Supplies and Services,328041,Clothing uniforms and laundry E328,02-Nov-2022,000008600626100,ARGOS LTD,5310,Clothing uniforms and laundry,-49.99,0.00,-49.99
Children and Young Peoples Services,Head of Childrens Social Care,085342,16 Hickstead Rise (previously 9 Cedar Ave),Supplies and Services,324117,Provisions E324,02-Nov-2022,000008600626228,ALDI 74 774,5411,Catering costs - provisions,14.04,0.00,14.04
Children and Young Peoples Services,Head of Childrens Social Care,085331,New Lea Childrens Home,Supplies and Services,304999,Equipment and Materials,02-Nov-2022,000008600626232,HOME BARGAINS,5251,Misc equipment tools and materials,21.74,0.00,21.74
Neighbourhoods and Climate Change,Environmental Services,031200,North Pennines Core,Supplies and Services,348037,Subsistence E348,02-Nov-2022,000008600626272,ZTL Coffee and Kuriosi,5812,Subsistence,11.50,0.00,11.50
Dedicated Schools Grant BG0015,DSG Schools Block,231104,Peases West Primary 2311 - General Curriculum,Supplies and Services,304403,Equipment and Materials,02-Nov-2022,000008600626326,AMZNMKTPLACE AMAZON.CO,5999,Other consumables,65.44,10.91,54.53
Children and Young Peoples Services,Head of Childrens Social Care,085332,Middlestone Moor CU,Supplies and Services,348037,Subsistence E348,02-Nov-2022,000008600626452,MCDONALDS,5812,Subsistence,8.19,0.00,8.19
Resources BK0010,HR & Employee Services,066896,Head of People & Talent Management,Supplies and Services,304403,Equipment and Materials,02-Nov-2022,000008600626466,AMZNMKTPLACE AMAZON.CO,5999,Other consumables,7.99,1.33,6.66
Dedicated Schools Grant BG0015,DSG Schools Block,417621,Greenfield Community College 004176 - Ext Sport&Health Funds,Supplies and Services,304403,Equipment and Materials,03-Nov-2022,000008595126950,AMZNMktplace,5999,Other consumables,74.97,12.51,62.46
Adult and Health Services,Head of Adults,055302,Durham Pathways,Supplies and Services,304403,Equipment and Materials,03-Nov-2022,000008595127034,AMZNMktplace,5999,Other consumables,34.98,5.83,29.15
Dedicated Schools Grant BG0015,DSG Schools Block,110020,The Woodlands 1100 - Ed Health Needs,Supplies and Services,338076,Services,03-Nov-2022,000008600625790,EB RESEARCHED DURHAM,7399,Service level agreements-other,45.32,0.00,45.32
Dedicated Schools Grant BG0015,DSG Schools Block,417634,Greenfield Community College 004176 - PGCE Fund,Supplies and Services,304403,Equipment and Materials,03-Nov-2022,000008600625800,Amazon.co.uk BQ1744SO5,5969,Other consumables,49.99,0.00,49.99
Dedicated Schools Grant BG0015,DSG Schools Block,417631,Greenfield Community College 004176 - Time 4 Success,Supplies and Services,304403,Equipment and Materials,03-Nov-2022,000008600625802,AMZNMktplace,5999,Other consumables,24.89,4.15,20.74
Dedicated Schools Grant BG0015,DSG Schools Block,417631,Greenfield Community College 004176 - Time 4 Success,Supplies and Services,304403,Equipment and Materials,03-Nov-2022,000008600625804,AMZNMktplace,5999,Other consumables,39.70,6.62,33.08
Dedicated Schools Grant BG0015,DSG Schools Block,417611,Greenfield Community College 004176 - Technology,Supplies and Services,304403,Equipment and Materials,03-Nov-2022,000008600625806,ASDA GROCERIES ONLINE,5411,Other consumables,242.19,0.00,242.19
Dedicated Schools Grant BG0015,DSG Schools Block,417634,Greenfield Community College 004176 - PGCE Fund,Supplies and Services,304403,Equipment and Materials,03-Nov-2022,000008600625808,Amazon.co.uk EX4F42BM5,5969,Other consumables,21.99,0.00,21.99
Dedicated Schools Grant BG0015,DSG Schools Block,417611,Greenfield Community College 004176 - Technology,Supplies and Services,304403,Equipment and Materials,03-Nov-2022,000008600625810,ASDA GROCERIES ONLINE,5411,Other consumables,-4.50,0.00,-4.50
Dedicated Schools Grant BG0015,DSG Schools Block,417611,Greenfield Community College 004176 - Technology,Supplies and Services,304403,Equipment and Materials,03-Nov-2022,000008600625812,ASDA GROCERIES ONLINE,5411,Other consumables,-5.50,0.00,-5.50
Children and Young Peoples Services,Head of Childrens Social Care,085357,LAC Bespoke Placements,Third Party Payments,430100,Rendered by Private Contractors,03-Nov-2022,000008600625828,SQ ST JAMES APARTMENT,1520,Payments to sub-contractors,"4,260.00",0.00,4260.00
Children and Young Peoples Services,Head of Childrens Social Care,085357,LAC Bespoke Placements,Third Party Payments,430100,Rendered by Private Contractors,03-Nov-2022,000008600625830,SQ ST JAMES APARTMENT,1520,Payments to sub-contractors,"4,000.00",0.00,4000.00
Children and Young Peoples Services,Head of Childrens Social Care,085357,LAC Bespoke Placements,Third Party Payments,430100,Rendered by Private Contractors,03-Nov-2022,000008600625832,SQ ST JAMES APARTMENT,1520,Payments to sub-contractors,"6,903.00",0.00,6903.00
Resources BK0010,Legal & Democratic Services,069326,Practice Management,Supplies and Services,304259,Equipment and Materials,03-Nov-2022,000008600625840,DARLINGTON BOROUGH COU,9399,Equipment-purchase and rental,11.00,0.00,11.00
Children and Young Peoples Services,Head of Education and Skills,075033,DurhamWorks 3,Supplies and Services,364301,Grants to Voluntary Organisations,03-Nov-2022,000008600625842,WWW.GONORTHEAST.CO.UK,4111,Hardship,72.00,0.00,72.00
Children and Young Peoples Services,Head of Education and Skills,075035,DurhamDirections Re-engagement,Supplies and Services,364301,Grants to Voluntary Organisations,03-Nov-2022,000008600625844,WWW.GONORTHEAST.CO.UK,4111,Hardship,72.00,0.00,72.00
Children and Young Peoples Services,Head of Education and Skills,075033,DurhamWorks 3,Supplies and Services,364301,Grants to Voluntary Organisations,03-Nov-2022,000008600625848,AMZNMktplace,5999,Hardship,24.89,0.00,24.89
Children and Young Peoples Services,Head of Education and Skills,075034,Youth Futures Foundation,Supplies and Services,364301,Grants to Voluntary Organisations,03-Nov-2022,000008600625852,DVLA DRIVER ONLINE,9399,Hardship,34.00,0.00,34.00
Regeneration Economy and Growth,Culture Sport and Tourism,054966,Gala Theatre - Gala Productions,Supplies and Services,338047,Services,03-Nov-2022,000008600625862,RISUSLTDTRI,5945,Direct production costs,136.10,22.68,113.42
Regeneration Economy and Growth,Planning & Housing,031634,LOCAL LETTINGS AGENCY,Supplies and Services,338066,Services,03-Nov-2022,000008600625920,RSM PROPERTY,6513,Professional fees 338066,200.00,0.00,200.00
Neighbourhoods and Climate Change,Environmental Services,010301,C&G - North Grounds Maintenance,Supplies and Services,304221,Equipment and Materials,03-Nov-2022,000008600625924,B & Q 1343,5200,Direct materials,38.00,0.00,38.00
Neighbourhoods and Climate Change,Environmental Services,010301,C&G - North Grounds Maintenance,Supplies and Services,304221,Equipment and Materials,03-Nov-2022,000008600625926,SCREWFIX DIR LTD,5211,Direct materials,278.80,0.00,278.80
Neighbourhoods and Climate Change,Environmental Services,010367,C&G - South Grounds Maintenance,Supplies and Services,304221,Equipment and Materials,03-Nov-2022,000008600625946,SCREWFIX DIR LTD,5211,Direct materials,4.44,0.74,3.70
Neighbourhoods and Climate Change,Environmental Services,010367,C&G - South Grounds Maintenance,Supplies and Services,304221,Equipment and Materials,03-Nov-2022,000008600625946 - 1,SCREWFIX DIR LTD,5211,Direct materials,0.03,,0.03
Children and Young Peoples Services,Head of Childrens Social Care,085624,Families First Crook and Barnard Castle,Supplies and Services,364301,Grants to Voluntary Organisations,03-Nov-2022,000008600625954,ARGOS LTD,5310,Hardship,32.00,0.00,32.00
Children and Young Peoples Services,Head of Childrens Social Care,085624,Families First Crook and Barnard Castle,Supplies and Services,364301,Grants to Voluntary Organisations,03-Nov-2022,000008600625956,ARGOS LTD,5310,Hardship,54.95,9.16,45.79
Children and Young Peoples Services,Head of Childrens Social Care,085624,Families First Crook and Barnard Castle,Supplies and Services,364301,Grants to Voluntary Organisations,03-Nov-2022,000008600625958,ARGOS LTD,5310,Hardship,74.00,12.33,61.67
Children and Young Peoples Services,Head of Early Help Inclusion & Vulnerable Children.,088104,BA/BC/Crook Intensive Family Support Team,Supplies and Services,324117,Provisions E324,03-Nov-2022,000008600625960,TESCO STORES 6329,5411,Catering costs - provisions,13.50,0.00,13.50
Children and Young Peoples Services,Head of Early Help Inclusion & Vulnerable Children.,088105,W/Close and Willington Family Centre,Supplies and Services,304259,Equipment and Materials,03-Nov-2022,000008600625962,ASDA GEORGE COM LEEDS,5411,Equipment-purchase and rental,-48.00,0.00,-48.00
Children and Young Peoples Services,Head of Childrens Social Care,085380,Service Manager CLA Fostering,Supplies and Services,304403,Equipment and Materials,03-Nov-2022,000008600625964,SNRCARDIFF,5999,Other consumables,29.99,0.00,29.99
Resources BK0010,Procurement Sales & Business Services,065501,Business Support - Executive Support,Supplies and Services,332047,Printing Stationery and Gen Off Exps,03-Nov-2022,000008600625998,QUADIENT UK LTD,5111,Stationery,500.00,0.00,500.00
Children and Young Peoples Services,Head of Education and Skills,071732,Dean Bank Childcare,Supplies and Services,324117,Provisions E324,03-Nov-2022,000008600626028,ASDA GROCERIES ONLINE,5411,Catering costs - provisions,34.01,0.00,34.01
Children and Young Peoples Services,Head of Education and Skills,071732,Dean Bank Childcare,Supplies and Services,324117,Provisions E324,03-Nov-2022,000008600626030,ASDA GROCERIES ONLINE,5411,Catering costs - provisions,-3.34,0.00,-3.34
Adult and Health Services,Head of Adults,055302,Durham Pathways,Supplies and Services,328041,Clothing uniforms and laundry E328,03-Nov-2022,000008600626036,THE WORKS,5310,Clothing uniforms and laundry,7.00,0.00,7.00
Regeneration Economy and Growth,Culture Sport and Tourism,054966,Gala Theatre - Gala Productions,Supplies and Services,338047,Services,03-Nov-2022,000008600626038,SP MSUPPLIES,5399,Direct production costs,755.76,0.00,755.76
Regeneration Economy and Growth,Culture Sport and Tourism,054966,Gala Theatre - Gala Productions,Supplies and Services,338047,Services,03-Nov-2022,000008600626040,KINGFISHERDIRECT,5046,Direct production costs,71.98,0.00,71.98
Neighbourhoods and Climate Change,Environmental Services,010314,Nei.Prot - Bereavement Services,Supplies and Services,304259,Equipment and Materials,03-Nov-2022,000008600626048,DURHAM COUNTY COUNCIL,9399,Equipment-purchase and rental,11.00,0.00,11.00
Children and Young Peoples Services,Head of Education and Skills,071801,Selby Cottage Childcare Centre,Supplies and Services,324117,Provisions E324,03-Nov-2022,000008600626052,TESCO STORES 2278,5411,Catering costs - provisions,20.10,0.00,20.10
Children and Young Peoples Services,Head of Early Help Inclusion & Vulnerable Children.,085957,Secure Management,Supplies and Services,384999,Miscellaneous Expenses,03-Nov-2022,000008600626074,Amazon.co.uk 8G3RV4NJ5,5969,Other expenses,31.61,0.00,31.61
Children and Young Peoples Services,Head of Early Help Inclusion & Vulnerable Children.,085957,Secure Management,Supplies and Services,304403,Equipment and Materials,03-Nov-2022,000008600626076,AMZNMktplace,5999,Other consumables,15.00,0.00,15.00
Children and Young Peoples Services,Head of Early Help Inclusion & Vulnerable Children.,085957,Secure Management,Supplies and Services,384999,Miscellaneous Expenses,03-Nov-2022,000008600626078,Amazon.co.uk DE9CK3WD5,5969,Other expenses,69.00,11.50,57.50
Children and Young Peoples Services,Head of Early Help Inclusion & Vulnerable Children.,085957,Secure Management,Supplies and Services,384999,Miscellaneous Expenses,03-Nov-2022,000008600626078 - 1,Amazon.co.uk DE9CK3WD5,5969,Other expenses,132.81,,132.81
Children and Young Peoples Services,Head of Childrens Social Care,085364,Children Looked After Team 1,Transport,235057,Public Transport,03-Nov-2022,000008600626094,WWW.GONORTHEAST.CO.UK,4111,Staff travelling,7.00,0.00,7.00
Children and Young Peoples Services,Head of Childrens Social Care,085364,Children Looked After Team 1,Transport,235057,Public Transport,03-Nov-2022,000008600626096,WWW.GONORTHEAST.CO.UK,4111,Staff travelling,7.00,0.00,7.00
Children and Young Peoples Services,Head of Childrens Social Care,085364,Children Looked After Team 1,Supplies and Services,328041,Clothing uniforms and laundry E328,03-Nov-2022,000008600626098,ARGOS LTD,5310,Clothing uniforms and laundry,49.99,0.00,49.99
Children and Young Peoples Services,Head of Early Help Inclusion & Vulnerable Children.,085955,Auckland,Supplies and Services,324117,Provisions E324,03-Nov-2022,000008600626104,TESCO STORES 6329,5411,Catering costs - provisions,88.10,0.00,88.10
Children and Young Peoples Services,Head of Early Help Inclusion & Vulnerable Children.,088107,Wheatley Hill & N. Aycliffe Family Centre,Supplies and Services,324117,Provisions E324,03-Nov-2022,000008600626142,Domino s Pizza,5812,Catering costs - provisions,48.41,0.00,48.41
Children and Young Peoples Services,Head of Childrens Social Care,085341,High Etherley Satelite Home,Supplies and Services,324117,Provisions E324,03-Nov-2022,000008600626166,TESCO STORES 6329,5411,Catering costs - provisions,8.78,0.00,8.78
Children and Young Peoples Services,Head of Childrens Social Care,085341,High Etherley Satelite Home,Supplies and Services,324117,Provisions E324,03-Nov-2022,000008600626168,TESCO STORES 6329,5411,Catering costs - provisions,24.00,0.00,24.00
Dedicated Schools Grant BG0015,DSG Schools Block,418502,Belmont Community School 004185 - Science,Supplies and Services,304259,Equipment and Materials,03-Nov-2022,000008600626178,B & Q 1343,5200,Equipment-purchase and rental,44.00,0.00,44.00
Dedicated Schools Grant BG0015,DSG Schools Block,418516,Belmont Community School 004185 - Marketing,Supplies and Services,304403,Equipment and Materials,03-Nov-2022,000008600626180,AMZNMKTPLACE AMAZON.CO,5999,Other consumables,7.99,1.33,6.66
Dedicated Schools Grant BG0015,DSG Schools Block,418502,Belmont Community School 004185 - Science,Supplies and Services,304259,Equipment and Materials,03-Nov-2022,000008600626182,TESCO STORES 2371,5411,Equipment-purchase and rental,15.00,0.00,15.00
Dedicated Schools Grant BG0015,DSG Schools Block,418517,Belmont Community School 004185 - Pupil Premium,Supplies and Services,364301,Grants to Voluntary Organisations,03-Nov-2022,000008600626184,SHOE ZONE (INTERNET),5661,Hardship,12.99,2.17,10.82
Dedicated Schools Grant BG0015,DSG Schools Block,702826,Villa Real School 7028 - Ofsted HT,Employees,040149,Recruitment Instruction and Training,03-Nov-2022,000008600626188,SENHUB,8299,Training-all costs,180.00,0.00,180.00
Dedicated Schools Grant BG0015,DSG Schools Block,702807,Villa Real School 7028 - History & Geography,Transport,215995,Running Costs of Vehicles,03-Nov-2022,000008600626190,RSS VILLA,5541,Vehicle running expenses,15.00,0.00,15.00
Children and Young Peoples Services,Head of Childrens Social Care,085342,16 Hickstead Rise (previously 9 Cedar Ave),Supplies and Services,324117,Provisions E324,03-Nov-2022,000008600626208,HERON FOODS,5411,Catering costs - provisions,17.46,0.00,17.46
Children and Young Peoples Services,Head of Childrens Social Care,085342,16 Hickstead Rise (previously 9 Cedar Ave),Supplies and Services,324117,Provisions E324,03-Nov-2022,000008600626210,TESCO STORES 2916,5411,Catering costs - provisions,95.32,0.00,95.32
Regeneration Economy and Growth,Economic Development Level C,030776,LINKCD Flexible Fund,Supplies and Services,324117,Provisions E324,03-Nov-2022,000008600626224,SQ BON BONS SWEETS LI,5499,Catering costs - provisions,2.50,0.00,2.50
Regeneration Economy and Growth,Economic Development Level C,030776,LINKCD Flexible Fund,Transport,235057,Public Transport,03-Nov-2022,000008600626226,PAYBYPHONE RE DURHAM,7523,Staff travelling,3.30,0.00,3.30
Neighbourhoods and Climate Change,Environmental Services,010367,C&G - South Grounds Maintenance,Supplies and Services,304221,Equipment and Materials,03-Nov-2022,000008600626236,WWW.TUDORENVIRONMENTAL,5261,Direct materials,153.49,0.00,153.49
Children and Young Peoples Services,Head of Childrens Social Care,085347,Solo Home The Manse,Supplies and Services,384999,Miscellaneous Expenses,03-Nov-2022,000008600626240,Amazon.co.uk 9O6XZ4MZ5,5969,Other expenses,9.98,0.00,9.98
Children and Young Peoples Services,Head of Childrens Social Care,085347,Solo Home The Manse,Supplies and Services,304403,Equipment and Materials,03-Nov-2022,000008600626242,AMZNMktplace,5999,Other consumables,15.97,0.00,15.97
Regeneration Economy and Growth,Corporate Property and Land,011003,FM-Civic Bldgs-County Hall Durham,Supplies and Services,304403,Equipment and Materials,03-Nov-2022,000008600626276,AMZNMktplace,5999,Other consumables,127.92,21.32,106.60
Regeneration Economy and Growth,Corporate Property and Land,015015,FM-Civic Bldgs-Spectrum 8 Seaham,Supplies and Services,304403,Equipment and Materials,03-Nov-2022,000008600626276 - 1,AMZNMktplace,5999,Other consumables,0.04,,0.04
Children and Young Peoples Services,Head of Education and Skills,078100,Curric and Professional Development 078100,Supplies and Services,304403,Equipment and Materials,03-Nov-2022,000008600626282,AMZNBUSINESS 636U288D5,5999,Other consumables,14.95,0.00,14.95
Children and Young Peoples Services,Head of Early Help Inclusion & Vulnerable Children.,088102,Consett & Stanley Intensive Family Support Team,Supplies and Services,364301,Grants to Voluntary Organisations,03-Nov-2022,000008600626292,ASDA GEORGE COM LEEDS,5411,Hardship,482.95,0.00,482.95
Resources BK0010,Digital Services,065335,School Services - Implementations,Supplies and Services,304639,Equipment and Materials,03-Nov-2022,000008600626316,LAMBDATEK,5732,Technicians-supplies,99.42,0.00,99.42
Resources BK0010,Digital Services,065335,School Services - Implementations,Supplies and Services,304639,Equipment and Materials,03-Nov-2022,000008600626320,REPLACEBASE,5732,Technicians-supplies,143.12,0.00,143.12
Resources BK0010,Digital Services,065335,School Services - Implementations,Supplies and Services,304639,Equipment and Materials,03-Nov-2022,000008600626322,AMZNMKTPLACE AMAZON.CO,5999,Technicians-supplies,15.99,2.67,13.32
Regeneration Economy and Growth,Economic Development Level C,030771,Durham Advance Flexible Fund,Supplies and Services,324117,Provisions E324,03-Nov-2022,000008600626338,TESCO STORES 2371,5411,Catering costs - provisions,6.05,0.00,6.05
Children and Young Peoples Services,Head of Early Help Inclusion & Vulnerable Children.,085954,Walworth,Transfer Payments,515002,Social Services Clients,03-Nov-2022,000008600626340,Flannels,5999,Pocket money,64.99,0.00,64.99
Children and Young Peoples Services,Head of Early Help Inclusion & Vulnerable Children.,085954,Walworth,Transfer Payments,515002,Social Services Clients,03-Nov-2022,000008600626342,Footasylum Limited,5651,Pocket money,19.98,0.00,19.98
Children and Young Peoples Services,Head of Early Help Inclusion & Vulnerable Children.,085957,Secure Management,Premises,145023,Cleaning and Domestic Supplies,03-Nov-2022,000008600626346,Amazon.co.uk CP58L6YH5,5969,Cleaning and domestic materials,15.00,2.50,12.50
Children and Young Peoples Services,Head of Early Help Inclusion & Vulnerable Children.,085965,Barnard,Transfer Payments,515002,Social Services Clients,03-Nov-2022,000008600626350,JD SPORTS INTERNET,5941,Pocket money,110.00,0.00,110.00
Children and Young Peoples Services,Head of Early Help Inclusion & Vulnerable Children.,085965,Barnard,Transfer Payments,515002,Social Services Clients,03-Nov-2022,000008600626352,JD SPORTS INTERNET,5941,Pocket money,80.00,0.00,80.00
Children and Young Peoples Services,Head of Early Help Inclusion & Vulnerable Children.,085956,Lumley,Transfer Payments,515002,Social Services Clients,03-Nov-2022,000008600626354,JD SPORTS INTERNET,5941,Pocket money,16.99,0.00,16.99
Children and Young Peoples Services,Head of Early Help Inclusion & Vulnerable Children.,085954,Walworth,Transfer Payments,515002,Social Services Clients,03-Nov-2022,000008600626358,JD SPORTS INTERNET,5941,Pocket money,120.99,0.00,120.99
Children and Young Peoples Services,Head of Early Help Inclusion & Vulnerable Children.,085965,Barnard,Supplies and Services,304259,Equipment and Materials,03-Nov-2022,000008600626366,AMZNMKTPLACE AMAZON.CO,5999,Equipment-purchase and rental,29.99,5.00,24.99
Children and Young Peoples Services,Head of Early Help Inclusion & Vulnerable Children.,085962,Aycliffe Secure - Durham,Transfer Payments,515002,Social Services Clients,03-Nov-2022,000008600626370,ADIDASWWW.ADIDAS.CO.UK,5655,Pocket money,63.00,0.00,63.00
Neighbourhoods and Climate Change,Environmental Services,010367,C&G - South Grounds Maintenance,Third Party Payments,430100,Rendered by Private Contractors,03-Nov-2022,000008600626400,SQ CATHEDRAL LOCK AND,1520,Payments to sub-contractors,127.24,0.00,127.24
Regeneration Economy and Growth,Economic Development Level C,030772,CLLD South,Transport,235057,Public Transport,03-Nov-2022,000008600626430,WALKERGATE CAR PAR,7523,Staff travelling,3.10,0.00,3.10
Neighbourhoods and Climate Change,Environmental Services,031200,North Pennines Core,Supplies and Services,340001,Postages E340,03-Nov-2022,000008600626436,POST OFFICE COUNTER,9402,Postages,3.35,0.00,3.35
Resources BK0010,Resources Management CK0450,069000,Resources Management 069000,Supplies and Services,304403,Equipment and Materials,03-Nov-2022,000008600626460,AMZNMktplace,5999,Other consumables,54.98,9.16,45.82
Regeneration Economy and Growth,Communications Management,060270,Communications and Marketing,Supplies and Services,336005,Advertising E336,03-Nov-2022,000008600626488,LinkedIn 8420065554,7311,Advertising other than for staff,10.54,0.00,10.54
Children and Young Peoples Services,Head of Early Help Inclusion & Vulnerable Children.,088101,Bullion Lane & Brandon Family Centre,Supplies and Services,324117,Provisions E324,03-Nov-2022,000008600626558,CO-OP GROUP 010460,5411,Catering costs - provisions,8.93,0.00,8.93
Regeneration Economy and Growth,Corporate Property and Land,011296,Catering - Dunes,Supplies and Services,324117,Provisions E324,03-Nov-2022,000008600692578,JR HOLLAND FOODSERVICE,5499,Catering costs - provisions,-7.98,0.00,-7.98
Regeneration Economy and Growth,Culture Sport and Tourism,054235,Bishop Auckland Town Hall Cafe,Supplies and Services,324117,Provisions E324,03-Nov-2022,000008600692580,JR HOLLAND FOODSERVICE,5499,Catering costs - provisions,295.90,0.00,295.90
Neighbourhoods and Climate Change,Environmental Services,011060,C&G - Hardwick Park Catering,Supplies and Services,324117,Provisions E324,03-Nov-2022,000008600692582,JR HOLLAND FOODSERVICE,5499,Catering costs - provisions,34.28,0.00,34.28
Regeneration Economy and Growth,Corporate Property and Land,021234,Catering - Locomotion,Supplies and Services,384999,Miscellaneous Expenses,03-Nov-2022,000008600692584,ON A ROLL SANDWICH COM,5199,Other expenses,0.05,0.00,0.05
Regeneration Economy and Growth,Corporate Property and Land,021242,Catering - County Hall,Supplies and Services,324117,Provisions E324,03-Nov-2022,000008600692586,JR HOLLAND FOODSERVICE,5499,Catering costs - provisions,31.48,0.00,31.48
Regeneration Economy and Growth,Corporate Property and Land,021324,Catering - Meadowfield,Supplies and Services,324117,Provisions E324,03-Nov-2022,000008600692588,JR HOLLAND FOODSERVICE,5499,Catering costs - provisions,40.80,0.00,40.80
Regeneration Economy and Growth,Culture Sport and Tourism,030705,Visit County Durham 030705,Supplies and Services,304259,Equipment and Materials,03-Nov-2022,000008607713602,FASTHOSTS,4816,Equipment-purchase and rental,7.54,1.26,6.28
Adult and Health Services,Head of Adults,055302,Durham Pathways,Supplies and Services,324117,Provisions E324,03-Nov-2022,000008607714232,ALDI STORES,5411,Catering costs - provisions,20.34,0.00,20.34
Regeneration Economy and Growth,Culture Sport and Tourism,054966,Gala Theatre - Gala Productions,Supplies and Services,338047,Services,03-Nov-2022,000008607714244,SWELL UK,5995,Direct production costs,419.98,0.00,419.98
Regeneration Economy and Growth,Culture Sport and Tourism,054399,Local Delivery-Libraries,Supplies and Services,304403,Equipment and Materials,03-Nov-2022,000008607714654,AMZNBUSINESS CA0YT8KB5,5999,Other consumables,10.96,0.00,10.96
Regeneration Economy and Growth,Culture Sport and Tourism,054399,Local Delivery-Libraries,Supplies and Services,304403,Equipment and Materials,03-Nov-2022,000008607714660,AMZNBUSINESS 277BD24D5,5999,Other consumables,17.00,0.00,17.00
Children and Young Peoples Services,Head of Early Help Inclusion & Vulnerable Children.,079581,Emotional Wellbeing Team,Supplies and Services,304403,Equipment and Materials,03-Nov-2022,000008607715398,AMZNMKTPLACE AMAZON.CO,5999,Other consumables,5.71,0.95,4.76
Children and Young Peoples Services,Head of Childrens Social Care,085347,Solo Home The Manse,Supplies and Services,328041,Clothing uniforms and laundry E328,03-Nov-2022,000008607715770,ARGOS LTD,5310,Clothing uniforms and laundry,158.95,0.00,158.95
Children and Young Peoples Services,Head of Early Help Inclusion & Vulnerable Children.,079580,Mental Health Counselling,Supplies and Services,304403,Equipment and Materials,03-Nov-2022,000008607716142,AMZNMKTPLACE AMAZON.CO,5999,Other consumables,7.58,1.26,6.32
Neighbourhoods and Climate Change,Environmental Services,010900,Fleet - Meadowfield Fleet,Supplies and Services,304403,Equipment and Materials,03-Nov-2022,000008607716150,AMZNMKTPLACE AMAZON.CO,5999,Other consumables,22.99,3.83,19.16
Children and Young Peoples Services,Head of Early Help Inclusion & Vulnerable Children.,088113,Seaham & Laurel Avenue Family Centre,Supplies and Services,324117,Provisions E324,03-Nov-2022,000008607716512,ALDI 12 774,5411,Catering costs - provisions,10.04,0.00,10.04
Children and Young Peoples Services,Head of Early Help Inclusion & Vulnerable Children.,088101,Bullion Lane & Brandon Family Centre,Supplies and Services,304403,Equipment and Materials,03-Nov-2022,000008607716538,AMZNMKTPLACE AMAZON.CO,5999,Other consumables,59.40,9.90,49.50
Children and Young Peoples Services,Head of Early Help Inclusion & Vulnerable Children.,088101,Bullion Lane & Brandon Family Centre,Supplies and Services,304403,Equipment and Materials,03-Nov-2022,000008607716538 - 1,AMZNMKTPLACE AMAZON.CO,5999,Other consumables,0.10,,0.10
Regeneration Economy and Growth,Corporate Property and Land,010525,Catering - Green Lane,Supplies and Services,324117,Provisions E324,03-Nov-2022,000010360522603,BATLEYS PERTH,5300,Catering costs - provisions,157.98,26.33,131.65
Regeneration Economy and Growth,Corporate Property and Land,010525,Catering - Green Lane,Supplies and Services,324117,Provisions E324,03-Nov-2022,000010360522603 - 1,BATLEYS PERTH,5300,Catering costs - provisions,29.32,,29.32
Regeneration Economy and Growth,Corporate Property and Land,010525,Catering - Green Lane,Supplies and Services,324117,Provisions E324,03-Nov-2022,000010360522605,BATLEYS PERTH,5300,Catering costs - provisions,56.67,9.45,47.22
Neighbourhoods and Climate Change,Environmental Services,011060,C&G - Hardwick Park Catering,Supplies and Services,324117,Provisions E324,03-Nov-2022,000010360522617,BATLEYS PERTH,5300,Catering costs - provisions,174.42,29.07,145.35
Neighbourhoods and Climate Change,Environmental Services,011060,C&G - Hardwick Park Catering,Supplies and Services,324117,Provisions E324,03-Nov-2022,000010360522617 - 1,BATLEYS PERTH,5300,Catering costs - provisions,251.96,,251.96
Neighbourhoods and Climate Change,Environmental Services,011060,C&G - Hardwick Park Catering,Supplies and Services,324117,Provisions E324,03-Nov-2022,000010360522619,BATLEYS PERTH,5300,Catering costs - provisions,72.78,12.13,60.65
Neighbourhoods and Climate Change,Environmental Services,011060,C&G - Hardwick Park Catering,Supplies and Services,324117,Provisions E324,03-Nov-2022,000010360522619 - 1,BATLEYS PERTH,5300,Catering costs - provisions,20.25,,20.25
Regeneration Economy and Growth,Corporate Property and Land,021235,Catering - Wharton Park,Supplies and Services,324117,Provisions E324,03-Nov-2022,000010360522627,BATLEYS PERTH,5300,Catering costs - provisions,46.32,7.72,38.60
Regeneration Economy and Growth,Corporate Property and Land,021235,Catering - Wharton Park,Supplies and Services,324117,Provisions E324,03-Nov-2022,000010360522627 - 1,BATLEYS PERTH,5300,Catering costs - provisions,4.96,,4.96
Regeneration Economy and Growth,Culture Sport and Tourism,054775,Durham Town Hall 054775,Supplies and Services,304259,Equipment and Materials,04-Nov-2022,000008600625864,AMZNMktplace,5999,Equipment-purchase and rental,21.98,3.66,18.32
Adult and Health Services,Head of Adults,055302,Durham Pathways,Supplies and Services,304403,Equipment and Materials,04-Nov-2022,000008600626034,AMZNBusiness R80742EG5,5999,Other consumables,20.85,3.48,17.37
Regeneration Economy and Growth,Culture Sport and Tourism,054966,Gala Theatre - Gala Productions,Supplies and Services,338047,Services,04-Nov-2022,000008600626042,AMZNMktplace,5999,Direct production costs,34.80,5.80,29.00
Regeneration Economy and Growth,Culture Sport and Tourism,054966,Gala Theatre - Gala Productions,Supplies and Services,338047,Services,04-Nov-2022,000008600626042 - 1,AMZNMktplace,5999,Direct production costs,0.20,,0.20
Children and Young Peoples Services,Head of Early Help Inclusion & Vulnerable Children.,088115,Young Parents Programme 088115,Supplies and Services,384302,Miscellaneous Expenses,04-Nov-2022,000008600626294,AMZNBusiness TW47X5MN5,5999,Activity expenses,84.50,0.00,84.50
Children and Young Peoples Services,Head of Early Help Inclusion & Vulnerable Children.,085954,Walworth,Transfer Payments,515002,Social Services Clients,04-Nov-2022,000008600626362,BOOTS UK ECOMM,5912,Pocket money,35.00,0.00,35.00
Regeneration Economy and Growth,Corporate Property and Land,010932,CCS-Construction Consultancy Service (CCS),Supplies and Services,312009,Newspapers books and periodicals E312,04-Nov-2022,000008600626492,AMZNMktplace,5999,Newspapers books and periodicals,105.69,0.00,105.69
Regeneration Economy and Growth,Business Durham CL0850,030689,Inward Investment and Aftercare,Supplies and Services,342222,Computers and Communications,04-Nov-2022,000008607713310,FASTHOSTS,4816,Comp hardware purch-network servers,7.54,0.00,7.54
Children and Young Peoples Services,Head of Childrens Social Care,085560,Community Short Breaks,Supplies and Services,384700,Miscellaneous Expenses,04-Nov-2022,000008607713340,ARGOS LTD,5310,Miscellaneous grants,199.99,0.00,199.99
Regeneration Economy and Growth,Planning & Housing,031634,LOCAL LETTINGS AGENCY,Premises,120037,Energy Costs,04-Nov-2022,000008607713350,E.ON NEXT,4900,Other fuels,41.98,0.00,41.98
Children and Young Peoples Services,Head of Education and Skills,071801,Selby Cottage Childcare Centre,Supplies and Services,304403,Equipment and Materials,04-Nov-2022,000008607713374,AMZNMKTPLACE AMAZON.CO,5999,Other consumables,6.79,1.13,5.66
Dedicated Schools Grant BG0015,DSG Schools Block,110013,The Woodlands 1100 - Primary,Supplies and Services,312011,Newspapers books and periodicals E312,04-Nov-2022,000008607713422,SP COLLINS,5942,Books-school library,392.84,0.00,392.84
Dedicated Schools Grant BG0015,DSG Schools Block,417612,Greenfield Community College 004176 - PE,Supplies and Services,304403,Equipment and Materials,04-Nov-2022,000008607713434,TES RESOURCES,8299,Other consumables,6.00,1.00,5.00
Dedicated Schools Grant BG0015,DSG Schools Block,417614,Greenfield Community College 004176 - PSHE,Supplies and Services,304403,Equipment and Materials,04-Nov-2022,000008607713438,MCCORQUODALE MIDLANDS,5942,Other consumables,170.58,28.43,142.15
Children and Young Peoples Services,Head of Education and Skills,075033,DurhamWorks 3,Supplies and Services,364301,Grants to Voluntary Organisations,04-Nov-2022,000008607713486,PEARSON EDUCATION LTD.,8299,Hardship,60.99,0.00,60.99
Children and Young Peoples Services,Head of Education and Skills,075035,DurhamDirections Re-engagement,Supplies and Services,364301,Grants to Voluntary Organisations,04-Nov-2022,000008607713492,WWW.GONORTHEAST.CO.UK,4111,Hardship,25.00,0.00,25.00
Children and Young Peoples Services,Head of Education and Skills,075035,DurhamDirections Re-engagement,Supplies and Services,364301,Grants to Voluntary Organisations,04-Nov-2022,000008607713496,WWW.GUITARGUITAR.CO.UK,5733,Hardship,161.99,27.00,134.99
Regeneration Economy and Growth,Culture Sport and Tourism,054820,Gala Theatre - Overheads,Supplies and Services,304252,Equipment and Materials,04-Nov-2022,000008607713572,AMZNMktplace,5999,Equipment-repairsserviceinsurance,19.98,3.34,16.64
Regeneration Economy and Growth,Culture Sport and Tourism,054820,Gala Theatre - Overheads,Supplies and Services,304252,Equipment and Materials,04-Nov-2022,000008607713578,AMZNMktplace,5999,Equipment-repairsserviceinsurance,7.91,1.32,6.59
Regeneration Economy and Growth,Culture Sport and Tourism,054604,Seven Hills Spennymoor,Supplies and Services,340001,Postages E340,04-Nov-2022,000008607713584,QUADIENT UK LTD,5111,Postages,300.00,0.00,300.00
Regeneration Economy and Growth,Culture Sport and Tourism,054966,Gala Theatre - Gala Productions,Supplies and Services,338047,Services,04-Nov-2022,000008607713588,WWW.HOMEWAREESSENTIALS,5722,Direct production costs,117.00,0.00,117.00
Children and Young Peoples Services,Head of Childrens Social Care,085342,16 Hickstead Rise (previously 9 Cedar Ave),Supplies and Services,328041,Clothing uniforms and laundry E328,04-Nov-2022,000008607713610,NEXT RETAIL LTD,5651,Clothing uniforms and laundry,7.00,0.00,7.00
Children and Young Peoples Services,Head of Childrens Social Care,085332,Middlestone Moor CU,Supplies and Services,324117,Provisions E324,04-Nov-2022,000008607713652,WILKO RETAIL LIMITED,5399,Catering costs - provisions,7.00,0.00,7.00
Children and Young Peoples Services,Head of Childrens Social Care,085332,Middlestone Moor CU,Supplies and Services,324117,Provisions E324,04-Nov-2022,000008607713660,TESCO STORES 2371,5411,Catering costs - provisions,145.82,0.00,145.82
Neighbourhoods and Climate Change,Environmental Services,010383,C&G - South Street Cleansing,Supplies and Services,304403,Equipment and Materials,04-Nov-2022,000008607713870,MAXWELLS DIY,5231,Other consumables,20.00,3.33,16.67
Regeneration Economy and Growth,Corporate Property and Land,021242,Catering - County Hall,Supplies and Services,324117,Provisions E324,04-Nov-2022,000008607714014,TESCO STORES 2371,5411,Catering costs - provisions,73.25,0.00,73.25
Children and Young Peoples Services,Head of Childrens Social Care,085347,Solo Home The Manse,Employees,040149,Recruitment Instruction and Training,04-Nov-2022,000008607714126,STANDOUT CV,8999,Training-all costs,2.70,0.00,2.70
Children and Young Peoples Services,Head of Childrens Social Care,085358,Orchard House Sacriston Solo Home,Supplies and Services,344033,Telephones,04-Nov-2022,000008607714174,giffgaff,4814,Telephones general-all costs,10.00,0.00,10.00
Children and Young Peoples Services,Head of Childrens Social Care,085358,Orchard House Sacriston Solo Home,Supplies and Services,324117,Provisions E324,04-Nov-2022,000008607714178,ASDA GROCERIES ONLINE,5411,Catering costs - provisions,152.99,0.00,152.99
Children and Young Peoples Services,Head of Childrens Social Care,085358,Orchard House Sacriston Solo Home,Supplies and Services,324117,Provisions E324,04-Nov-2022,000008607714184,ASDA GROCERIES ONLINE,5411,Catering costs - provisions,15.65,0.00,15.65
Children and Young Peoples Services,Head of Childrens Social Care,085358,Orchard House Sacriston Solo Home,Supplies and Services,324117,Provisions E324,04-Nov-2022,000008607714190,TESCO STORES 6334,5411,Catering costs - provisions,14.40,0.00,14.40
Children and Young Peoples Services,Head of Childrens Social Care,085358,Orchard House Sacriston Solo Home,Supplies and Services,324117,Provisions E324,04-Nov-2022,000008607714198,ASDA GROCERIES ONLINE,5411,Catering costs - provisions,-8.93,0.00,-8.93
Regeneration Economy and Growth,Culture Sport and Tourism,054966,Gala Theatre - Gala Productions,Supplies and Services,338047,Services,04-Nov-2022,000008607714248,AMZNMktplace,5999,Direct production costs,20.49,3.42,17.07
Children and Young Peoples Services,Head of Education and Skills,071801,Selby Cottage Childcare Centre,Supplies and Services,324117,Provisions E324,04-Nov-2022,000008607714298,TESCO STORES 2278,5411,Catering costs - provisions,34.44,0.00,34.44
Regeneration Economy and Growth,Business Durham CL0850,030690,Durham Dales Centre - Tourist Information Centre,Supplies and Services,328041,Clothing uniforms and laundry E328,04-Nov-2022,000008607714302,M GOLUNSKI AND CO,5621,Clothing uniforms and laundry,468.54,0.00,468.54
Regeneration Economy and Growth,Business Durham CL0850,030690,Durham Dales Centre - Tourist Information Centre,Supplies and Services,328041,Clothing uniforms and laundry E328,04-Nov-2022,000008607714304,N.V. BAGS ACCESSORIES,5699,Clothing uniforms and laundry,472.99,0.00,472.99
Children and Young Peoples Services,Head of Childrens Social Care,085341,High Etherley Satelite Home,Supplies and Services,324117,Provisions E324,04-Nov-2022,000008607714312,774 026,5411,Catering costs - provisions,47.87,0.00,47.87
Regeneration Economy and Growth,Planning & Housing,031576,B& B - Temp Accom,Supplies and Services,364320,Grants to Voluntary Organisations,04-Nov-2022,000008607714374,HOTEL 52,7011,Accommodation assistance,240.00,0.00,240.00
Regeneration Economy and Growth,Planning & Housing,031576,B& B - Temp Accom,Supplies and Services,364320,Grants to Voluntary Organisations,04-Nov-2022,000008607714378,HOTEL 52,7011,Accommodation assistance,400.00,0.00,400.00
Regeneration Economy and Growth,Planning & Housing,031576,B& B - Temp Accom,Supplies and Services,364320,Grants to Voluntary Organisations,04-Nov-2022,000008607714382,HOTEL 52,7011,Accommodation assistance,135.00,0.00,135.00
Regeneration Economy and Growth,Economic Development Level C,030771,Durham Advance Flexible Fund,Supplies and Services,328041,Clothing uniforms and laundry E328,04-Nov-2022,000008607714472,ARGOS LTD,5310,Clothing uniforms and laundry,150.95,0.00,150.95
Children and Young Peoples Services,Head of Childrens Social Care,085364,Children Looked After Team 1,Supplies and Services,304259,Equipment and Materials,04-Nov-2022,000008607714490,FIFE COUNCIL,9399,Equipment-purchase and rental,-15.00,0.00,-15.00
Children and Young Peoples Services,Head of Early Help Inclusion & Vulnerable Children.,085957,Secure Management,Supplies and Services,304259,Equipment and Materials,04-Nov-2022,000008607714506,Amazon MP3,5735,Equipment-purchase and rental,8.99,0.00,8.99
Children and Young Peoples Services,Head of Early Help Inclusion & Vulnerable Children.,085957,Secure Management,Supplies and Services,304259,Equipment and Materials,04-Nov-2022,000008607714512,Amazon MP3,5735,Equipment-purchase and rental,0.98,0.00,0.98
Children and Young Peoples Services,Head of Early Help Inclusion & Vulnerable Children.,085957,Secure Management,Supplies and Services,304259,Equipment and Materials,04-Nov-2022,000008607714516,Amazon MP3,5735,Equipment-purchase and rental,0.98,0.00,0.98
Children and Young Peoples Services,Head of Early Help Inclusion & Vulnerable Children.,085957,Secure Management,Supplies and Services,304259,Equipment and Materials,04-Nov-2022,000008607714522,Amazon MP3,5735,Equipment-purchase and rental,0.98,0.00,0.98
Children and Young Peoples Services,Head of Early Help Inclusion & Vulnerable Children.,085957,Secure Management,Supplies and Services,304259,Equipment and Materials,04-Nov-2022,000008607714528,Amazon MP3,5735,Equipment-purchase and rental,0.98,0.00,0.98
Children and Young Peoples Services,Head of Early Help Inclusion & Vulnerable Children.,085957,Secure Management,Supplies and Services,304259,Equipment and Materials,04-Nov-2022,000008607714534,Amazon MP3,5735,Equipment-purchase and rental,0.98,0.00,0.98
Children and Young Peoples Services,Head of Early Help Inclusion & Vulnerable Children.,085957,Secure Management,Supplies and Services,304259,Equipment and Materials,04-Nov-2022,000008607714540,Amazon MP3,5735,Equipment-purchase and rental,0.98,0.00,0.98
Children and Young Peoples Services,Head of Early Help Inclusion & Vulnerable Children.,085965,Barnard,Supplies and Services,324117,Provisions E324,04-Nov-2022,000008607714546,TESCO STORES 6329,5411,Catering costs - provisions,120.81,0.00,120.81
Neighbourhoods and Climate Change,Environmental Services,010367,C&G - South Grounds Maintenance,Supplies and Services,304221,Equipment and Materials,04-Nov-2022,000008607714612,SCREWFIX DIR LTD,5211,Direct materials,15.99,2.67,13.32
Neighbourhoods and Climate Change,Environmental Services,031238,North Pennines - Tees Swale,Supplies and Services,304403,Equipment and Materials,04-Nov-2022,000008607714664,W E & J ROWLE,5947,Other consumables,29.96,0.00,29.96
Resources BK0010,Procurement Sales & Business Services,065501,Business Support - Executive Support,Transport,235057,Public Transport,04-Nov-2022,000008607714682,Oyster Online,4112,Staff travelling,20.00,0.00,20.00
Dedicated Schools Grant BG0015,DSG - In-yr academies/closures,419226,Durham Fed 4192 - Welfare/Pastoral,Supplies and Services,304403,Equipment and Materials,04-Nov-2022,000008607714722,THE PINK AND PASSIONAT,5992,Other consumables,30.00,0.00,30.00
Dedicated Schools Grant BG0015,DSG Schools Block,418518,Belmont Community School 004185 - School ICT costs,Supplies and Services,308011,Furniture,04-Nov-2022,000008607714850,POSTURITE LTD,5719,Furniture repair and replacement,8.39,1.40,6.99
Dedicated Schools Grant BG0015,DSG Schools Block,418517,Belmont Community School 004185 - Pupil Premium,Supplies and Services,364301,Grants to Voluntary Organisations,04-Nov-2022,000008607714856,MATALAN,5691,Hardship,30.48,5.08,25.40
Dedicated Schools Grant BG0015,DSG Schools Block,418517,Belmont Community School 004185 - Pupil Premium,Supplies and Services,364301,Grants to Voluntary Organisations,04-Nov-2022,000008607714856 - 1,MATALAN,5691,Hardship,23.02,,23.02
Dedicated Schools Grant BG0015,DSG Schools Block,418517,Belmont Community School 004185 - Pupil Premium,Supplies and Services,364301,Grants to Voluntary Organisations,04-Nov-2022,000008607714862,SHOE ZONE (INTERNET),5661,Hardship,14.99,2.50,12.49
Dedicated Schools Grant BG0015,DSG Schools Block,418517,Belmont Community School 004185 - Pupil Premium,Supplies and Services,364301,Grants to Voluntary Organisations,04-Nov-2022,000008607714864,SPORTSDIRECT 264,5941,Hardship,10.99,0.00,10.99
Regeneration Economy and Growth,Economic Development Level C,030554,International Relations 030554,Transport,235057,Public Transport,04-Nov-2022,000008607714874,PRINCE BISHOP SHOPPING,7523,Staff travelling,3.30,0.00,3.30
Regeneration Economy and Growth,Corporate Property and Land,020041,Bldg Serv - Business Development - General,Supplies and Services,304259,Equipment and Materials,04-Nov-2022,000008607714994,MIDDLESBROUGH COUNCIL,9399,Equipment-purchase and rental,3.60,0.00,3.60
Children and Young Peoples Services,Head of Childrens Social Care,085342,16 Hickstead Rise (previously 9 Cedar Ave),Supplies and Services,324117,Provisions E324,04-Nov-2022,000008607715012,TESCO STORES 2916,5411,Catering costs - provisions,52.30,0.00,52.30
Adult and Health Services,Head of Adults,055301,Stanley Pathways,Supplies and Services,304403,Equipment and Materials,04-Nov-2022,000008607715072,AMZNMktplace,5999,Other consumables,21.90,3.66,18.24
Children and Young Peoples Services,Head of Education and Skills,071732,Dean Bank Childcare,Supplies and Services,324117,Provisions E324,04-Nov-2022,000008607715138,B&M 147 - FERRYHILL,5399,Catering costs - provisions,22.85,0.00,22.85
Children and Young Peoples Services,Head of Education and Skills,071732,Dean Bank Childcare,Supplies and Services,324117,Provisions E324,04-Nov-2022,000008607715142,CO-OP GROUP 010518,5411,Catering costs - provisions,2.25,0.00,2.25
Neighbourhoods and Climate Change,Environmental Services,031200,North Pennines Core,Supplies and Services,324117,Provisions E324,04-Nov-2022,000008607715186,WAITROSE 782,5411,Catering costs - provisions,28.29,0.00,28.29
Neighbourhoods and Climate Change,Environmental Services,031200,North Pennines Core,Transport,235057,Public Transport,04-Nov-2022,000008607715198,WWW.JET2. EXS96045790707,4511,Staff travelling,13.50,0.00,13.50
Children and Young Peoples Services,Head of Childrens Social Care,085334,West Rainton Satelite Home,Supplies and Services,324117,Provisions E324,04-Nov-2022,000008607715246,TESCO STORES 2371,5411,Catering costs - provisions,180.86,0.00,180.86
Children and Young Peoples Services,Head of Childrens Social Care,085363,Childrens Permanence Team,Supplies and Services,338045,Services,04-Nov-2022,000008607715296,DURHAM COUNTY COUNCIL,9399,Legal expenses 338045,11.00,0.00,11.00
Children and Young Peoples Services,Head of Early Help Inclusion & Vulnerable Children.,088103,Stanley & Moorside Family Centre,Supplies and Services,304259,Equipment and Materials,04-Nov-2022,000008607715300,THE ENTERTAINER,5945,Equipment-purchase and rental,428.85,0.00,428.85
Resources BK0010,Digital Services,065335,School Services - Implementations,Supplies and Services,304639,Equipment and Materials,04-Nov-2022,000008607715322,NETS Zandgroup AB,4812,Technicians-supplies,24.98,0.00,24.98
Children and Young Peoples Services,Head of Education and Skills,071802,Louisa Cent Nursery,Supplies and Services,324117,Provisions E324,04-Nov-2022,000008607715682,ASDA GROCERIES ONLINE,5411,Catering costs - provisions,177.19,0.00,177.19
Children and Young Peoples Services,Head of Education and Skills,071802,Louisa Cent Nursery,Supplies and Services,324117,Provisions E324,04-Nov-2022,000008607715692,ASDA SUPERSTORE,5411,Catering costs - provisions,3.75,0.00,3.75
Children and Young Peoples Services,Head of Education and Skills,071802,Louisa Cent Nursery,Supplies and Services,324117,Provisions E324,04-Nov-2022,000008607715698,ASDA GROCERIES ONLINE,5411,Catering costs - provisions,-3.43,0.00,-3.43
Children and Young Peoples Services,Head of Childrens Social Care,085347,Solo Home The Manse,Supplies and Services,324117,Provisions E324,04-Nov-2022,000008607715720,CO-OP GROUP 310016,5411,Catering costs - provisions,32.65,0.00,32.65
Regeneration Economy and Growth,Culture Sport and Tourism,054233,Bishop Auckland Town Hall Library,Supplies and Services,324117,Provisions E324,04-Nov-2022,000008607715840,WM MORRISONS STORE,5411,Catering costs - provisions,57.78,0.00,57.78
Children and Young Peoples Services,Head of Childrens Social Care,085332,Middlestone Moor CU,Supplies and Services,348037,Subsistence E348,04-Nov-2022,000008607716084,MCDONALDS,5812,Subsistence,3.18,0.00,3.18
Children and Young Peoples Services,Head of Childrens Social Care,085334,West Rainton Satelite Home,Supplies and Services,348037,Subsistence E348,04-Nov-2022,000008607716114,43039235 COSTA COFFEE,5814,Subsistence,14.00,0.00,14.00
Resources BK0010,Digital Services,065481,Technical Services 065481,Supplies and Services,328041,Clothing uniforms and laundry E328,04-Nov-2022,000008607716134,eBay O 02-09302-29644,5311,Clothing uniforms and laundry,128.94,0.00,128.94
Neighbourhoods and Climate Change,Environmental Services,031071,E&D - Sustainability and Climate Change,Employees,040149,Recruitment Instruction and Training,04-Nov-2022,000008607716156,Stiftung myclimate,8398,Training-all costs,35.38,0.00,35.38
Regeneration Economy and Growth,Corporate Property and Land,010932,CCS-Construction Consultancy Service (CCS),Supplies and Services,312009,Newspapers books and periodicals E312,04-Nov-2022,000008607716200,AMZNMKTPLACE AMAZON.CO,5999,Newspapers books and periodicals,41.33,0.00,41.33
Regeneration Economy and Growth,Planning & Housing,031576,B& B - Temp Accom,Supplies and Services,364320,Grants to Voluntary Organisations,04-Nov-2022,000008607716578,Roadchef Durham,7011,Accommodation assistance,245.00,0.00,245.00
Regeneration Economy and Growth,Planning & Housing,031576,B& B - Temp Accom,Supplies and Services,364320,Grants to Voluntary Organisations,04-Nov-2022,000008607716586,Roadchef Durham,7011,Accommodation assistance,7.50,0.00,7.50
Regeneration Economy and Growth,Corporate Property and Land,010525,Catering - Green Lane,Supplies and Services,324117,Provisions E324,04-Nov-2022,000008607832494,HOPWELLS LTD,5811,Catering costs - provisions,68.81,0.00,68.81
Regeneration Economy and Growth,Corporate Property and Land,010525,Catering - Green Lane,Supplies and Services,324117,Provisions E324,04-Nov-2022,000008607832496,FREEMAN CATERING BUTCH,5422,Catering costs - provisions,55.31,0.00,55.31
Regeneration Economy and Growth,Corporate Property and Land,011296,Catering - Dunes,Supplies and Services,324117,Provisions E324,04-Nov-2022,000008607832498,HOPWELLS LTD,5811,Catering costs - provisions,95.09,0.00,95.09
Regeneration Economy and Growth,Corporate Property and Land,011296,Catering - Dunes,Supplies and Services,324117,Provisions E324,04-Nov-2022,000008607832500,JR HOLLAND FOODSERVICE,5499,Catering costs - provisions,79.30,0.00,79.30
Regeneration Economy and Growth,Corporate Property and Land,011296,Catering - Dunes,Supplies and Services,324117,Provisions E324,04-Nov-2022,000008607832502,JR HOLLAND FOODSERVICE,5499,Catering costs - provisions,-10.99,0.00,-10.99
Regeneration Economy and Growth,Corporate Property and Land,030691,Catering - Durham Dales Centre,Supplies and Services,324117,Provisions E324,04-Nov-2022,000008607832504,FREEMAN CATERING BUTCH,5422,Catering costs - provisions,131.72,0.00,131.72
Regeneration Economy and Growth,Corporate Property and Land,030691,Catering - Durham Dales Centre,Supplies and Services,324117,Provisions E324,04-Nov-2022,000008607832506,HOPWELLS LTD,5811,Catering costs - provisions,192.98,0.00,192.98
Regeneration Economy and Growth,Corporate Property and Land,030691,Catering - Durham Dales Centre,Supplies and Services,324117,Provisions E324,04-Nov-2022,000008607832508,JR HOLLAND FOODSERVICE,5499,Catering costs - provisions,71.81,0.00,71.81
Adult and Health Services,Head of Adults,055643,Hawthorn House LD Respite Unit,Supplies and Services,324117,Provisions E324,04-Nov-2022,000008607832510,JR HOLLAND FOODSERVICE,5499,Catering costs - provisions,14.91,0.00,14.91
Adult and Health Services,Head of Adults,055643,Hawthorn House LD Respite Unit,Supplies and Services,324117,Provisions E324,04-Nov-2022,000008607832512,JR HOLLAND FOODSERVICE,5499,Catering costs - provisions,2.76,0.00,2.76
Adult and Health Services,Head of Adults,055643,Hawthorn House LD Respite Unit,Supplies and Services,324117,Provisions E324,04-Nov-2022,000008607832514,FREEMAN CATERING BUTCH,5422,Catering costs - provisions,31.79,0.00,31.79
Adult and Health Services,Head of Adults,055643,Hawthorn House LD Respite Unit,Supplies and Services,324117,Provisions E324,04-Nov-2022,000008607832516,FREEMAN CATERING BUTCH,5422,Catering costs - provisions,49.77,0.00,49.77
Neighbourhoods and Climate Change,Environmental Services,011060,C&G - Hardwick Park Catering,Supplies and Services,324117,Provisions E324,04-Nov-2022,000008607832518,JR HOLLAND FOODSERVICE,5499,Catering costs - provisions,140.63,0.00,140.63
Neighbourhoods and Climate Change,Environmental Services,011060,C&G - Hardwick Park Catering,Supplies and Services,324117,Provisions E324,04-Nov-2022,000008607832520,FREEMAN CATERING BUTCH,5422,Catering costs - provisions,88.61,0.00,88.61
Neighbourhoods and Climate Change,Environmental Services,011060,C&G - Hardwick Park Catering,Supplies and Services,324117,Provisions E324,04-Nov-2022,000008607832522,FREEMAN CATERING BUTCH,5422,Catering costs - provisions,64.62,0.00,64.62
Regeneration Economy and Growth,Corporate Property and Land,021234,Catering - Locomotion,Supplies and Services,324117,Provisions E324,04-Nov-2022,000008607832524,HOPWELLS LTD,5811,Catering costs - provisions,166.98,27.83,139.15
Regeneration Economy and Growth,Corporate Property and Land,021234,Catering - Locomotion,Supplies and Services,324117,Provisions E324,04-Nov-2022,000008607832524 - 1,HOPWELLS LTD,5811,Catering costs - provisions,214.82,,214.82
Regeneration Economy and Growth,Corporate Property and Land,021234,Catering - Locomotion,Supplies and Services,324117,Provisions E324,04-Nov-2022,000008607832526,JR HOLLAND FOODSERVICE,5499,Catering costs - provisions,26.97,0.00,26.97
Regeneration Economy and Growth,Corporate Property and Land,021234,Catering - Locomotion,Supplies and Services,324117,Provisions E324,04-Nov-2022,000008607832528,JR HOLLAND FOODSERVICE,5499,Catering costs - provisions,179.79,0.00,179.79
Regeneration Economy and Growth,Corporate Property and Land,021234,Catering - Locomotion,Supplies and Services,324117,Provisions E324,04-Nov-2022,000008607832530,FREEMAN CATERING BUTCH,5422,Catering costs - provisions,102.55,0.00,102.55
Regeneration Economy and Growth,Corporate Property and Land,021234,Catering - Locomotion,Supplies and Services,324117,Provisions E324,04-Nov-2022,000008607832532,FREEMAN CATERING BUTCH,5422,Catering costs - provisions,72.08,0.00,72.08
Regeneration Economy and Growth,Culture Sport and Tourism,011263,Louisa Centre 011263,Supplies and Services,324117,Provisions E324,04-Nov-2022,000008607832534,JR HOLLAND FOODSERVICE,5499,Catering costs - provisions,80.05,0.00,80.05
Regeneration Economy and Growth,Culture Sport and Tourism,011263,Louisa Centre 011263,Supplies and Services,324117,Provisions E324,04-Nov-2022,000008607832536,JR HOLLAND FOODSERVICE,5499,Catering costs - provisions,18.00,0.00,18.00
Regeneration Economy and Growth,Culture Sport and Tourism,054812,Gala Theatre - Catering etc,Supplies and Services,324117,Provisions E324,04-Nov-2022,000008607832538,HOPWELLS LTD,5811,Catering costs - provisions,78.17,0.00,78.17
Regeneration Economy and Growth,Culture Sport and Tourism,054812,Gala Theatre - Catering etc,Supplies and Services,324117,Provisions E324,04-Nov-2022,000008607832540,JR HOLLAND FOODSERVICE,5499,Catering costs - provisions,61.33,0.00,61.33
Regeneration Economy and Growth,Culture Sport and Tourism,054812,Gala Theatre - Catering etc,Supplies and Services,324117,Provisions E324,04-Nov-2022,000008607832542,FREEMAN CATERING BUTCH,5422,Catering costs - provisions,20.94,0.00,20.94
Regeneration Economy and Growth,Corporate Property and Land,021242,Catering - County Hall,Supplies and Services,324117,Provisions E324,04-Nov-2022,000008607832544,HOPWELLS LTD,5811,Catering costs - provisions,114.11,0.00,114.11
Regeneration Economy and Growth,Corporate Property and Land,021242,Catering - County Hall,Supplies and Services,324117,Provisions E324,04-Nov-2022,000008607832546,JR HOLLAND FOODSERVICE,5499,Catering costs - provisions,11.20,0.00,11.20
Regeneration Economy and Growth,Corporate Property and Land,021242,Catering - County Hall,Supplies and Services,324117,Provisions E324,04-Nov-2022,000008607832548,HOPWELLS LTD,5811,Catering costs - provisions,-10.25,0.00,-10.25
Children and Young Peoples Services,Head of Childrens Social Care,085369,Care Leavers Team 1,Supplies and Services,364354,Grants to Voluntary Organisations,04-Nov-2022,000008615944916,TVLICENSING.CO.UK,7392,Supervised Spend - Setting Up Home Allowance,159.00,0.00,159.00
Children and Young Peoples Services,Head of Childrens Social Care,085369,Care Leavers Team 1,Supplies and Services,364354,Grants to Voluntary Organisations,04-Nov-2022,000008615944918,TVLICENSING.CO.UK,7392,Supervised Spend - Setting Up Home Allowance,159.00,0.00,159.00
Regeneration Economy and Growth,Corporate Property and Land,011275,Catering -Durham Leadership Centre,Supplies and Services,324117,Provisions E324,04-Nov-2022,000008616047142,BATLEYS PERTH,5300,Catering costs - provisions,112.24,0.00,112.24
Adult and Health Services,Head of Adults,055643,Hawthorn House LD Respite Unit,Supplies and Services,324117,Provisions E324,04-Nov-2022,000008616047162,BATLEYS PERTH,5300,Catering costs - provisions,23.16,3.86,19.30
Adult and Health Services,Head of Adults,055643,Hawthorn House LD Respite Unit,Supplies and Services,324117,Provisions E324,04-Nov-2022,000008616047162 - 1,BATLEYS PERTH,5300,Catering costs - provisions,124.23,,124.23
Children and Young Peoples Services,Head of Education and Skills,075034,Youth Futures Foundation,Supplies and Services,364301,Grants to Voluntary Organisations,04-Nov-2022,000008620315142,MATALAN.CO.UK,5691,Hardship,59.00,0.00,59.00
Children and Young Peoples Services,Head of Childrens Social Care,085341,High Etherley Satelite Home,Supplies and Services,324117,Provisions E324,05-Nov-2022,000008607713476,ASDA STORES LTD,5411,Catering costs - provisions,5.82,0.00,5.82
Children and Young Peoples Services,Head of Childrens Social Care,085334,West Rainton Satelite Home,Supplies and Services,324117,Provisions E324,05-Nov-2022,000008607713738,TESCO STORES 2371,5411,Catering costs - provisions,99.35,0.00,99.35
Children and Young Peoples Services,Head of Childrens Social Care,085347,Solo Home The Manse,Supplies and Services,372009,Subscriptions E372,05-Nov-2022,000008607714106,Amazon Prime UO6YR5765,5968,Subscriptions 372009,8.99,0.00,8.99
Children and Young Peoples Services,Head of Childrens Social Care,085358,Orchard House Sacriston Solo Home,Supplies and Services,304259,Equipment and Materials,05-Nov-2022,000008607714192,AO RETAIL LIMITED,5722,Equipment-purchase and rental,348.99,0.00,348.99
Children and Young Peoples Services,Head of Early Help Inclusion & Vulnerable Children.,085957,Secure Management,Supplies and Services,324117,Provisions E324,05-Nov-2022,000008607714400,TESCO STORES 6329,5411,Catering costs - provisions,93.36,0.00,93.36
Children and Young Peoples Services,Head of Childrens Social Care,085347,Solo Home The Manse,Supplies and Services,348037,Subsistence E348,05-Nov-2022,000008607714460,SWIRLS,5812,Subsistence,32.45,0.00,32.45
Children and Young Peoples Services,Head of Childrens Social Care,085342,16 Hickstead Rise (previously 9 Cedar Ave),Supplies and Services,324117,Provisions E324,05-Nov-2022,000008607714910,TESCO STORES 2916,5411,Catering costs - provisions,40.85,0.00,40.85
Neighbourhoods and Climate Change,Environmental Services,031200,North Pennines Core,Supplies and Services,352001,Conference Expenses,05-Nov-2022,000008607715206,DOUBLETREE NEWCASTLE,7011,Conferencesseminars fees etc,14.95,0.00,14.95
Children and Young Peoples Services,Head of Early Help Inclusion & Vulnerable Children.,085962,Aycliffe Secure - Durham,Supplies and Services,304403,Equipment and Materials,05-Nov-2022,000008607715820,AMZNMktplace,5999,Other consumables,39.98,6.66,33.32
Children and Young Peoples Services,Head of Early Help Inclusion & Vulnerable Children.,085962,Aycliffe Secure - Durham,Supplies and Services,304403,Equipment and Materials,05-Nov-2022,000008607715826,AMZNMktplace,5999,Other consumables,4.80,0.80,4.00
Children and Young Peoples Services,Head of Childrens Social Care,085331,New Lea Childrens Home,Supplies and Services,312009,Newspapers books and periodicals E312,05-Nov-2022,000008607715866,MIDDLES SUPERSTORE,5994,Newspapers books and periodicals,2.59,0.00,2.59
Children and Young Peoples Services,Head of Childrens Social Care,085331,New Lea Childrens Home,Supplies and Services,340001,Postages E340,05-Nov-2022,000008607715872,POST OFFICE COUNTER,9402,Postages,48.38,0.00,48.38
Children and Young Peoples Services,Head of Childrens Social Care,085331,New Lea Childrens Home,Transport,215995,Running Costs of Vehicles,05-Nov-2022,000008607715876,CHESTER ROAD SERVICE S,5541,Vehicle running expenses,4.99,0.00,4.99
Children and Young Peoples Services,Head of Childrens Social Care,085331,New Lea Childrens Home,Supplies and Services,304999,Equipment and Materials,05-Nov-2022,000008607715880,HOME BARGAINS,5251,Misc equipment tools and materials,1.89,0.00,1.89
Children and Young Peoples Services,Head of Childrens Social Care,085331,New Lea Childrens Home,Supplies and Services,304221,Equipment and Materials,05-Nov-2022,000008607715888,Pity Me Nursery,5261,Direct materials,27.00,0.00,27.00
Children and Young Peoples Services,Head of Childrens Social Care,085331,New Lea Childrens Home,Supplies and Services,348037,Subsistence E348,05-Nov-2022,000008607715894,Indian kitchen,5812,Subsistence,10.50,0.00,10.50
Children and Young Peoples Services,Head of Childrens Social Care,085331,New Lea Childrens Home,Supplies and Services,348037,Subsistence E348,05-Nov-2022,000008607715898,Indian kitchen,5812,Subsistence,7.50,0.00,7.50
Children and Young Peoples Services,Head of Childrens Social Care,085331,New Lea Childrens Home,Supplies and Services,348037,Subsistence E348,05-Nov-2022,000008607715904,MCDONALDS 1555,5814,Subsistence,11.42,0.00,11.42
Children and Young Peoples Services,Head of Childrens Social Care,085331,New Lea Childrens Home,Supplies and Services,324117,Provisions E324,05-Nov-2022,000008607715912,PPOINT_ PVR and CO LTD,5499,Catering costs - provisions,2.89,0.00,2.89
Regeneration Economy and Growth,Communications Management,060270,Communications and Marketing,Supplies and Services,336005,Advertising E336,05-Nov-2022,000008607716210,LinkedIn 8427693854,7311,Advertising other than for staff,141.14,0.00,141.14
Resources BK0010,Transactional & Customer Services,060050,Service Management,Supplies and Services,304403,Equipment and Materials,05-Nov-2022,000008607716218,AMZNMktplace,5999,Other consumables,35.92,0.00,35.92
Resources BK0010,Procurement Sales & Business Services,065500,Business Support - Management,Supplies and Services,324117,Provisions E324,05-Nov-2022,000008607716226,AMZNMktplace,5999,Catering costs - provisions,54.99,9.17,45.82
Regeneration Economy and Growth,Planning & Housing,031576,B& B - Temp Accom,Supplies and Services,364320,Grants to Voluntary Organisations,05-Nov-2022,000008607716594,Roadchef Durham,7011,Accommodation assistance,7.50,0.00,7.50
Regeneration Economy and Growth,Business Durham CL0850,030689,Inward Investment and Aftercare,Supplies and Services,342033,Computers and Communications,06-Nov-2022,000008607713314,STK Shutterstock,7333,Computer hardware,19.00,0.00,19.00
Children and Young Peoples Services,Head of Education and Skills,071801,Selby Cottage Childcare Centre,Supplies and Services,304403,Equipment and Materials,06-Nov-2022,000008607713378,AMZNMKTPLACE AMAZON.CO,5999,Other consumables,29.99,5.00,24.99
Children and Young Peoples Services,Head of Education and Skills,071801,Selby Cottage Childcare Centre,Supplies and Services,304403,Equipment and Materials,06-Nov-2022,000008607713380,AMZNMKTPLACE AMAZON.CO,5999,Other consumables,29.99,5.00,24.99
Children and Young Peoples Services,Head of Childrens Social Care,085342,16 Hickstead Rise (previously 9 Cedar Ave),Supplies and Services,324117,Provisions E324,06-Nov-2022,000008607713556,HERON FOODS,5411,Catering costs - provisions,14.30,0.00,14.30
Children and Young Peoples Services,Head of Childrens Social Care,085342,16 Hickstead Rise (previously 9 Cedar Ave),Transport,215995,Running Costs of Vehicles,06-Nov-2022,000008607713560,WOODHAM SERVICES,5541,Vehicle running expenses,30.00,0.00,30.00
Regeneration Economy and Growth,Culture Sport and Tourism,011056,AAP Funding - Sport & Leisure,Supplies and Services,304259,Equipment and Materials,06-Nov-2022,000008607713590,AMZNMktplace,5999,Equipment-purchase and rental,46.98,7.83,39.15
Regeneration Economy and Growth,Culture Sport and Tourism,011056,AAP Funding - Sport & Leisure,Supplies and Services,304259,Equipment and Materials,06-Nov-2022,000008607713594,AMZNMktplace,5999,Equipment-purchase and rental,37.54,6.26,31.28
Regeneration Economy and Growth,Culture Sport and Tourism,011265,Empire Theatre (Operations),Supplies and Services,304252,Equipment and Materials,06-Nov-2022,000008607713596,AMZNMKTPLACE AMAZON.CO,5999,Equipment-repairsserviceinsurance,8.89,1.48,7.41
Regeneration Economy and Growth,Culture Sport and Tourism,054233,Bishop Auckland Town Hall Library,Supplies and Services,304403,Equipment and Materials,06-Nov-2022,000008607713966,AMZNMktplace,5999,Other consumables,29.99,5.00,24.99
Regeneration Economy and Growth,Culture Sport and Tourism,054233,Bishop Auckland Town Hall Library,Supplies and Services,304403,Equipment and Materials,06-Nov-2022,000008607713972,AMZNMktplace,5999,Other consumables,31.90,5.32,26.58
Children and Young Peoples Services,Head of Childrens Social Care,085511,Emergency Duty Team,Supplies and Services,352001,Conference Expenses,06-Nov-2022,000008607714022,Roadchef Durham,7011,Conferencesseminars fees etc,39.00,0.00,39.00
Children and Young Peoples Services,Head of Childrens Social Care,085342,16 Hickstead Rise (previously 9 Cedar Ave),Transport,235057,Public Transport,06-Nov-2022,000008607714228,WWW.GONORTHEAST.CO.UK,4111,Staff travelling,6.40,0.00,6.40
Regeneration Economy and Growth,Culture Sport and Tourism,054966,Gala Theatre - Gala Productions,Supplies and Services,338047,Services,06-Nov-2022,000008607714252,AMZNMktplace,5999,Direct production costs,50.00,8.33,41.67
Children and Young Peoples Services,Head of Childrens Social Care,085347,Solo Home The Manse,Supplies and Services,348037,Subsistence E348,06-Nov-2022,000008607714464,ANEESA?S BUFFET RESTAU,5812,Subsistence,91.86,0.00,91.86
Children and Young Peoples Services,Head of Childrens Social Care,085347,Solo Home The Manse,Supplies and Services,324117,Provisions E324,06-Nov-2022,000008607714466,TESCO STORES 2371,5411,Catering costs - provisions,143.88,0.00,143.88
Dedicated Schools Grant BG0015,DSG Schools Block,418507,Belmont Community School 004185 - Performing Arts,Supplies and Services,304403,Equipment and Materials,06-Nov-2022,000008607714868,AMZNMKTPLACE AMAZON.CO,5999,Other consumables,25.98,4.34,21.64
Adult and Health Services,Head of Adults,055643,Hawthorn House LD Respite Unit,Supplies and Services,324117,Provisions E324,06-Nov-2022,000008607714980,ALDI STORES,5411,Catering costs - provisions,9.23,0.00,9.23
Children and Young Peoples Services,Head of Childrens Social Care,085342,16 Hickstead Rise (previously 9 Cedar Ave),Supplies and Services,304259,Equipment and Materials,06-Nov-2022,000008607715022,JD SPORTS PLC,5941,Equipment-purchase and rental,55.10,0.00,55.10
Children and Young Peoples Services,Head of Childrens Social Care,085342,16 Hickstead Rise (previously 9 Cedar Ave),Supplies and Services,328041,Clothing uniforms and laundry E328,06-Nov-2022,000008607715026,TK MAXX,5331,Clothing uniforms and laundry,24.98,0.00,24.98
Children and Young Peoples Services,Head of Childrens Social Care,085342,16 Hickstead Rise (previously 9 Cedar Ave),Supplies and Services,304259,Equipment and Materials,06-Nov-2022,000008607715032,JD SPORTS PLC,5941,Equipment-purchase and rental,-30.00,0.00,-30.00
Children and Young Peoples Services,Head of Education and Skills,071732,Dean Bank Childcare,Supplies and Services,304403,Equipment and Materials,06-Nov-2022,000008607715146,AMZNMktplace,5999,Other consumables,51.83,0.00,51.83
Neighbourhoods and Climate Change,Environmental Services,031200,North Pennines Core,Supplies and Services,348037,Subsistence E348,06-Nov-2022,000008607715210,PIT STOP PUB LTD,5813,Subsistence,11.86,0.00,11.86
Neighbourhoods and Climate Change,Environmental Services,031200,North Pennines Core,Supplies and Services,312009,Newspapers books and periodicals E312,06-Nov-2022,000008607715214,WH SMITH,5994,Newspapers books and periodicals,5.19,0.00,5.19
Neighbourhoods and Climate Change,Partnerships & Community Engagement Div.,060700,Civil Contingencies Unit 060700,Supplies and Services,304403,Equipment and Materials,06-Nov-2022,000008607715238,AMZ AAB Seller UK,5999,Other consumables,-127.96,-21.32,-106.64
Children and Young Peoples Services,Head of Early Help Inclusion & Vulnerable Children.,085965,Barnard,Supplies and Services,304403,Equipment and Materials,06-Nov-2022,000008607715308,AMZNMktplace,5999,Other consumables,57.24,0.00,57.24
Children and Young Peoples Services,Head of Early Help Inclusion & Vulnerable Children.,085954,Walworth,Supplies and Services,324117,Provisions E324,06-Nov-2022,000008607715362,TESCO STORES 6329,5411,Catering costs - provisions,137.39,0.00,137.39
Children and Young Peoples Services,Head of Childrens Social Care,085351,Framwellgate Moor CU,Third Party Payments,430100,Rendered by Private Contractors,06-Nov-2022,000008607715572,CutPay,7399,Payments to sub-contractors,26.40,0.00,26.40
Children and Young Peoples Services,Head of Childrens Social Care,085351,Framwellgate Moor CU,Supplies and Services,308011,Furniture,06-Nov-2022,000008607715580,IKEA LTD 143 GATESHEAD,5712,Furniture repair and replacement,293.00,0.00,293.00
Children and Young Peoples Services,Head of Education and Skills,071802,Louisa Cent Nursery,Supplies and Services,328041,Clothing uniforms and laundry E328,06-Nov-2022,000008607715708,W BOYES & CO LTD CONSE,5310,Clothing uniforms and laundry,7.49,0.00,7.49
Children and Young Peoples Services,Head of Early Help Inclusion & Vulnerable Children.,088100,Durham & CLS Intensive Family Support Team,Supplies and Services,304259,Equipment and Materials,06-Nov-2022,000008607715746,AMZNBusiness 886ZQ6TQ5,5999,Equipment-purchase and rental,29.98,5.00,24.98
Children and Young Peoples Services,Head of Childrens Social Care,085331,New Lea Childrens Home,Supplies and Services,348037,Subsistence E348,06-Nov-2022,000008607715918,WWW.JUST-EAT.CO.UK,5812,Subsistence,12.00,0.00,12.00
Children and Young Peoples Services,Head of Childrens Social Care,085332,Middlestone Moor CU,Supplies and Services,304403,Equipment and Materials,06-Nov-2022,000008607716094,SIM KING LTD,5734,Other consumables,9.40,0.00,9.40
Children and Young Peoples Services,Head of Childrens Social Care,085332,Middlestone Moor CU,Supplies and Services,304403,Equipment and Materials,06-Nov-2022,000008607716100,SIM KING LTD,5734,Other consumables,18.00,0.00,18.00
Children and Young Peoples Services,Head of Childrens Social Care,085332,Middlestone Moor CU,Supplies and Services,304403,Equipment and Materials,06-Nov-2022,000008607716106,SIM KING LTD,5734,Other consumables,9.00,0.00,9.00
Children and Young Peoples Services,Head of Childrens Social Care,085332,Middlestone Moor CU,Supplies and Services,348037,Subsistence E348,06-Nov-2022,000008607716108,STARBUCKS,5814,Subsistence,15.30,0.00,15.30
Regeneration Economy and Growth,REG - Central Costs,030001,Corporate Director - Regeneration Economy & Growth,Supplies and Services,324117,Provisions E324,06-Nov-2022,000008607716234,AMZNMktplace,5999,Catering costs - provisions,30.94,5.16,25.78
Regeneration Economy and Growth,REG - Central Costs,030001,Corporate Director - Regeneration Economy & Growth,Supplies and Services,324117,Provisions E324,06-Nov-2022,000008607716238,AMZNMktplace,5999,Catering costs - provisions,38.90,6.48,32.42
Regeneration Economy and Growth,REG - Central Costs,030001,Corporate Director - Regeneration Economy & Growth,Supplies and Services,324117,Provisions E324,06-Nov-2022,000008607716240,AMZNMktplace,5999,Catering costs - provisions,30.90,5.15,25.75
Regeneration Economy and Growth,REG - Central Costs,030001,Corporate Director - Regeneration Economy & Growth,Supplies and Services,324117,Provisions E324,06-Nov-2022,000008607716240 - 1,AMZNMktplace,5999,Catering costs - provisions,0.03,,0.03
Resources BK0010,Transactional & Customer Services,060050,Service Management,Supplies and Services,332047,Printing Stationery and Gen Off Exps,06-Nov-2022,000008607716244,AMZNMktplace,5999,Stationery,25.99,4.33,21.66
Resources BK0010,Transactional & Customer Services,060050,Service Management,Supplies and Services,324117,Provisions E324,06-Nov-2022,000008607716252,AMZNMktplace,5999,Catering costs - provisions,38.90,6.48,32.42
Resources BK0010,Transactional & Customer Services,060050,Service Management,Supplies and Services,332047,Printing Stationery and Gen Off Exps,06-Nov-2022,000008607716256,AMZNMktplace,5999,Stationery,8.73,1.46,7.27
Regeneration Economy and Growth,Planning & Housing,031576,B& B - Temp Accom,Supplies and Services,364320,Grants to Voluntary Organisations,06-Nov-2022,000008607716604,Roadchef Durham,7011,Accommodation assistance,7.50,0.00,7.50
Children and Young Peoples Services,Head of Education and Skills,071801,Selby Cottage Childcare Centre,Supplies and Services,304403,Equipment and Materials,06-Nov-2022,000008615944016,AMZNMKTPLACE AMAZON.CO,5999,Other consumables,19.78,3.30,16.48
Children and Young Peoples Services,Head of Education and Skills,071801,Selby Cottage Childcare Centre,Supplies and Services,304403,Equipment and Materials,06-Nov-2022,000008615944020,AMZNMKTPLACE AMAZON.CO,5999,Other consumables,9.58,1.60,7.98
Children and Young Peoples Services,Head of Education and Skills,071801,Selby Cottage Childcare Centre,Supplies and Services,304403,Equipment and Materials,06-Nov-2022,000008615944028,AMZNMKTPLACE AMAZON.CO,5999,Other consumables,8.41,1.40,7.01
Children and Young Peoples Services,Head of Education and Skills,078561,DurhamEnable,Supplies and Services,332048,Printing Stationery and Gen Off Exps,06-Nov-2022,000008615944082,AMZNMKTPLACE AMAZON.CO,5999,Administrative stationery etc,23.99,4.00,19.99
Regeneration Economy and Growth,Culture Sport and Tourism,054305,Murton Library,Supplies and Services,304252,Equipment and Materials,06-Nov-2022,000008615944122,AMZNMKTPLACE AMAZON.CO,5999,Equipment-repairsserviceinsurance,10.69,1.78,8.91
Dedicated Schools Grant BG0015,DSG Schools Block,418516,Belmont Community School 004185 - Marketing,Supplies and Services,304403,Equipment and Materials,06-Nov-2022,000008615944572,AMZNMKTPLACE AMAZON.CO,5999,Other consumables,22.57,3.78,18.79
Dedicated Schools Grant BG0015,DSG Schools Block,418507,Belmont Community School 004185 - Performing Arts,Supplies and Services,304403,Equipment and Materials,06-Nov-2022,000008615944576,AMZNMKTPLACE AMAZON.CO,5999,Other consumables,9.95,1.66,8.29
Neighbourhoods and Climate Change,Environmental Services,031200,North Pennines Core,Supplies and Services,352001,Conference Expenses,06-Nov-2022,000008615944804,ROMAN HOTEL,7011,Conferencesseminars fees etc,53.14,0.00,53.14
Children and Young Peoples Services,Head of Early Help Inclusion & Vulnerable Children.,085954,Walworth,Supplies and Services,304259,Equipment and Materials,06-Nov-2022,000008615944904,AMZNMKTPLACE AMAZON.CO,5999,Equipment-purchase and rental,49.95,8.35,41.60
Children and Young Peoples Services,Head of Childrens Social Care,085358,Orchard House Sacriston Solo Home,Supplies and Services,372009,Subscriptions E372,07-Nov-2022,000008607714202,NETFLIX.COM,4899,Subscriptions 372009,15.99,0.00,15.99
Neighbourhoods and Climate Change,Environmental Services,031200,North Pennines Core,Supplies and Services,348037,Subsistence E348,07-Nov-2022,000008607715218,PIT STOP PUB LTD,5813,Subsistence,0.33,0.00,0.33
Resources BK0010,Digital Services,065481,Technical Services 065481,Supplies and Services,328041,Clothing uniforms and laundry E328,07-Nov-2022,000008607716162,eBay O 02-09302-29644,5311,Clothing uniforms and laundry,3.55,0.00,3.55
Neighbourhoods and Climate Change,Environmental Services,031071,E&D - Sustainability and Climate Change,Employees,040149,Recruitment Instruction and Training,07-Nov-2022,000008607716164,Stiftung myclimate,8398,Training-all costs,0.97,0.00,0.97
Children and Young Peoples Services,Head of Education and Skills,071801,Selby Cottage Childcare Centre,Supplies and Services,304403,Equipment and Materials,07-Nov-2022,000008615944024,AMZNMKTPLACE AMAZON.CO,5999,Other consumables,10.90,1.82,9.08
Children and Young Peoples Services,Head of Education and Skills,071801,Selby Cottage Childcare Centre,Supplies and Services,324117,Provisions E324,07-Nov-2022,000008615944030,TESCO STORES 2278,5411,Catering costs - provisions,100.87,0.00,100.87
Children and Young Peoples Services,Head of Education and Skills,071801,Selby Cottage Childcare Centre,Supplies and Services,324117,Provisions E324,07-Nov-2022,000008615944034,TESCO STORES 2278,5411,Catering costs - provisions,16.20,0.00,16.20
Resources BK0010,Procurement Sales & Business Services,065504,Business Support - Meadowfield,Supplies and Services,324117,Provisions E324,07-Nov-2022,000008615944068,REPLACEMENT KEYS LTD,5399,Catering costs - provisions,5.90,0.00,5.90
Children and Young Peoples Services,Head of Education and Skills,075035,DurhamDirections Re-engagement,Supplies and Services,364301,Grants to Voluntary Organisations,07-Nov-2022,000008615944080,WWW.GONORTHEAST.CO.UK,4111,Hardship,4.70,0.00,4.70
Regeneration Economy and Growth,Culture Sport and Tourism,054812,Gala Theatre - Catering etc,Supplies and Services,324117,Provisions E324,07-Nov-2022,000008615944104,World Of Sweets Hancoc,5441,Catering costs - provisions,312.23,52.04,260.19
Regeneration Economy and Growth,Culture Sport and Tourism,054966,Gala Theatre - Gala Productions,Supplies and Services,338047,Services,07-Nov-2022,000008615944108,RISUSLTDTRI,5945,Direct production costs,762.16,127.03,635.13
Regeneration Economy and Growth,Culture Sport and Tourism,011265,Empire Theatre (Operations),Supplies and Services,304252,Equipment and Materials,07-Nov-2022,000008615944110,AMZNBusiness 6220J3GE5,5999,Equipment-repairsserviceinsurance,10.79,1.80,8.99
Regeneration Economy and Growth,Culture Sport and Tourism,054820,Gala Theatre - Overheads,Supplies and Services,304252,Equipment and Materials,07-Nov-2022,000008615944112,AMZNMktplace,5999,Equipment-repairsserviceinsurance,496.86,82.81,414.05
Regeneration Economy and Growth,Culture Sport and Tourism,054820,Gala Theatre - Overheads,Supplies and Services,304252,Equipment and Materials,07-Nov-2022,000008615944112 - 1,AMZNMktplace,5999,Equipment-repairsserviceinsurance,0.14,,0.14
Regeneration Economy and Growth,Culture Sport and Tourism,054306,Peterlee Library,Supplies and Services,304252,Equipment and Materials,07-Nov-2022,000008615944118,BAKER ROSS,5970,Equipment-repairsserviceinsurance,40.33,0.00,40.33
Regeneration Economy and Growth,Culture Sport and Tourism,054235,Bishop Auckland Town Hall Cafe,Supplies and Services,324117,Provisions E324,07-Nov-2022,000008615944124,AMZNMKTPLACE AMAZON.CO,5999,Catering costs - provisions,7.87,1.31,6.56
Regeneration Economy and Growth,Culture Sport and Tourism,030712,VCD - Project Delivery,Supplies and Services,384199,Miscellaneous Expenses,07-Nov-2022,000008615944128,FACEBK ZY3Y6KTQH2,7311,Other hired and contracted services,55.09,0.00,55.09
Children and Young Peoples Services,Head of Childrens Social Care,085334,West Rainton Satelite Home,Supplies and Services,304999,Equipment and Materials,07-Nov-2022,000008615944174,WWW.BEAMISH.ORG.UK,7991,Misc equipment tools and materials,37.00,0.00,37.00
Children and Young Peoples Services,Head of Childrens Social Care,085358,Orchard House Sacriston Solo Home,Supplies and Services,324117,Provisions E324,07-Nov-2022,000008615944340,ASDA GROCERIES ONLINE,5411,Catering costs - provisions,184.15,0.00,184.15
Children and Young Peoples Services,Head of Childrens Social Care,085358,Orchard House Sacriston Solo Home,Supplies and Services,324117,Provisions E324,07-Nov-2022,000008615944344,ASDA GROCERIES ONLINE,5411,Catering costs - provisions,-0.80,0.00,-0.80
Children and Young Peoples Services,Head of Childrens Social Care,085358,Orchard House Sacriston Solo Home,Supplies and Services,324117,Provisions E324,07-Nov-2022,000008615944350,ASDA GROCERIES ONLINE,5411,Catering costs - provisions,-1.55,0.00,-1.55
Neighbourhoods and Climate Change,Environmental Services,010551,Fleet - Chilton Fleet,Transport,215013,Running Costs of Vehicles,07-Nov-2022,000008615944362,POST OFFICE COUNTER,9402,Vehicle Excise Duty (VED),55.00,0.00,55.00
Children and Young Peoples Services,Head of Education and Skills,071732,Dean Bank Childcare,Supplies and Services,324117,Provisions E324,07-Nov-2022,000008615944370,ASDA GROCERIES ONLINE,5411,Catering costs - provisions,57.49,0.00,57.49
Adult and Health Services,Head of Adults,055302,Durham Pathways,Supplies and Services,340001,Postages E340,07-Nov-2022,000008615944374,POST OFFICE COUNTER,9402,Postages,0.95,0.00,0.95
Adult and Health Services,Head of Adults,055302,Durham Pathways,Supplies and Services,324117,Provisions E324,07-Nov-2022,000008615944378,WILKO RETAIL LIMITED,5399,Catering costs - provisions,6.20,0.00,6.20
Neighbourhoods and Climate Change,Environmental Services,026591,C&G - Hardwick Park,Supplies and Services,304337,Equipment and Materials,07-Nov-2022,000008615944396,UKSM_AngelWholesale,5999,Consumables/items for resale,116.95,0.00,116.95
Neighbourhoods and Climate Change,Environmental Services,026591,C&G - Hardwick Park,Supplies and Services,332047,Printing Stationery and Gen Off Exps,07-Nov-2022,000008615944398,SP BOOKS2DOOR,5942,Stationery,297.23,0.00,297.23
Neighbourhoods and Climate Change,Environmental Services,011060,C&G - Hardwick Park Catering,Supplies and Services,304259,Equipment and Materials,07-Nov-2022,000008615944402,WWW.NISBETS.COM,5964,Equipment-purchase and rental,38.50,0.00,38.50
Regeneration Economy and Growth,Business Durham CL0850,030690,Durham Dales Centre - Tourist Information Centre,Supplies and Services,332047,Printing Stationery and Gen Off Exps,07-Nov-2022,000008615944406,WORDS `N` WISHES,5943,Stationery,292.96,0.00,292.96
Regeneration Economy and Growth,Business Durham CL0850,030690,Durham Dales Centre - Tourist Information Centre,Supplies and Services,304403,Equipment and Materials,07-Nov-2022,000008615944408,COPPERCRAFT OF MALTON,5947,Other consumables,275.88,0.00,275.88
Children and Young Peoples Services,Head of Childrens Social Care,085341,High Etherley Satelite Home,Supplies and Services,304259,Equipment and Materials,07-Nov-2022,000008615944414,AO RETAIL LIMITED,5722,Equipment-purchase and rental,348.99,58.17,290.82
Children and Young Peoples Services,Head of Childrens Social Care,085517,Supporting Solutions Service (Edge of Care),Supplies and Services,304403,Equipment and Materials,07-Nov-2022,000008615944420,AMZNMKTPLACE AMAZON.CO,5999,Other consumables,7.99,1.33,6.66
Regeneration Economy and Growth,Planning & Housing,031576,B& B - Temp Accom,Supplies and Services,364320,Grants to Voluntary Organisations,07-Nov-2022,000008615944424,HOTEL 52,7011,Accommodation assistance,380.00,0.00,380.00
Adult and Health Services,Head of Adults,055202,Support and Recovery,Supplies and Services,304403,Equipment and Materials,07-Nov-2022,000008615944438,AMZNMktplace,5999,Other consumables,52.38,8.73,43.65
Adult and Health Services,Head of Adults,055202,Support and Recovery,Supplies and Services,304403,Equipment and Materials,07-Nov-2022,000008615944438 - 1,AMZNMktplace,5999,Other consumables,0.06,,0.06
Adult and Health Services,Head of Adults,055202,Support and Recovery,Supplies and Services,304221,Equipment and Materials,07-Nov-2022,000008615944442,WWW.SCREWFIX.COM,5211,Direct materials,16.99,0.00,16.99
Adult and Health Services,Head of Adults,055202,Support and Recovery,Supplies and Services,304221,Equipment and Materials,07-Nov-2022,000008615944444,WWW.SCREWFIX.COM,5211,Direct materials,67.96,0.00,67.96
Children and Young Peoples Services,Head of Early Help Inclusion & Vulnerable Children.,085957,Secure Management,Supplies and Services,324117,Provisions E324,07-Nov-2022,000008615944446,TESCO STORES 6329,5411,Catering costs - provisions,182.28,0.00,182.28
Neighbourhoods and Climate Change,Environmental Services,010301,C&G - North Grounds Maintenance,Supplies and Services,304221,Equipment and Materials,07-Nov-2022,000008615944450,THE GRASS CENTRE,5261,Direct materials,7.08,0.00,7.08
Regeneration Economy and Growth,Economic Development Level C,030771,Durham Advance Flexible Fund,Supplies and Services,328041,Clothing uniforms and laundry E328,07-Nov-2022,000008615944466,ARGOS LTD,5310,Clothing uniforms and laundry,163.95,0.00,163.95
Regeneration Economy and Growth,Economic Development Level C,030771,Durham Advance Flexible Fund,Supplies and Services,328041,Clothing uniforms and laundry E328,07-Nov-2022,000008615944470,ARGOS LTD,5310,Clothing uniforms and laundry,-3.95,0.00,-3.95
Children and Young Peoples Services,Head of Childrens Social Care,085364,Children Looked After Team 1,Supplies and Services,304999,Equipment and Materials,07-Nov-2022,000008615944472,WWW.PLANET-LEISURE.CO.,7933,Misc equipment tools and materials,14.65,0.00,14.65
Neighbourhoods and Climate Change,Environmental Services,031228,North Pennines - Fellfoot Forward,Supplies and Services,304259,Equipment and Materials,07-Nov-2022,000008615944494,TREASURERS DEPT,9399,Equipment-purchase and rental,116.00,0.00,116.00
Children and Young Peoples Services,Head of Childrens Social Care,085331,New Lea Childrens Home,Supplies and Services,324117,Provisions E324,07-Nov-2022,000008615944532,PPOINT_ MASEFIELD NEWS,5499,Catering costs - provisions,8.55,0.00,8.55
Dedicated Schools Grant BG0015,DSG - In-yr academies/closures,419202,Durham Fed 4192 - Creative,Supplies and Services,304403,Equipment and Materials,07-Nov-2022,000008615944554,TESCO STORES 2371,5411,Other consumables,95.54,0.00,95.54
Regeneration Economy and Growth,Business Durham CL0850,030671,Business Space 030671,Supplies and Services,348037,Subsistence E348,07-Nov-2022,000008615944566,Number Four Tea Shop,5812,Subsistence,59.00,0.00,59.00
Dedicated Schools Grant BG0015,DSG Schools Block,418514,Belmont Community School 004185 - Music,Supplies and Services,304403,Equipment and Materials,07-Nov-2022,000008615944578,AMZNMKTPLACE AMAZON.CO,5999,Other consumables,86.59,14.43,72.16
Dedicated Schools Grant BG0015,DSG Schools Block,702814,Villa Real School 7028 - Conductive Education,Supplies and Services,304403,Equipment and Materials,07-Nov-2022,000008615944588,AMZNMktplace,5999,Other consumables,14.39,0.00,14.39
Dedicated Schools Grant BG0015,DSG Schools Block,702821,Villa Real School 7028 - Outdoor Education,Transport,215995,Running Costs of Vehicles,07-Nov-2022,000008615944594,RSS VILLA,5541,Vehicle running expenses,10.01,1.67,8.34
Dedicated Schools Grant BG0015,DSG Schools Block,702808,Villa Real School 7028 - RE,Supplies and Services,384199,Miscellaneous Expenses,07-Nov-2022,000008615944596,WWW.CHRISTIANEDUCATION,8398,Other hired and contracted services,80.00,0.00,80.00
Neighbourhoods and Climate Change,Environmental Services,010367,C&G - South Grounds Maintenance,Supplies and Services,304221,Equipment and Materials,07-Nov-2022,000008615944622,B & Q 1120,5200,Direct materials,53.00,0.00,53.00
Children and Young Peoples Services,Head of Childrens Social Care,085342,16 Hickstead Rise (previously 9 Cedar Ave),Supplies and Services,324117,Provisions E324,07-Nov-2022,000008615944630,SAINSBURYS AYCLIFF,5411,Catering costs - provisions,14.00,0.00,14.00
Adult and Health Services,Head of Adults,055643,Hawthorn House LD Respite Unit,Supplies and Services,324117,Provisions E324,07-Nov-2022,000008615944684,SAINSBURYS S/MKTS,5411,Catering costs - provisions,36.40,0.00,36.40
Regeneration Economy and Growth,Business Durham CL0850,030717,Business Services,Supplies and Services,352001,Conference Expenses,07-Nov-2022,000008615944696,HAYMARKET MEDIA GROUP,7392,Conferencesseminars fees etc,834.00,0.00,834.00
Children and Young Peoples Services,Head of Childrens Social Care,085342,16 Hickstead Rise (previously 9 Cedar Ave),Supplies and Services,324117,Provisions E324,07-Nov-2022,000008615944732,ASDA SUPERSTORE 4987,5411,Catering costs - provisions,4.20,0.00,4.20
Children and Young Peoples Services,Head of Education and Skills,078554,Adult Skills-Main,Supplies and Services,384999,Miscellaneous Expenses,07-Nov-2022,000008615944734,Amazon.co.uk E934W7O15,5969,Other expenses,43.47,7.26,36.21
Children and Young Peoples Services,Head of Education and Skills,071732,Dean Bank Childcare,Supplies and Services,304403,Equipment and Materials,07-Nov-2022,000008615944750,AMZNMktplace,5999,Other consumables,16.33,0.00,16.33
Children and Young Peoples Services,Head of Education and Skills,071732,Dean Bank Childcare,Supplies and Services,324117,Provisions E324,07-Nov-2022,000008615944754,ASDA GROCERIES ONLINE,5411,Catering costs - provisions,10.25,0.00,10.25
Children and Young Peoples Services,Head of Education and Skills,071732,Dean Bank Childcare,Supplies and Services,324117,Provisions E324,07-Nov-2022,000008615944756,ASDA GROCERIES ONLINE,5411,Catering costs - provisions,73.78,0.00,73.78
Children and Young Peoples Services,Head of Education and Skills,071732,Dean Bank Childcare,Supplies and Services,324117,Provisions E324,07-Nov-2022,000008615944760,ASDA GROCERIES ONLINE,5411,Catering costs - provisions,-0.30,0.00,-0.30
Children and Young Peoples Services,Head of Early Help Inclusion & Vulnerable Children.,085957,Secure Management,Supplies and Services,304999,Equipment and Materials,07-Nov-2022,000008615944768,SPECSAVERS,8043,Misc equipment tools and materials,69.00,0.00,69.00
Neighbourhoods and Climate Change,Environmental Services,031200,North Pennines Core,Transport,235057,Public Transport,07-Nov-2022,000008615944808,KAPNOSAIRPORTSHUTTLE.C,4131,Staff travelling,14.06,0.00,14.06
Regeneration Economy and Growth,Corporate Property and Land,011003,FM-Civic Bldgs-County Hall Durham,Supplies and Services,304221,Equipment and Materials,07-Nov-2022,000008615944818,WWW.SCREWFIX.COM,5211,Direct materials,37.47,0.00,37.47
Children and Young Peoples Services,Head of Childrens Social Care,085334,West Rainton Satelite Home,Supplies and Services,304999,Equipment and Materials,07-Nov-2022,000008615944826,HOME BARGAINS,5251,Misc equipment tools and materials,20.94,0.00,20.94
Children and Young Peoples Services,Head of Childrens Social Care,085334,West Rainton Satelite Home,Supplies and Services,324117,Provisions E324,07-Nov-2022,000008615944830,ASDA SUPERSTORE,5411,Catering costs - provisions,7.50,0.00,7.50
Children and Young Peoples Services,Head of Education and Skills,078100,Curric and Professional Development 078100,Supplies and Services,342033,Computers and Communications,07-Nov-2022,000008615944836,STK Shutterstock,7333,Computer hardware,22.80,0.00,22.80
Children and Young Peoples Services,Head of Early Help Inclusion & Vulnerable Children.,074000,National Supporting Families Programme,Supplies and Services,304403,Equipment and Materials,07-Nov-2022,000008615944864,VIKING UK,5111,Other consumables,35.12,5.85,29.27
Children and Young Peoples Services,Head of Childrens Social Care,085351,Framwellgate Moor CU,Supplies and Services,324117,Provisions E324,07-Nov-2022,000008615944986,Selecta U.K. Limited,5499,Catering costs - provisions,1.00,0.00,1.00
Children and Young Peoples Services,Head of Childrens Social Care,085351,Framwellgate Moor CU,Supplies and Services,324117,Provisions E324,07-Nov-2022,000008615944992,Selecta U.K. Limited,5499,Catering costs - provisions,1.00,0.00,1.00
Children and Young Peoples Services,Head of Childrens Social Care,085351,Framwellgate Moor CU,Supplies and Services,324117,Provisions E324,07-Nov-2022,000008615944994,Selecta U.K. Limited,5499,Catering costs - provisions,1.00,0.00,1.00
Children and Young Peoples Services,Head of Childrens Social Care,085351,Framwellgate Moor CU,Supplies and Services,348037,Subsistence E348,07-Nov-2022,000008615944998,GREGGS,5812,Subsistence,18.12,0.00,18.12
Children and Young Peoples Services,Head of Education and Skills,071802,Louisa Cent Nursery,Supplies and Services,324117,Provisions E324,07-Nov-2022,000008615945038,ASDA SUPERSTORE,5411,Catering costs - provisions,10.90,0.00,10.90
Children and Young Peoples Services,Head of Early Help Inclusion & Vulnerable Children.,085962,Aycliffe Secure - Durham,Supplies and Services,304403,Equipment and Materials,07-Nov-2022,000008615945058,AMZNMktplace,5999,Other consumables,19.74,3.30,16.44
Children and Young Peoples Services,Head of Early Help Inclusion & Vulnerable Children.,085962,Aycliffe Secure - Durham,Supplies and Services,304403,Equipment and Materials,07-Nov-2022,000008615945060,AMZNMktplace,5999,Other consumables,6.72,1.12,5.60
Children and Young Peoples Services,Head of Early Help Inclusion & Vulnerable Children.,085962,Aycliffe Secure - Durham,Supplies and Services,304403,Equipment and Materials,07-Nov-2022,000008615945060 - 1,AMZNMktplace,5999,Other consumables,0.05,,0.05
Children and Young Peoples Services,Head of Early Help Inclusion & Vulnerable Children.,085962,Aycliffe Secure - Durham,Supplies and Services,304403,Equipment and Materials,07-Nov-2022,000008615945062,AMZNMktplace,5999,Other consumables,3.49,0.58,2.91
Children and Young Peoples Services,Head of Early Help Inclusion & Vulnerable Children.,085962,Aycliffe Secure - Durham,Supplies and Services,304403,Equipment and Materials,07-Nov-2022,000008615945064,AMZNMktplace,5999,Other consumables,14.88,2.48,12.40
Children and Young Peoples Services,Head of Early Help Inclusion & Vulnerable Children.,085962,Aycliffe Secure - Durham,Supplies and Services,304403,Equipment and Materials,07-Nov-2022,000008615945066,AMZNMktplace,5999,Other consumables,9.98,1.66,8.32
Children and Young Peoples Services,Head of Childrens Social Care,085331,New Lea Childrens Home,Supplies and Services,340001,Postages E340,07-Nov-2022,000008615945076,POST OFFICE COUNTER,9402,Postages,2.35,0.00,2.35
Children and Young Peoples Services,Head of Childrens Social Care,085358,Orchard House Sacriston Solo Home,Supplies and Services,304259,Equipment and Materials,07-Nov-2022,000008615945078,AO RETAIL LIMITED,5722,Equipment-purchase and rental,-432.99,0.00,-432.99
Children and Young Peoples Services,Head of Childrens Social Care,085334,West Rainton Satelite Home,Supplies and Services,304403,Equipment and Materials,07-Nov-2022,000008615945130,AMZNMktplace,5999,Other consumables,285.93,0.00,285.93
Children and Young Peoples Services,Head of Childrens Social Care,085368,Children Looked After Team 5,Supplies and Services,304403,Equipment and Materials,07-Nov-2022,000008615945134,AMZNMktplace,5999,Other consumables,7.99,1.33,6.66
Children and Young Peoples Services,Head of Childrens Social Care,085367,Children Looked After Team 4,Supplies and Services,304403,Equipment and Materials,07-Nov-2022,000008615945138,AMZNMktplace,5999,Other consumables,71.96,12.00,59.96
Regeneration Economy and Growth,Culture Sport and Tourism,011198,Culture & Sport Management 011198,Supplies and Services,344033,Telephones,07-Nov-2022,000008615945140,ZOOM.US 888-799-9666,4814,Telephones general-all costs,119.90,0.00,119.90
Regeneration Economy and Growth,Communications Management,060270,Communications and Marketing,Supplies and Services,336005,Advertising E336,07-Nov-2022,000008615945160,FACEBK FDF3XG75B2,7311,Advertising other than for staff,500.00,0.00,500.00
Regeneration Economy and Growth,REG - Central Costs,030001,Corporate Director - Regeneration Economy & Growth,Supplies and Services,324117,Provisions E324,07-Nov-2022,000008615945162,AMZNMktplace,5999,Catering costs - provisions,38.98,6.50,32.48
Resources BK0010,Transactional & Customer Services,060050,Service Management,Supplies and Services,324117,Provisions E324,07-Nov-2022,000008615945164,AMZNMktplace,5999,Catering costs - provisions,34.56,0.00,34.56
Resources BK0010,Transactional & Customer Services,060050,Service Management,Supplies and Services,372009,Subscriptions E372,07-Nov-2022,000008615945168,WPMU DEV INCSUBFEE.COM,7372,Subscriptions 372009,17.04,0.00,17.04
Children and Young Peoples Services,Head of Childrens Social Care,085397,Regionalisation of Adoption,Supplies and Services,324117,Provisions E324,07-Nov-2022,000008615945272,CO-OP GROUP FOOD,5411,Catering costs - provisions,11.40,0.00,11.40
Regeneration Economy and Growth,Economic Development Level C,030771,Durham Advance Flexible Fund,Employees,040149,Recruitment Instruction and Training,07-Nov-2022,000008615945286,PAYPAL EDUCOVERUKN,8999,Training-all costs,60.00,0.00,60.00
Children and Young Peoples Services,Head of Early Help Inclusion & Vulnerable Children.,088101,Bullion Lane & Brandon Family Centre,Supplies and Services,304403,Equipment and Materials,07-Nov-2022,000008615945290,AMZNMktplace,5999,Other consumables,4.74,0.00,4.74
Children and Young Peoples Services,Head of Early Help Inclusion & Vulnerable Children.,088101,Bullion Lane & Brandon Family Centre,Supplies and Services,384999,Miscellaneous Expenses,07-Nov-2022,000008615945294,BAKER ROSS,5970,Other expenses,382.18,0.00,382.18
Children and Young Peoples Services,Head of Early Help Inclusion & Vulnerable Children.,088101,Bullion Lane & Brandon Family Centre,Supplies and Services,304403,Equipment and Materials,07-Nov-2022,000008615945298,AMZNMktplace,5999,Other consumables,5.00,0.83,4.17
Children and Young Peoples Services,Head of Early Help Inclusion & Vulnerable Children.,088101,Bullion Lane & Brandon Family Centre,Supplies and Services,304403,Equipment and Materials,07-Nov-2022,000008615945302,AMZNMktplace,5999,Other consumables,6.27,1.05,5.22
Children and Young Peoples Services,Head of Early Help Inclusion & Vulnerable Children.,088101,Bullion Lane & Brandon Family Centre,Supplies and Services,304403,Equipment and Materials,07-Nov-2022,000008615945306,AMZNMktplace,5999,Other consumables,18.99,0.00,18.99
Neighbourhoods and Climate Change,Environmental Services,010301,C&G - North Grounds Maintenance,Supplies and Services,304999,Equipment and Materials,07-Nov-2022,000008615945314,Harelaw sawmill delive,5251,Misc equipment tools and materials,353.57,0.00,353.57
Neighbourhoods and Climate Change,Environmental Services,010301,C&G - North Grounds Maintenance,Supplies and Services,304259,Equipment and Materials,07-Nov-2022,000008615945316,MACHINE MART LTD,5722,Equipment-purchase and rental,47.49,0.00,47.49
Regeneration Economy and Growth,Corporate Property and Land,010525,Catering - Green Lane,Supplies and Services,324117,Provisions E324,07-Nov-2022,000008616047138,JR HOLLAND FOODSERVICE,5499,Catering costs - provisions,61.95,0.00,61.95
Regeneration Economy and Growth,Corporate Property and Land,011275,Catering -Durham Leadership Centre,Supplies and Services,324117,Provisions E324,07-Nov-2022,000008616047146,JR HOLLAND FOODSERVICE,5499,Catering costs - provisions,40.30,0.00,40.30
Regeneration Economy and Growth,Corporate Property and Land,011296,Catering - Dunes,Supplies and Services,324117,Provisions E324,07-Nov-2022,000008616047150,JR HOLLAND FOODSERVICE,5499,Catering costs - provisions,-4.49,0.00,-4.49
Regeneration Economy and Growth,Corporate Property and Land,011296,Catering - Dunes,Supplies and Services,324117,Provisions E324,07-Nov-2022,000008616047154,JR HOLLAND FOODSERVICE,5499,Catering costs - provisions,-43.96,0.00,-43.96
Regeneration Economy and Growth,Corporate Property and Land,030691,Catering - Durham Dales Centre,Supplies and Services,324117,Provisions E324,07-Nov-2022,000008616047156,JR HOLLAND FOODSERVICE,5499,Catering costs - provisions,176.76,0.00,176.76
Regeneration Economy and Growth,Corporate Property and Land,030691,Catering - Durham Dales Centre,Supplies and Services,324117,Provisions E324,07-Nov-2022,000008616047158,JR HOLLAND FOODSERVICE,5499,Catering costs - provisions,-4.90,0.00,-4.90
Regeneration Economy and Growth,Culture Sport and Tourism,054235,Bishop Auckland Town Hall Cafe,Supplies and Services,324117,Provisions E324,07-Nov-2022,000008616047160,JR HOLLAND FOODSERVICE,5499,Catering costs - provisions,419.06,0.00,419.06
Adult and Health Services,Head of Adults,055643,Hawthorn House LD Respite Unit,Supplies and Services,324117,Provisions E324,07-Nov-2022,000008616047166,JR HOLLAND FOODSERVICE,5499,Catering costs - provisions,25.85,0.00,25.85
Adult and Health Services,Head of Adults,055643,Hawthorn House LD Respite Unit,Supplies and Services,324117,Provisions E324,07-Nov-2022,000008616047170,JR HOLLAND FOODSERVICE,5499,Catering costs - provisions,21.46,0.00,21.46
Neighbourhoods and Climate Change,Environmental Services,011060,C&G - Hardwick Park Catering,Supplies and Services,324117,Provisions E324,07-Nov-2022,000008616047172,JR HOLLAND FOODSERVICE,5499,Catering costs - provisions,108.89,0.00,108.89
Regeneration Economy and Growth,Corporate Property and Land,021242,Catering - County Hall,Supplies and Services,324117,Provisions E324,07-Nov-2022,000008616047178,JR HOLLAND FOODSERVICE,5499,Catering costs - provisions,43.44,0.00,43.44
Regeneration Economy and Growth,Corporate Property and Land,021242,Catering - County Hall,Supplies and Services,324117,Provisions E324,07-Nov-2022,000008616047180,JR HOLLAND FOODSERVICE,5499,Catering costs - provisions,178.68,0.00,178.68
Regeneration Economy and Growth,Corporate Property and Land,021242,Catering - County Hall,Supplies and Services,384999,Miscellaneous Expenses,07-Nov-2022,000008616047182,G M PACKAGING UK LIMIT,5046,Other expenses,36.70,0.00,36.70
Regeneration Economy and Growth,Business Durham CL0850,030689,Inward Investment and Aftercare,Supplies and Services,342222,Computers and Communications,07-Nov-2022,000008620315096,FASTHOSTS,4816,Comp hardware purch-network servers,6.34,0.00,6.34
Regeneration Economy and Growth,Culture Sport and Tourism,054235,Bishop Auckland Town Hall Cafe,Supplies and Services,324117,Provisions E324,07-Nov-2022,000008620315174,AMZNMKTPLACE AMAZON.CO,5999,Catering costs - provisions,5.14,0.86,4.28
Regeneration Economy and Growth,Culture Sport and Tourism,030705,Visit County Durham 030705,Supplies and Services,304259,Equipment and Materials,07-Nov-2022,000008620315186,FASTHOSTS,4816,Equipment-purchase and rental,6.34,1.06,5.28
Children and Young Peoples Services,Head of Childrens Social Care,085332,Middlestone Moor CU,Supplies and Services,324117,Provisions E324,07-Nov-2022,000008620315204,ALDI 774-018,5411,Catering costs - provisions,8.00,0.00,8.00
Children and Young Peoples Services,Head of Childrens Social Care,085341,High Etherley Satelite Home,Supplies and Services,324117,Provisions E324,07-Nov-2022,000008620315466,774 026,5411,Catering costs - provisions,75.60,0.00,75.60
Children and Young Peoples Services,Head of Childrens Social Care,085551,Short Break Services-Park Hse Sher,Supplies and Services,324117,Provisions E324,07-Nov-2022,000008620315636,ICELAND FOODS,5411,Catering costs - provisions,131.70,0.00,131.70
Children and Young Peoples Services,Head of Childrens Social Care,085347,Solo Home The Manse,Supplies and Services,348037,Subsistence E348,07-Nov-2022,000008620315728,MCDONALDS,5812,Subsistence,12.59,0.00,12.59
Neighbourhoods and Climate Change,Environmental Services,031200,North Pennines Core,Supplies and Services,352001,Conference Expenses,07-Nov-2022,000008620315758,LORDOS BEACH HOTEL,7011,Conferencesseminars fees etc,342.84,0.00,342.84
Neighbourhoods and Climate Change,Environmental Services,031200,North Pennines Core,Supplies and Services,348037,Subsistence E348,07-Nov-2022,000008620315764,COSTA COFFEE,5812,Subsistence,7.73,0.00,7.73
Neighbourhoods and Climate Change,Environmental Services,031200,North Pennines Core,Supplies and Services,348037,Subsistence E348,07-Nov-2022,000008620315766,DANIEL RESTAURANT,5812,Subsistence,13.18,0.00,13.18
Resources BK0010,Legal & Democratic Services,067910,Democratic Representation 067910,Supplies and Services,304403,Equipment and Materials,07-Nov-2022,000008620316064,AMZNMKTPLACE AMAZON.CO,5999,Other consumables,5.99,1.00,4.99
Resources BK0010,Procurement Sales & Business Services,065501,Business Support - Executive Support,Supplies and Services,332047,Printing Stationery and Gen Off Exps,07-Nov-2022,000008620316076,AMZNBUSINESS 0R4H76ML5,5999,Stationery,64.99,10.83,54.16
Regeneration Economy and Growth,Planning & Housing,031576,B& B - Temp Accom,Supplies and Services,364320,Grants to Voluntary Organisations,07-Nov-2022,000008620316248,Roadchef Durham,7011,Accommodation assistance,7.50,0.00,7.50
Regeneration Economy and Growth,Corporate Property and Land,011296,Catering - Dunes,Supplies and Services,324117,Provisions E324,07-Nov-2022,000008620400406,BATLEYS PERTH,5300,Catering costs - provisions,49.80,8.30,41.50
Regeneration Economy and Growth,Corporate Property and Land,011296,Catering - Dunes,Supplies and Services,324117,Provisions E324,07-Nov-2022,000008620400406 - 1,BATLEYS PERTH,5300,Catering costs - provisions,49.26,,49.26
Regeneration Economy and Growth,Corporate Property and Land,030691,Catering - Durham Dales Centre,Supplies and Services,324117,Provisions E324,07-Nov-2022,000008620400412,BATLEYS PERTH,5300,Catering costs - provisions,89.34,14.89,74.45
Regeneration Economy and Growth,Corporate Property and Land,030691,Catering - Durham Dales Centre,Supplies and Services,324117,Provisions E324,07-Nov-2022,000008620400412 - 1,BATLEYS PERTH,5300,Catering costs - provisions,131.95,,131.95
Regeneration Economy and Growth,Corporate Property and Land,021235,Catering - Wharton Park,Supplies and Services,324117,Provisions E324,07-Nov-2022,000008620400414,BATLEYS PERTH,5300,Catering costs - provisions,64.86,10.81,54.05
Regeneration Economy and Growth,Corporate Property and Land,021235,Catering - Wharton Park,Supplies and Services,324117,Provisions E324,07-Nov-2022,000008620400414 - 1,BATLEYS PERTH,5300,Catering costs - provisions,8.37,,8.37
Regeneration Economy and Growth,Culture Sport and Tourism,054812,Gala Theatre - Catering etc,Supplies and Services,324117,Provisions E324,07-Nov-2022,000008620400416,BATLEYS PERTH,5300,Catering costs - provisions,54.72,9.12,45.60
Regeneration Economy and Growth,Culture Sport and Tourism,054812,Gala Theatre - Catering etc,Supplies and Services,324117,Provisions E324,07-Nov-2022,000008620400416 - 1,BATLEYS PERTH,5300,Catering costs - provisions,90.25,,90.25
Dedicated Schools Grant BG0015,DSG Schools Block,702814,Villa Real School 7028 - Conductive Education,Supplies and Services,304403,Equipment and Materials,08-Nov-2022,000008615944600,AMZNMktplace,5999,Other consumables,59.76,9.96,49.80
Neighbourhoods and Climate Change,Environmental Services,031200,North Pennines Core,Transport,235057,Public Transport,08-Nov-2022,000008615944810,KAPNOSAIRPORTSHUTTLE.C,4131,Staff travelling,0.39,0.00,0.39
Children and Young Peoples Services,Head of Early Help Inclusion & Vulnerable Children.,085965,Barnard,Supplies and Services,384999,Miscellaneous Expenses,08-Nov-2022,000008615944870,Amazon.co.uk 128RH1NJ4,5969,Other expenses,34.93,0.00,34.93
Resources BK0010,Digital Services,065432,Web Development Group,Supplies and Services,372009,Subscriptions E372,08-Nov-2022,000008615945170,WPMU DEV INCSUBFEE.COM,7372,Subscriptions 372009,0.47,0.00,0.47
Regeneration Economy and Growth,Business Durham CL0850,030689,Inward Investment and Aftercare,Supplies and Services,304259,Equipment and Materials,08-Nov-2022,000008620315098,CANVA I03598-16768624,7221,Equipment-purchase and rental,99.99,0.00,99.99
Children and Young Peoples Services,Head of Education and Skills,071801,Selby Cottage Childcare Centre,Supplies and Services,304999,Equipment and Materials,08-Nov-2022,000008620315100,Amazon Prime KW2NK7OG5,5968,Misc equipment tools and materials,8.99,0.00,8.99
Children and Young Peoples Services,Head of Education and Skills,071801,Selby Cottage Childcare Centre,Supplies and Services,324117,Provisions E324,08-Nov-2022,000008620315102,ASDA GROCERIES ONLINE,5411,Catering costs - provisions,132.06,0.00,132.06
Children and Young Peoples Services,Head of Education and Skills,071801,Selby Cottage Childcare Centre,Supplies and Services,324117,Provisions E324,08-Nov-2022,000008620315106,ASDA GROCERIES ONLINE,5411,Catering costs - provisions,-2.30,0.00,-2.30
Dedicated Schools Grant BG0015,DSG Schools Block,110022,The Woodlands 1100 - Team Teach,Supplies and Services,312009,Newspapers books and periodicals E312,08-Nov-2022,000008620315108,WWW.TEAMTEACH.CO.UK,8299,Newspapers books and periodicals,475.99,0.00,475.99
Children and Young Peoples Services,Head of Childrens Social Care,085341,High Etherley Satelite Home,Supplies and Services,304649,Equipment and Materials,08-Nov-2022,000008620315124,SMYTHS TOYS,5399,Toys,79.99,0.00,79.99
Resources BK0010,Legal & Democratic Services,069326,Practice Management,Supplies and Services,304259,Equipment and Materials,08-Nov-2022,000008620315128,SUNDERLAND CC,9399,Equipment-purchase and rental,11.00,0.00,11.00
Regeneration Economy and Growth,Culture Sport and Tourism,011265,Empire Theatre (Operations),Supplies and Services,304252,Equipment and Materials,08-Nov-2022,000008620315178,AMZNMktplace,5999,Equipment-repairsserviceinsurance,88.74,14.79,73.95
Regeneration Economy and Growth,Culture Sport and Tourism,011265,Empire Theatre (Operations),Supplies and Services,304252,Equipment and Materials,08-Nov-2022,000008620315178 - 1,AMZNMktplace,5999,Equipment-repairsserviceinsurance,0.05,,0.05
Regeneration Economy and Growth,Culture Sport and Tourism,054966,Gala Theatre - Gala Productions,Supplies and Services,338047,Services,08-Nov-2022,000008620315182,WWW.HOMEWAREESSENTIALS,5722,Direct production costs,-117.00,0.00,-117.00
Regeneration Economy and Growth,Culture Sport and Tourism,030712,VCD - Project Delivery,Supplies and Services,384199,Miscellaneous Expenses,08-Nov-2022,000008620315188,PAYPAL WEBALON,5817,Other hired and contracted services,6.92,0.00,6.92
Children and Young Peoples Services,Head of Childrens Social Care,085332,Middlestone Moor CU,Supplies and Services,308011,Furniture,08-Nov-2022,000008620315208,THE RANGE,5719,Furniture repair and replacement,34.92,0.00,34.92
Children and Young Peoples Services,Head of Childrens Social Care,085332,Middlestone Moor CU,Supplies and Services,324117,Provisions E324,08-Nov-2022,000008620315210,TESCO STORES 2371,5411,Catering costs - provisions,207.20,0.00,207.20
Regeneration Economy and Growth,Planning & Housing,031623,Rough Sleeping,Supplies and Services,324117,Provisions E324,08-Nov-2022,000008620315238,B&M 681 - DURHAM,5399,Catering costs - provisions,10.00,0.00,10.00
Regeneration Economy and Growth,Planning & Housing,031623,Rough Sleeping,Supplies and Services,338066,Services,08-Nov-2022,000008620315240,GEN REGISTER OFFICE,9399,Professional fees 338066,14.00,0.00,14.00
Regeneration Economy and Growth,Planning & Housing,031623,Rough Sleeping,Supplies and Services,324117,Provisions E324,08-Nov-2022,000008620315244,ASDA STORES LTD 4313,5411,Catering costs - provisions,64.00,0.00,64.00
Regeneration Economy and Growth,Planning & Housing,031623,Rough Sleeping,Supplies and Services,324117,Provisions E324,08-Nov-2022,000008620315248,TESCO STORES 2371,5411,Catering costs - provisions,60.36,0.00,60.36
Regeneration Economy and Growth,Planning & Housing,031623,Rough Sleeping,Supplies and Services,324117,Provisions E324,08-Nov-2022,000008620315250,TESCO STORES 2371,5411,Catering costs - provisions,97.83,0.00,97.83
Regeneration Economy and Growth,Planning & Housing,031524,GRT Site St Philips Park Coundon Grange,Premises,115125,Repairs to Grounds,08-Nov-2022,000008620315252,AMZNMktplace,5999,General maintenance,13.99,0.00,13.99
Neighbourhoods and Climate Change,Environmental Services,010383,C&G - South Street Cleansing,Supplies and Services,304403,Equipment and Materials,08-Nov-2022,000008620315266,MAXWELLS DIY,5231,Other consumables,1.00,0.17,0.83
Neighbourhoods and Climate Change,Environmental Services,010383,C&G - South Street Cleansing,Supplies and Services,304403,Equipment and Materials,08-Nov-2022,000008620315272,MAXWELLS DIY,5231,Other consumables,7.00,1.17,5.83
Children and Young Peoples Services,Head of Early Help Inclusion & Vulnerable Children.,085956,Lumley,Supplies and Services,304999,Equipment and Materials,08-Nov-2022,000008620315276,Amazon Prime IV7XU9OZ5,5968,Misc equipment tools and materials,8.99,0.00,8.99
Neighbourhoods and Climate Change,Environmental Services,031200,North Pennines Core,Supplies and Services,324117,Provisions E324,08-Nov-2022,000008620315280,STANHOPE SUPERMARKET,5411,Catering costs - provisions,3.20,0.00,3.20
Neighbourhoods and Climate Change,Environmental Services,031202,North Pennines - Peatscapes,Transport,235057,Public Transport,08-Nov-2022,000008620315284,Weardale Motor Service,4111,Staff travelling,65.29,0.00,65.29
Children and Young Peoples Services,Head of Childrens Social Care,085381,Adoption Team,Supplies and Services,308011,Furniture,08-Nov-2022,000008620315308,SP THE FAMILY WINDOW,5712,Furniture repair and replacement,278.00,0.00,278.00
Children and Young Peoples Services,Head of Early Help Inclusion & Vulnerable Children.,088109,Dean Bank and Tudhoe Family Centre,Supplies and Services,384302,Miscellaneous Expenses,08-Nov-2022,000008620315314,BAKER ROSS,5970,Activity expenses,81.56,0.00,81.56
Children and Young Peoples Services,Head of Early Help Inclusion & Vulnerable Children.,088115,Young Parents Programme 088115,Supplies and Services,384302,Miscellaneous Expenses,08-Nov-2022,000008620315320,WM MORRISONS STORE,5411,Activity expenses,8.32,0.00,8.32
Children and Young Peoples Services,Head of Childrens Social Care,085365,Children Looked After Team 2,Supplies and Services,338045,Services,08-Nov-2022,000008620315324,HM PASSPORT OFFICE,9399,Legal expenses 338045,49.00,0.00,49.00
Children and Young Peoples Services,Head of Childrens Social Care,085365,Children Looked After Team 2,Supplies and Services,338045,Services,08-Nov-2022,000008620315328,HM PASSPORT OFFICE,9399,Legal expenses 338045,49.00,0.00,49.00
Regeneration Economy and Growth,Economic Development Level C,030771,Durham Advance Flexible Fund,Transport,235057,Public Transport,08-Nov-2022,000008620315336,WALKERGATE CAR PAR,7523,Staff travelling,3.10,0.00,3.10
Regeneration Economy and Growth,Economic Development Level C,030771,Durham Advance Flexible Fund,Supplies and Services,304259,Equipment and Materials,08-Nov-2022,000008620315338,GALA THEATRE,9399,Equipment-purchase and rental,2.75,0.00,2.75
Regeneration Economy and Growth,Economic Development Level C,030772,CLLD South,Supplies and Services,348037,Subsistence E348,08-Nov-2022,000008620315376,Zettle_ THE WELL,5812,Subsistence,3.30,0.00,3.30
Resources BK0010,Digital Services,065351,Microsoft Office 365,Supplies and Services,372009,Subscriptions E372,08-Nov-2022,000008620315404,NOMINET UK,7392,Subscriptions 372009,46.80,7.80,39.00
Adult and Health Services,Commissioning inc Supporting People,052100,Supporting the Provider Market,Supplies and Services,332047,Printing Stationery and Gen Off Exps,08-Nov-2022,000008620315408,eBay O 01-09317-75353,5311,Stationery,4.39,0.00,4.39
Adult and Health Services,Commissioning inc Supporting People,052100,Supporting the Provider Market,Supplies and Services,332047,Printing Stationery and Gen Off Exps,08-Nov-2022,000008620315410,ARGOS LTD,5310,Stationery,7.50,0.00,7.50
Children and Young Peoples Services,Head of Education and Skills,071732,Dean Bank Childcare,Supplies and Services,324117,Provisions E324,08-Nov-2022,000008620315426,SAINSBURYS S/MKTS,5411,Catering costs - provisions,20.00,0.00,20.00
Children and Young Peoples Services,Head of Education and Skills,071732,Dean Bank Childcare,Supplies and Services,324117,Provisions E324,08-Nov-2022,000008620315428,B&M 147 - FERRYHILL,5399,Catering costs - provisions,29.46,0.00,29.46
Adult and Health Services,Head of Adults,055302,Durham Pathways,Supplies and Services,324117,Provisions E324,08-Nov-2022,000008620315432,ICELAND,5411,Catering costs - provisions,1.75,0.00,1.75
Adult and Health Services,Head of Adults,055302,Durham Pathways,Supplies and Services,324117,Provisions E324,08-Nov-2022,000008620315436,ALDI 774-018,5411,Catering costs - provisions,6.43,0.00,6.43
Regeneration Economy and Growth,Culture Sport and Tourism,054966,Gala Theatre - Gala Productions,Supplies and Services,338047,Services,08-Nov-2022,000008620315442,B & Q 1343,5200,Direct production costs,40.22,0.00,40.22
Regeneration Economy and Growth,Culture Sport and Tourism,054966,Gala Theatre - Gala Productions,Supplies and Services,338047,Services,08-Nov-2022,000008620315444,AMZNMktplace,5999,Direct production costs,44.97,0.00,44.97
Children and Young Peoples Services,Head of Education and Skills,071801,Selby Cottage Childcare Centre,Supplies and Services,324117,Provisions E324,08-Nov-2022,000008620315456,TESCO STORES 2278,5411,Catering costs - provisions,5.67,0.00,5.67
Children and Young Peoples Services,Head of Childrens Social Care,085517,Supporting Solutions Service (Edge of Care),Supplies and Services,304403,Equipment and Materials,08-Nov-2022,000008620315470,AMZNMKTPLACE AMAZON.CO,5999,Other consumables,19.69,3.28,16.41
Regeneration Economy and Growth,Business Durham CL0850,030671,Business Space 030671,Supplies and Services,332047,Printing Stationery and Gen Off Exps,08-Nov-2022,000008620315480,NORTH EAST STATIONERY,5111,Stationery,479.88,0.00,479.88
Resources BK0010,Procurement Sales & Business Services,065503,Business Support - Spectrum,Supplies and Services,304403,Equipment and Materials,08-Nov-2022,000008620315496,AMZ Headset Sales Ltd,5999,Other consumables,-119.00,-19.83,-99.17
Children and Young Peoples Services,Head of Childrens Social Care,085347,Solo Home The Manse,Supplies and Services,324117,Provisions E324,08-Nov-2022,000008620315498,Siva Premier,5411,Catering costs - provisions,1.19,0.00,1.19
Children and Young Peoples Services,Head of Childrens Social Care,085347,Solo Home The Manse,Supplies and Services,348037,Subsistence E348,08-Nov-2022,000008620315500,Barley,5813,Subsistence,5.00,0.00,5.00
Regeneration Economy and Growth,Economic Development Level C,030771,Durham Advance Flexible Fund,Transport,235057,Public Transport,08-Nov-2022,000008620315506,WWW.GONORTHEAST.CO.UK,4111,Staff travelling,7.00,0.00,7.00
Regeneration Economy and Growth,Economic Development Level C,030771,Durham Advance Flexible Fund,Supplies and Services,304259,Equipment and Materials,08-Nov-2022,000008620315508,GALA THEATRE,9399,Equipment-purchase and rental,2.75,0.00,2.75
Regeneration Economy and Growth,Economic Development Level C,030771,Durham Advance Flexible Fund,Transport,235057,Public Transport,08-Nov-2022,000008620315512,PRINCE BISHOP SHOPPING,7523,Staff travelling,3.30,0.00,3.30
Children and Young Peoples Services,Head of Early Help Inclusion & Vulnerable Children.,085955,Auckland,Transfer Payments,515002,Social Services Clients,08-Nov-2022,000008620315516,Footasylum Limited,5651,Pocket money,19.99,0.00,19.99
Children and Young Peoples Services,Head of Early Help Inclusion & Vulnerable Children.,085962,Aycliffe Secure - Durham,Transfer Payments,515002,Social Services Clients,08-Nov-2022,000008620315518,William May Jewellers,5944,Pocket money,95.00,0.00,95.00
Children and Young Peoples Services,Head of Early Help Inclusion & Vulnerable Children.,085955,Auckland,Transfer Payments,515002,Social Services Clients,08-Nov-2022,000008620315520,Footasylum Limited,5651,Pocket money,39.99,0.00,39.99
Children and Young Peoples Services,Head of Early Help Inclusion & Vulnerable Children.,085955,Auckland,Transfer Payments,515002,Social Services Clients,08-Nov-2022,000008620315522,Footasylum Limited,5651,Pocket money,104.95,0.00,104.95
Children and Young Peoples Services,Head of Early Help Inclusion & Vulnerable Children.,085962,Aycliffe Secure - Durham,Transfer Payments,515002,Social Services Clients,08-Nov-2022,000008620315524,SP HOODRICH LTD,5691,Pocket money,209.96,0.00,209.96
Children and Young Peoples Services,Head of Early Help Inclusion & Vulnerable Children.,085957,Secure Management,Supplies and Services,304405,Equipment and Materials,08-Nov-2022,000008620315528,AMZNMktplace,5999,Medical supplies,6.20,1.03,5.17
Children and Young Peoples Services,Head of Early Help Inclusion & Vulnerable Children.,085956,Lumley,Transfer Payments,515002,Social Services Clients,08-Nov-2022,000008620315530,AMZNMktplace,5999,Pocket money,9.59,0.00,9.59
Children and Young Peoples Services,Head of Early Help Inclusion & Vulnerable Children.,085956,Lumley,Transfer Payments,515002,Social Services Clients,08-Nov-2022,000008620315534,AMZNMktplace,5999,Pocket money,3.14,0.52,2.62
Children and Young Peoples Services,Head of Early Help Inclusion & Vulnerable Children.,085954,Walworth,Transfer Payments,515002,Social Services Clients,08-Nov-2022,000008620315538,JD SPORTS INTERNET,5941,Pocket money,195.00,0.00,195.00
Children and Young Peoples Services,Head of Early Help Inclusion & Vulnerable Children.,085954,Walworth,Transfer Payments,515002,Social Services Clients,08-Nov-2022,000008620315542,JD SPORTS INTERNET,5941,Pocket money,59.99,0.00,59.99
Children and Young Peoples Services,Head of Early Help Inclusion & Vulnerable Children.,085956,Lumley,Transfer Payments,515002,Social Services Clients,08-Nov-2022,000008620315546,JD SPORTS INTERNET,5941,Pocket money,100.00,0.00,100.00
Children and Young Peoples Services,Head of Early Help Inclusion & Vulnerable Children.,085954,Walworth,Transfer Payments,515002,Social Services Clients,08-Nov-2022,000008620315548,JD SPORTS INTERNET,5941,Pocket money,63.99,0.00,63.99
Children and Young Peoples Services,Head of Early Help Inclusion & Vulnerable Children.,085954,Walworth,Transfer Payments,515002,Social Services Clients,08-Nov-2022,000008620315552,PARFUEMERIE AKZENTE,5977,Pocket money,29.25,0.00,29.25
Children and Young Peoples Services,Head of Early Help Inclusion & Vulnerable Children.,085954,Walworth,Transfer Payments,515002,Social Services Clients,08-Nov-2022,000008620315556,PARFUEMERIE AKZENTE,5977,Pocket money,27.63,0.00,27.63
Children and Young Peoples Services,Head of Early Help Inclusion & Vulnerable Children.,085956,Lumley,Transfer Payments,515002,Social Services Clients,08-Nov-2022,000008620315560,PRETTYLITTLETHING.COM,5691,Pocket money,12.00,0.00,12.00
Children and Young Peoples Services,Head of Early Help Inclusion & Vulnerable Children.,085965,Barnard,Supplies and Services,384302,Miscellaneous Expenses,08-Nov-2022,000008620315562,AMZNMKTPLACE AMAZON.CO,5999,Activity expenses,2.79,0.47,2.32
Neighbourhoods and Climate Change,Environmental Services,010919,C&G - Countryside Site Management,Supplies and Services,304259,Equipment and Materials,08-Nov-2022,000008620315586,SPARE PARTS WORLD,5251,Equipment-purchase and rental,29.98,5.00,24.98
Dedicated Schools Grant BG0015,DSG - In-yr academies/closures,419210,Durham Fed 4192 - SEND,Supplies and Services,304403,Equipment and Materials,08-Nov-2022,000008620315614,AMZNMktplace,5999,Other consumables,7.69,1.28,6.41
Dedicated Schools Grant BG0015,DSG - In-yr academies/closures,419210,Durham Fed 4192 - SEND,Supplies and Services,304403,Equipment and Materials,08-Nov-2022,000008620315616,AMZNMktplace,5999,Other consumables,8.95,1.49,7.46
Dedicated Schools Grant BG0015,DSG Schools Block,110015,The Woodlands 1100 - Computing,Employees,040149,Recruitment Instruction and Training,08-Nov-2022,000008620315624,VIRTUAL COLLEGE LIMITE,8299,Training-all costs,102.00,0.00,102.00
Dedicated Schools Grant BG0015,DSG Schools Block,110015,The Woodlands 1100 - Computing,Employees,040149,Recruitment Instruction and Training,08-Nov-2022,000008620315628,WWW.CROSSBOWEDUCATION.,5943,Training-all costs,75.58,0.00,75.58
Children and Young Peoples Services,Head of Childrens Social Care,085332,Middlestone Moor CU,Supplies and Services,348037,Subsistence E348,08-Nov-2022,000008620315632,VMS ROADCHEF COSTA,5814,Subsistence,10.40,0.00,10.40
Children and Young Peoples Services,Head of Childrens Social Care,085341,High Etherley Satelite Home,Supplies and Services,304403,Equipment and Materials,08-Nov-2022,000008620315640,AMZNMKTPLACE AMAZON.CO,5999,Other consumables,26.99,4.50,22.49
Dedicated Schools Grant BG0015,DSG Schools Block,702814,Villa Real School 7028 - Conductive Education,Supplies and Services,304403,Equipment and Materials,08-Nov-2022,000008620315658,AMZNMktplace,5999,Other consumables,69.50,11.60,57.90
Dedicated Schools Grant BG0015,DSG Schools Block,702814,Villa Real School 7028 - Conductive Education,Supplies and Services,304403,Equipment and Materials,08-Nov-2022,000008620315666,AMZNMktplace,5999,Other consumables,87.92,14.68,73.24
Neighbourhoods and Climate Change,Environmental Services,010367,C&G - South Grounds Maintenance,Supplies and Services,304221,Equipment and Materials,08-Nov-2022,000008620315694,B & Q 1120,5200,Direct materials,59.59,0.00,59.59
Neighbourhoods and Climate Change,Environmental Services,019100,Fleet - Strategic Fleet,Supplies and Services,304403,Equipment and Materials,08-Nov-2022,000008620315696,AMZNMktplace,5999,Other consumables,38.00,0.00,38.00
Adult and Health Services,Head of Adults,055643,Hawthorn House LD Respite Unit,Supplies and Services,324117,Provisions E324,08-Nov-2022,000008620315706,SAINSBURYS S/MKTS,5411,Catering costs - provisions,22.50,0.00,22.50
Regeneration Economy and Growth,Culture Sport and Tourism,010608,Teesdale Leisure Centre,Supplies and Services,304259,Equipment and Materials,08-Nov-2022,000008620315738,SP RLSS UK SHOP,5691,Equipment-purchase and rental,85.15,0.00,85.15
Children and Young Peoples Services,Head of Childrens Social Care,085334,West Rainton Satelite Home,Supplies and Services,324117,Provisions E324,08-Nov-2022,000008620315816,TESCO STORES 2371,5411,Catering costs - provisions,101.30,0.00,101.30
Children and Young Peoples Services,Head of Early Help Inclusion & Vulnerable Children.,088102,Consett & Stanley Intensive Family Support Team,Supplies and Services,364301,Grants to Voluntary Organisations,08-Nov-2022,000008620315832,ASDA GROCERIES ONLINE,5411,Hardship,448.60,0.00,448.60
Children and Young Peoples Services,Head of Early Help Inclusion & Vulnerable Children.,088102,Consett & Stanley Intensive Family Support Team,Supplies and Services,364301,Grants to Voluntary Organisations,08-Nov-2022,000008620315836,ASDA GROCERIES ONLINE,5411,Hardship,-6.45,0.00,-6.45
Regeneration Economy and Growth,Economic Development Level C,030771,Durham Advance Flexible Fund,Supplies and Services,324117,Provisions E324,08-Nov-2022,000008620315876,TESCO STORES 2371,5411,Catering costs - provisions,6.00,0.00,6.00
Children and Young Peoples Services,Head of Early Help Inclusion & Vulnerable Children.,085957,Secure Management,Supplies and Services,340001,Postages E340,08-Nov-2022,000008620315880,TSB Returns Ltd,4215,Postages,1.79,0.00,1.79
Children and Young Peoples Services,Head of Early Help Inclusion & Vulnerable Children.,085963,Maple House,Supplies and Services,304259,Equipment and Materials,08-Nov-2022,000008620315882,AMZNMktplace,5999,Equipment-purchase and rental,23.89,3.98,19.91
Regeneration Economy and Growth,Planning & Housing,031701,Care Connect All Localities,Supplies and Services,304259,Equipment and Materials,08-Nov-2022,000008620315898,AMZNMktplace,5999,Equipment-purchase and rental,38.53,6.42,32.11
Children and Young Peoples Services,Head of Childrens Social Care,085347,Solo Home The Manse,Supplies and Services,308011,Furniture,08-Nov-2022,000008620315906,The Range,5719,Furniture repair and replacement,199.11,0.00,199.11
Children and Young Peoples Services,Head of Childrens Social Care,085351,Framwellgate Moor CU,Supplies and Services,324117,Provisions E324,08-Nov-2022,000008620315936,Selecta U.K. Limited,5499,Catering costs - provisions,1.50,0.00,1.50
Children and Young Peoples Services,Head of Childrens Social Care,085351,Framwellgate Moor CU,Supplies and Services,324117,Provisions E324,08-Nov-2022,000008620315938,Selecta U.K. Limited,5499,Catering costs - provisions,1.50,0.00,1.50
Children and Young Peoples Services,Head of Childrens Social Care,085351,Framwellgate Moor CU,Supplies and Services,324117,Provisions E324,08-Nov-2022,000008620315940,CO-OP GROUP FOOD,5411,Catering costs - provisions,8.25,0.00,8.25
Children and Young Peoples Services,Head of Childrens Social Care,085351,Framwellgate Moor CU,Supplies and Services,308011,Furniture,08-Nov-2022,000008620315942,The Range,5719,Furniture repair and replacement,76.97,0.00,76.97
Children and Young Peoples Services,Head of Early Help Inclusion & Vulnerable Children.,085962,Aycliffe Secure - Durham,Supplies and Services,304403,Equipment and Materials,08-Nov-2022,000008620316028,AMZNMktplace,5999,Other consumables,4.97,0.83,4.14
Regeneration Economy and Growth,Economic Development Level C,030776,LINKCD Flexible Fund,Supplies and Services,324117,Provisions E324,08-Nov-2022,000008620316050,ASDA STORES LTD,5411,Catering costs - provisions,4.60,0.00,4.60
Resources BK0010,Digital Services,065481,Technical Services 065481,Supplies and Services,304403,Equipment and Materials,08-Nov-2022,000008620316066,AMZNMKTPLACE AMAZON.CO,5999,Other consumables,13.00,2.17,10.83
Regeneration Economy and Growth,Planning & Housing,031634,LOCAL LETTINGS AGENCY,Premises,120037,Energy Costs,08-Nov-2022,000008620316114,UTILITA ENERGY LTD,4900,Other fuels,20.00,0.00,20.00
Children and Young Peoples Services,Head of Early Help Inclusion & Vulnerable Children.,088101,Bullion Lane & Brandon Family Centre,Supplies and Services,304403,Equipment and Materials,08-Nov-2022,000008620316208,AMZNMktplace,5999,Other consumables,68.40,11.40,57.00
Children and Young Peoples Services,Head of Early Help Inclusion & Vulnerable Children.,088101,Bullion Lane & Brandon Family Centre,Supplies and Services,304403,Equipment and Materials,08-Nov-2022,000008620316208 - 1,AMZNMktplace,5999,Other consumables,21.40,,21.40
Regeneration Economy and Growth,Corporate Property and Land,030691,Catering - Durham Dales Centre,Third Party Payments,474101,Purchase of Care,08-Nov-2022,000008620316230,FERGUSONS LODGE,8050,Nursing care payments,455.03,0.00,455.03
Regeneration Economy and Growth,Planning & Housing,031576,B& B - Temp Accom,Supplies and Services,364320,Grants to Voluntary Organisations,08-Nov-2022,000008620316250,Roadchef Durham,7011,Accommodation assistance,7.50,0.00,7.50
Regeneration Economy and Growth,Culture Sport and Tourism,011265,Empire Theatre (Operations),Supplies and Services,324117,Provisions E324,08-Nov-2022,000008620400404,JR HOLLAND FOODSERVICE,5499,Catering costs - provisions,35.19,0.00,35.19
Regeneration Economy and Growth,Corporate Property and Land,011296,Catering - Dunes,Supplies and Services,324117,Provisions E324,08-Nov-2022,000008620400408,JR HOLLAND FOODSERVICE,5499,Catering costs - provisions,64.52,0.00,64.52
Regeneration Economy and Growth,Corporate Property and Land,011296,Catering - Dunes,Supplies and Services,324117,Provisions E324,08-Nov-2022,000008620400410,JR HOLLAND FOODSERVICE,5499,Catering costs - provisions,-7.42,0.00,-7.42
Regeneration Economy and Growth,Culture Sport and Tourism,054812,Gala Theatre - Catering etc,Supplies and Services,324117,Provisions E324,08-Nov-2022,000008620400418,JR HOLLAND FOODSERVICE,5499,Catering costs - provisions,63.79,0.00,63.79
Children and Young Peoples Services,Head of Education and Skills,075029,Poverty Action Group,Supplies and Services,304403,Equipment and Materials,08-Nov-2022,000008625643196,AMZNMKTPLACE AMAZON.CO,5999,Other consumables,15.98,0.00,15.98
Neighbourhoods and Climate Change,Environmental Services,010383,C&G - South Street Cleansing,Supplies and Services,304999,Equipment and Materials,08-Nov-2022,000008625643208,Snowballs,5251,Misc equipment tools and materials,130.74,0.00,130.74
Regeneration Economy and Growth,Culture Sport and Tourism,054235,Bishop Auckland Town Hall Cafe,Supplies and Services,324117,Provisions E324,08-Nov-2022,000008625643214,AMZNMKTPLACE AMAZON.CO,5999,Catering costs - provisions,37.40,6.23,31.17
Regeneration Economy and Growth,Culture Sport and Tourism,011056,AAP Funding - Sport & Leisure,Supplies and Services,304259,Equipment and Materials,08-Nov-2022,000008625643216,AMZNMKTPLACE AMAZON.CO,5999,Equipment-purchase and rental,25.96,4.33,21.63
Regeneration Economy and Growth,Culture Sport and Tourism,030712,VCD - Project Delivery,Supplies and Services,384199,Miscellaneous Expenses,08-Nov-2022,000008625643232,AMZNMKTPLACE AMAZON.CO,5999,Other hired and contracted services,18.98,3.16,15.82
Children and Young Peoples Services,Head of Early Help Inclusion & Vulnerable Children.,088108,Spennymoor & Shildon Intensive Family Support Team,Supplies and Services,304259,Equipment and Materials,08-Nov-2022,000008625643288,AMZNBUSINESS R849T8UK5,5999,Equipment-purchase and rental,54.95,9.16,45.79
Children and Young Peoples Services,Head of Early Help Inclusion & Vulnerable Children.,085957,Secure Management,Supplies and Services,332047,Printing Stationery and Gen Off Exps,08-Nov-2022,000008625643464,AMZNMKTPLACE AMAZON.CO,5999,Stationery,8.06,1.34,6.72
Children and Young Peoples Services,Head of Early Help Inclusion & Vulnerable Children.,085954,Walworth,Transfer Payments,515002,Social Services Clients,08-Nov-2022,000008625643474,TPS ONLINE UK ECOM,5977,Pocket money,54.00,0.00,54.00
Children and Young Peoples Services,Head of Education and Skills,070169,Durham SSP,Supplies and Services,304403,Equipment and Materials,08-Nov-2022,000008625643490,AMZNMKTPLACE AMAZON.CO,5999,Other consumables,412.93,0.00,412.93
Children and Young Peoples Services,Head of Early Help Inclusion & Vulnerable Children.,088106,Ferryhill & N. Aycliffe Intensive Family Support Team,Supplies and Services,364301,Grants to Voluntary Organisations,08-Nov-2022,000008625643504,AMZNMKTPLACE AMAZON.CO,5999,Hardship,38.99,6.50,32.49
Dedicated Schools Grant BG0015,DSG - In-yr academies/closures,419202,Durham Fed 4192 - Creative,Supplies and Services,304403,Equipment and Materials,08-Nov-2022,000008625643524,AMZNMKTPLACE AMAZON.CO,5999,Other consumables,54.98,9.16,45.82
Regeneration Economy and Growth,Corporate Property and Land,020087,Bldg Serv - R&M Div 87 - Roofing Construction,Supplies and Services,304221,Equipment and Materials,08-Nov-2022,000008625643632,AMZNMKTPLACE AMAZON.CO,5999,Direct materials,29.99,5.00,24.99
Children and Young Peoples Services,Head of Early Help Inclusion & Vulnerable Children.,085965,Barnard,Supplies and Services,304259,Equipment and Materials,08-Nov-2022,000008625643710,AMZNMKTPLACE AMAZON.CO,5999,Equipment-purchase and rental,9.90,1.65,8.25
Resources BK0010,Digital Services,065481,Technical Services 065481,Supplies and Services,304403,Equipment and Materials,08-Nov-2022,000008625643794,AMZNMKTPLACE AMAZON.CO,5999,Other consumables,51.98,8.66,43.32
Regeneration Economy and Growth,Corporate Property and Land,011296,Catering - Dunes,Supplies and Services,324117,Provisions E324,08-Nov-2022,000008625707300,BATLEYS PERTH,5300,Catering costs - provisions,-12.45,0.00,-12.45
Neighbourhoods and Climate Change,Environmental Services,011060,C&G - Hardwick Park Catering,Supplies and Services,324117,Provisions E324,08-Nov-2022,000008625707308,BATLEYS PERTH,5300,Catering costs - provisions,167.52,27.92,139.60
Neighbourhoods and Climate Change,Environmental Services,011060,C&G - Hardwick Park Catering,Supplies and Services,324117,Provisions E324,08-Nov-2022,000008625707308 - 1,BATLEYS PERTH,5300,Catering costs - provisions,162.23,,162.23
Regeneration Economy and Growth,Corporate Property and Land,021234,Catering - Locomotion,Supplies and Services,324117,Provisions E324,08-Nov-2022,000008625707310,BATLEYS PERTH,5300,Catering costs - provisions,362.76,60.46,302.30
Regeneration Economy and Growth,Corporate Property and Land,021234,Catering - Locomotion,Supplies and Services,324117,Provisions E324,08-Nov-2022,000008625707310 - 1,BATLEYS PERTH,5300,Catering costs - provisions,118.86,,118.86
Regeneration Economy and Growth,Corporate Property and Land,021242,Catering - County Hall,Supplies and Services,324117,Provisions E324,08-Nov-2022,000008625707314,BATLEYS PERTH,5300,Catering costs - provisions,52.80,8.80,44.00
Regeneration Economy and Growth,Corporate Property and Land,021242,Catering - County Hall,Supplies and Services,324117,Provisions E324,08-Nov-2022,000008625707314 - 1,BATLEYS PERTH,5300,Catering costs - provisions,92.00,,92.00
Children and Young Peoples Services,Head of Early Help Inclusion & Vulnerable Children.,085957,Secure Management,Supplies and Services,304405,Equipment and Materials,09-Nov-2022,000008620315564,AMZNMktplace,5999,Medical supplies,19.90,3.32,16.58
Neighbourhoods and Climate Change,Environmental Services,031200,North Pennines Core,Supplies and Services,348037,Subsistence E348,09-Nov-2022,000008620315770,COSTA COFFEE,5812,Subsistence,0.21,0.00,0.21
Neighbourhoods and Climate Change,Environmental Services,031200,North Pennines Core,Supplies and Services,348037,Subsistence E348,09-Nov-2022,000008620315772,DANIEL RESTAURANT,5812,Subsistence,0.36,0.00,0.36
Regeneration Economy and Growth,Business Durham CL0850,030689,Inward Investment and Aftercare,Supplies and Services,304999,Equipment and Materials,09-Nov-2022,000008625643122,MAILCHIMP MISC,5968,Misc equipment tools and materials,102.89,0.00,102.89
Regeneration Economy and Growth,Planning & Housing,031634,LOCAL LETTINGS AGENCY,Supplies and Services,324117,Provisions E324,09-Nov-2022,000008625643138,SAINSBURYS S/MKTS,5411,Catering costs - provisions,20.50,0.00,20.50
Dedicated Schools Grant BG0015,DSG Schools Block,110013,The Woodlands 1100 - Primary,Supplies and Services,312011,Newspapers books and periodicals E312,09-Nov-2022,000008625643156,SP COLLINS,5942,Books-school library,328.92,0.00,328.92
Regeneration Economy and Growth,Planning & Housing,031500,Housing Solutions - Core,Supplies and Services,352001,Conference Expenses,09-Nov-2022,000008625643168,Roadchef Durham,7011,Conferencesseminars fees etc,104.00,0.00,104.00
Resources BK0010,Legal & Democratic Services,069326,Practice Management,Supplies and Services,304259,Equipment and Materials,09-Nov-2022,000008625643178,DARLINGTON BOROUGH COU,9399,Equipment-purchase and rental,11.00,0.00,11.00
Children and Young Peoples Services,Head of Childrens Social Care,085347,Solo Home The Manse,Supplies and Services,384999,Miscellaneous Expenses,09-Nov-2022,000008625643184,Amazon.co.uk L885I4UT5,5969,Other expenses,20.93,0.00,20.93
Children and Young Peoples Services,Head of Childrens Social Care,085347,Solo Home The Manse,Supplies and Services,304403,Equipment and Materials,09-Nov-2022,000008625643190,AMZNMktplace,5999,Other consumables,51.06,0.00,51.06
Children and Young Peoples Services,Head of Childrens Social Care,085347,Solo Home The Manse,Supplies and Services,324117,Provisions E324,09-Nov-2022,000008625643192,B&M 600 - THORNE,5399,Catering costs - provisions,131.85,0.00,131.85
Children and Young Peoples Services,Head of Childrens Social Care,085342,16 Hickstead Rise (previously 9 Cedar Ave),Supplies and Services,324117,Provisions E324,09-Nov-2022,000008625643204,SAINSBURYS AYCLIFF,5411,Catering costs - provisions,9.35,0.00,9.35
Regeneration Economy and Growth,Culture Sport and Tourism,054966,Gala Theatre - Gala Productions,Supplies and Services,338047,Services,09-Nov-2022,000008625643220,AMZNMKTPLACE AMAZON.CO,5999,Direct production costs,87.90,14.65,73.25
Children and Young Peoples Services,Head of Childrens Social Care,085332,Middlestone Moor CU,Supplies and Services,304999,Equipment and Materials,09-Nov-2022,000008625643238,HOME BARGAINS SPENNYMO,5251,Misc equipment tools and materials,41.16,0.00,41.16
Children and Young Peoples Services,Head of Childrens Social Care,085332,Middlestone Moor CU,Supplies and Services,324117,Provisions E324,09-Nov-2022,000008625643240,ASDA SUPERSTORE 4987,5411,Catering costs - provisions,22.08,0.00,22.08
Children and Young Peoples Services,Head of Childrens Social Care,085334,West Rainton Satelite Home,Supplies and Services,324117,Provisions E324,09-Nov-2022,000008625643254,B&M 681 - DURHAM,5399,Catering costs - provisions,16.91,0.00,16.91
Neighbourhoods and Climate Change,Environmental Services,010367,C&G - South Grounds Maintenance,Supplies and Services,304403,Equipment and Materials,09-Nov-2022,000008625643276,MAXWELLS DIY,5231,Other consumables,28.00,4.67,23.33
Children and Young Peoples Services,Head of Childrens Social Care,085365,Children Looked After Team 2,Supplies and Services,338045,Services,09-Nov-2022,000008625643282,HM PASSPORT OFFICE,9399,Legal expenses 338045,49.00,0.00,49.00
Children and Young Peoples Services,Head of Childrens Social Care,085365,Children Looked After Team 2,Supplies and Services,338045,Services,09-Nov-2022,000008625643284,HM PASSPORT OFFICE,9399,Legal expenses 338045,49.00,0.00,49.00
Children and Young Peoples Services,Head of Childrens Social Care,085365,Children Looked After Team 2,Supplies and Services,338045,Services,09-Nov-2022,000008625643286,GEN REGISTER OFFICE,9399,Legal expenses 338045,11.00,0.00,11.00
Regeneration Economy and Growth,Economic Development Level C,030544,Rural Employability - Client Engagement,Transport,235057,Public Transport,09-Nov-2022,000008625643292,PRINCE BISHOP SHOPPING,7523,Staff travelling,2.10,0.00,2.10
Regeneration Economy and Growth,Economic Development Level C,030771,Durham Advance Flexible Fund,Transport,235057,Public Transport,09-Nov-2022,000008625643308,WALKERGATE CAR PAR,7523,Staff travelling,5.20,0.00,5.20
